Workbook

Sheet Identificação
B4: SECRETARIA REGIONAL DE EDUCAÇÃO, CIÊNCIA E TECNOLOGIA
B5: DIREÇÃO REGIONAL DE ADMINISTRAÇÃO ESCOLAR
B7: BALANÇO SOCIAL 2020
B8: (MAPAS DE RECOLHA v.3.3.7)
C15: DESIGNAÇÃO DO ORGANISMO:
C17: ESCOLA BÁSICA E SECUNDÁRIA COM PRÉ-ESCOLAR E CRECHE DO PORTO MONIZ
C21: Versão n.º: | D21: 3 | E21: Data: | F21: 2021-04-19 | G21: (Por favor indique um número de versão e data para cada envio atualizado do balanço)
B24: Nome da pessoa responsável pelo preenchimento: | H24: Maria da Graça Pereira Jardim
B26: Telefone (direto): | F26: 291850100 | I26: Endereço eletrónico: | M26: graca.p.jardim@madeira.gov.pt
B28: Versão 3.3.7: 10-04-20201
B31: 1Alterações face à versão anterior:
B32: - Na versão 3.3 foi aperfeiçoada a validação do mapa referente às habilitações (de nível superior), sendo agora feito o confronto com o n.º de trabalhadores pertencentes a carreiras para as quais seja exigida habilitação de nível superior; - Na versão 3.3 foi aperfeiçoada a validação do mapa referente à antiguidade, sendo agora feito naquele mapa o confronto entre o total de homens e mulheres, face aos trabalhadores registados por carreira; - Na versão 3.3 foram aditadas nos mapas referentes às saídas linhas específicas para discriminar contratos por tempo indeterminado e contrato a termo resolutivo, permitindo assim melhorar a validação das entradas e saídas; - Na versão 3.3 foi alterado para alerta, o erro que se apresentava quando não eram declarados custos para ações de prevenção na área da segurança; - Na versão 3.3 foram aclaradas as notas de preenchimento dos mapas referentes aos encargos com o pessoal e formação profissional; - Na versão 3.3.1. foi corrigida a linha de soma do mapa referente às saídas; - Na versão 3.3.2. foi corrigida a validação do mapa das antiguidades que estava a reportar um erro indevidamente; - Na versão 3.3.3. foi corrigida a validação da estrutura habilitacional que estava a considerar que os trabalhadores dos corpos especiais teriam que ter licenciatura, quando na verdade os técnicos de informática, que se incluem naquele grupo, apenas se exige o 12.º ano de escolaridade, tendo igualmente sido corrigido o facto de não estar a ser considerados os detentores de bacharelato na carreira docente; - Na versão 3.3.4. foi corrigido o simulador que devido ao aditamento ao mapa das saídas dos contratos a termo resolutivo, encerrava ainda fórmulas desatualizadas; - Na versão 3.3.5. foi corrigida a validação do mapa das saídas, que se referia à linha respeitante a "OUTROS" como sendo 1.10.3, quando na verdade respeitava à linha 1.10.4. - Na versão 3.3.6 foi aditado um esclarecimento na folha das FAQ sobre a contabilização da antiguidade na Função Pública. - Na versão 3.3.7 foi corrigida a validação dos recursos humanos que dava como erro o número de contratos por tempo indeterminado, em algumas situações em que o organismo tenha contratos por tempo indeterminado e contratos a termo resolutivo, sem que houvesse de facto erros na contagem.

Sheet Instruções (hidden)
C3: Notas de preenchimento
C5: ! | D5: O presente ficheiro deverá ser preenchido por alguém com conhecimentos do Microsoft Excel.
C6: ! | D6: Preencha os campos constantes do separador 'IDENTIFICAÇÃO, nomeadamente a 'Designação do organismo', o 'Nome da pessoa responsável pelo preenchimento' e o respetivo 'Telefone (directo)' e 'Endereço eletrónico';
C7: ! | D7: Antes de iniciar o preenchimento de cada quadro, leia atentamente o título e as respectivas anotações;
C8: ! | D8: Todas as células desbloqueadas ou em branco deverão ser preenchidas;
C9: ! | D9: As células que contêm à priori o número zero encontram-se bloqueadas, visto serem preenchidas automáticamente pelo programa;
C10: ! | D10: Sempre que não existirem ocorrências deverá ser introduzido o número zero (0);
C11: ! | D11: Quando for necessário fazer uso de números decimais, deverá utilizar uma vírgula e não um ponto para separar os números inteiros dos decimais. (Ex: 1,5 e não 1.5);
C12: ! | D12: Não deverá fazer uso de pontos ou espaços para separar os milhares.
C13: ! | D13: Após concluir o preenchimento dos mapas, clique no separador 'Validação' e verifique para cada quadro se existem mensagens de erro. Leia-as cuidadosamente e, caso seja necessário, rectifique os mapas antes de remetê-lo por email para o endereço indicado.
C14: ! | D14: Em caso de dúvidas no preenchimento poderá entrar em contacto com o respetivo técnico da Divisão de Apoio Técnico da Direção Regional de Inovação e Gestão, de acordo com a distribuição anexa ao ofício circular;
C15: ! | D15: Deverá ser privilegiado o contacto por correio eletrónico, uma vez que as resposta que serão dadas poderão mais facilmente ser partilhadas com os restantes serviços ou estabelecimentos;

Sheet FAQ's (hidden)
C3: Perguntas frequentes
D5: Quadro 1 - RECURSOS HUMANOS
C7: ? | D7: Em que coluna devem ser contabilizados os trabalhadores que se encontram a exercer funções ao abrigo de programas do Instituto do Emprego? Os trabalhadores ao abrigo de programas do Instituto do Emprego devem ser introduzidos nas colunas de acordo com as funções que desempenhem. Por exemplo, um trabalhador que exerça as funções de assistente técnico (área administrativa), deverá ser colocado na coluna ‘assistente técnico’, na linha 1.1.4 ‘Outros’.
C8: ? | D8: No caso das áreas escolares, onde deverão ser contabilizados os docentes do ‘desporto’ e da ‘expressão artística’ que se encontrem a exercer funções em mais do que um estabelecimento? Nestes casos, o docente deverá ser contado na escola em que tenha a maior carga horária que, em princípio, será aquela com a qual o docente tem vínculo.
C9: ? | D9: Deverão ser contabilizados no balanço social dos estabelecimentos de educação e ensino, os docentes especializados que transitaram para as escolas? Sim, os docentes dos serviços técnicos da Direcção Regional de Educação que transitaram para as escolas, bem como aqueles que se encontram em regime de mobilidade, deverão ser contabilizados no balanço social da respetiva escola. Os docentes que não têm mobilidade formalizada, mas que prestam serviço em vários estabelecimentos (por exemplo, em estabelecimentos e instituições privadas), serão contabilizados no balanço social da Direção Regional de Educação.
C10: ? | D10: Deverão ser incluídos os docentes que se encontrem a beneficiar de equiparação a bolseiro ou licença sabática? Sim. Atendendo a que estas ‘licenças’ são consideradas como exercício efectivo de funções, os docentes que se encontrem nesta situação deverão ser contabilizados. Ao nível dos Quadro 1.15 ‘Modalidades de Horário’, estes docentes poderão ser incluídos na linha 1.15.1 ‘ Horário rígido’.
C11: ? | D11: Como devem ser contabilizados os docentes que, tendo celebrado um contrato com uma determinada escola, foram colocados em mobilidade noutro estabelecimento na mesma data? Nestas situações, os docentes devem ser contabilizados no Quadro 1.9. ‘Admissões’ e, em simultâneo, no Quadro 1.10. ‘Saídas’. Relativamente ao motivo, os docentes devem ser contabilizados, no Quadro 1.12., na linha 1.12.5. ‘Outros’, com a indicação no respectivo campo das anotações (“Mobilidade para a escola…”).
C12: ? | D12: No caso de um docente que se encontre destacado noutro serviço ou estabelecimento, em que balanço social deverão ser registados os encargos com as remunerações? Os encargos com os docentes destacados noutros serviços ou estabelecimentos deverão ser contabilizados no estabelecimento de origem, uma vez que é este orçamento que está a assumir a despesa.
C13: ? | D13: Em que linha do Quadro 1. devem ser considerados os docentes? Os docentes com lugar de quadro (QE e QZP) devem ser considerados na linha 1.1.1 ‘Contrato de trabalho por tempo indeterminado’ atendendo a que já foi formalizada a transição para o regime de contrato de trabalho em funções públicas. Em relação aos docentes com contrato a termo resolutivo devem ser considerados na linha 1.1.3 ‘Contrato a termo resolutivo, certo ou incerto’.
C14: ? | D14: Em que linha devem ser considerados os trabalhadores que transitaram para o regime de contrato de trabalho em funções públicas? Os trabalhadores com contrato de trabalho em funções públicas devem ser contados na linha 1.1.2 ‘Contrato por tempo indeterminado’. Em relação aos trabalhadores que mantiveram o regime de nomeação, como os inspectores, deverão ser contabilizados na linha 1.1.1 ‘Nomeação’.
C15: ? | D15: Em que linha devem ser contabilizados os trabalhadores pertencentes a outros serviços e que se encontrem em exercício de funções no nosso serviço ao abrigo de um instrumento de mobilidade (ex: destacamento, requisição, mobilidade interna, etc.)? Os trabalhadores em mobilidade no serviço deverão ser introduzidos na linha 1.1.1 ‘ Nomeação’ ou 1.1.2 ‘Contrato por tempo indeterminado’, de acordo com o respetivo vínculo de origem que detenham.
C16: ? | D16: E em que coluna devem ser contados os trabalhadores pertencentes a outros serviços e que se encontrem no nosso serviço em mobilidade interna intercarreiras? Os trabalhadores em mobilidade interna intercarreiras no serviço deverão ser introduzidos na coluna de acordo com as funções que estão a desempenhar. Por exemplo, um assistente operacional em mobilidade interna intercarreiras como assistente técnico deverá ser contado na coluna ‘Assistente Técnico’.
C17: ? | D17: De que forma devem ser considerados os docentes que possuam uma acumulação ou um contrato para exercer funções em mais do que uma escola? Os docentes com acumulações ou que exerçam funções em duas escolas devem ser contabilizados na escola em que tenham a maior carga horária que, em princípio, será aquela à qual o docente está vinculado.
D18: Quadro 1.4 - ESTRUTURA ANTIGUIDADES
C20: ? | D20: Como deverá ser contabilizada a antiguidade na função pública? O tempo a considerar no balanço social é apenas um dado de natureza estatística que pretende demonstrar a antiguidade total na função pública e não o tempo na carreira ou aposentação, embora em algumas situações esses tempos sejam idênticos. A contabilização deverá ser feita pela contagem integral de todos os períodos em que o trabalhador tenha mantido uma relação jurídica com a função pública, excluindo eventuais períodos em que tenha ocorrido cessação do contrato ou tempo de serviço prestado em estabelecimentos privados.
C21: ? | D21: Como deverá ser contabilizada a antiguidade dos trabalhadores subsidiados ou prestadores de serviços? Apesar destes trabalhadores não possuírem ‘antiguidade’ na Função Pública, deverão ser contabilizados os anos de exercício de funções no serviço. Quando o trabalhador não possua um ano completo, deverá ser registado na linha 1.4.1 ‘Até 5 anos’.
D22: Quadro 1.10 - SAÍDAS
C24: ? | D24: Em que linha devem ser contados os trabalhadores não docentes que saíram por exoneração durante o ano? Estes trabalhadores são contados na linha ‘1.10.2’ Com contrato.
C25: ? | D25: Qual a data a considerar no caso das aposentações? A data da publicação no diário da república ou a data em que o trabalhador se desliga do serviço? Deverão considerar a data em que o trabalhador se desliga do serviço (por exemplo a data em que completa os 70 anos). Assim, se o trabalhador se desligou do serviço em dezembro, mas a publicação só ocorreu em janeiro, deve ser contabilizado como uma saída no balanço social do ano em que se desligou do serviço.
D26: Quadro 1.15 - MODALIDADES DE HORÁRIO
C28: ? | D28: Como deverá ser contabilizado o horário dos membros dos órgãos de gestão (Directores, Presidentes, Vice-Presidentes ou Adjuntos), que exerçam também funções docentes? Nestas circunstâncias, estes docentes deverão ser contabilizados como tendo 1.15.1 ‘Horário rígido’, na coluna do pessoal ‘Dirigente’.
C29: ? | D29: De que forma devem ser contados os anteriores ‘horários de trabalho desfasados’? Atendendo a que este tipo de horário não se encontra previsto na Lei n.º 59/2008 ou no Acordo Colectivo de Trabalho n º 1/2009, este horário deve ser considerado na linha 1.15.1 ‘Horário rígido’.
D30: Quadro 1.17 - AUSÊNCIAS AO TRABALHO
C32: ? | D32: De que forma deverão ser contabilizados os dias de ausência por motivo de gravidez de risco? Os dias de ausência decorrentes de gravidez de risco deverão ser registados na linha 1.17.2 ‘Maternidade / Paternidade’.
C33: ? | D33: Onde devem ser incluídos os dias de ausência para tratamento ambulatório, realização de consultas médicas e exames complementares de diagnóstico? Estes dias devem ser registados na linha 1.17.5 ‘Doença’ quando se trate de tratamentos do próprio trabalhador, ou na linha 1.17.7 ‘Assistência a familiares’ quando se trate tratamentos do cônjuge, ascendentes, descendentes e equiparados.
C34: ? | D34: Em que linha do quadro 1.17 ‘Ausências ao trabalho’ devem ser contados os dias de licença parental inicial exclusiva do pai (5+5 dias obrigatórios e 10 dias facultativos)? Estes dias deverão ser introduzidos na linha 1.17.2 ‘Maternidade / parentalidade’. De igual forma, caso o pai goze dias de licença parental inicial partilhada, estas ausências deverão ser registadas na linha 1.17.2 ‘Maternidade / parentalidade’, deixando-se de utilizar a linha 1.17.3 para qualquer efeito.
C35: ? | D35: Em que linha do quadro 1.17 ‘Ausências ao trabalho’ devem ser contabilizadas as faltas para assistência a filhos menores? Estes dias deverão ser introduzidos na linha 1.17.7 ‘Assistência a familiares’.
C36: ? | D36: Devem ser contabilizados os períodos de ausência devido a licenças sem vencimento? Estes dias apenas devem ser contabilizados caso o trabalhador tenha sido considerado no quadro 1 'Recursos Humanos', ou seja, nas situações de regresso durante o ano em análise.
D37: Quadro 2. - ENCARGOS COM PESSOAL
C39: ? | D39: Os encargos com os subsídios de parentalidade devem ser incluídos no mapa 2. ‘Encargos com pessoal’ ou mapa 5. ‘Prestações Sociais’? Estes encargos podem ser colocados no mapa 5. ‘Prestações Sociais’ na linha 5.8 ‘Outros’.
C40: ? | D40: Onde devem ser enquadrados as contribuições da entidade empregadora para a Caixa Geral de Aposentações ou Segurança Social? Estes encargos devem ser introduzidos no mapa 2. ‘Encargos com pessoal’, na linha 2.16 ‘Outros’ com a respectiva descriminação no campo das observações.
C41: ? | D41: Onde contabilizar as remunerações auferidas pelos trabalhadores na doença? Neste caso importa distinguir entre os trabalhadores abrangidos pelo regime convergente e aqueles abrangidos pelo regime geral da segurança social. Em, relação aos trabalhadores do regime convergente, que continuam a auferir a remuneração, os montantes devem ser incluídos no mapa 2. ‘Encargos com pessoal’, na linha 2.1 ‘Remuneração base’. Em relação aos trabalhadores do regime geral da segurança social, os valores não deverão ser incluídos no balanço social por não constituírem encargos do serviço / estabelecimento.
C42: ? | D42: Em que quadro contar os subsídios por assistência a filho menor? Estes montantes devem ser contabilizados no mapa 5. ‘Prestações Sociais’ na linha 5.8 ‘Outros’. Em relação aos trabalhadores do regime geral da segurança social, os valores não deverão ser incluídos no balanço social por não constituírem encargos do serviço / estabelecimento.
D43: Quadro 5. - PRESTAÇÕES SOCIAIS
C45: ? | D45: Em que ponto deverão ser incluídos os montantes referentes à protecção na Parentalidade? Os valores referentes à protecção na parentalidade dos trabalhadores no regime de protecção social convergente, deverão ser incluídos no quadro 5. ‘Prestações Sociais’, na linha 5.8 ‘Outras’, com a respectiva descriminação no campo destinado às anotações. Os valores relativos aos trabalhadores do regime geral de segurança social não deverão ser incluídos no balanço social por não constituírem encargos do serviço / estabelecimento.
D47: Quadro 8. - COBERTURA DOS MAPAS DE PESSOAL
C49: ? | D49: No quadro 8. ‘Cobertura dos mapas de pessoal’, devem ser incluídos os trabalhadores ao abrigo de programas do Instituto do Emprego e prestadores de serviços? Estes trabalhadores não deverão ser incluídos neste quadro, atendendo a que não se encontram previstos nos mapas de pessoal.
C50: ? | D50: O que se entende por “lugares previstos” e “lugares preenchidos”?
D51: LUGARES PREVISTOS
F52: NÃO DOCENTES | J52: DOCENTES
F53: Nos estabelecimentos de infância, escolas básicas e secundárias e serviços considerar os lugares previstos no mapa de pessoal aprovado pelo Secretário Regional; Nas escolas do 1.º ciclo com ou sem unidades de educação pré-escolar contar apenas n.º total de trabalhadores afetos ao estabelecimento (descontar as mobilidades para dentro). | J53: Contabilizar os lugares de quadro de escola aprovados.
D54: Licenças sem remuneração | F54: Sim | J54: Sim
D55: Mobilidades para fora | F55: Sim | J55: Sim
D56: Área escolar / QZP | F56: Sim (contabilizar o n.º de trabalhadores afetos) | J56: Sim (contabilizar o n.º de trabalhadores afetos)
D57: Mobilidades para dentro | F57: Não | J57: Não
D58: Contratados | F58: - | J58: Não
D60: LUGARES PREENCHIDOS
F61: NÃO DOCENTES | J61: DOCENTES
F62: Contabilizar os trabalhadores em exercício, independentemente do tipo de vínculo (com exceção dos trabalhadores subsidiados ou prestadores de serviços). | J62: Contabilizar os docentes em exercício, independentemente do tipo de vínculo (QE, QZP, Contratados, Mobilidades).
D63: Licenças sem remuneração | F63: Não | J63: Não
D64: Mobilidades para fora | F64: Não | J64: Não
D65: Área escolar / QZP | F65: Sim (contabilizar o n.º de trabalhadores afetos e em exercício) | J65: Sim (contabilizar o n.º de trabalhadores afetos e em exercício)
D66: Mobilidades para dentro | F66: Sim | J66: Sim
D67: Contratados | F67: - | J67: Sim
D68: Nota: Os lugares preenchidos são completados automaticamente consoante os dados introduzidos no mapa referente aos recursos humanos.
D69: OUTRAS QUESTÕES
C71: ? | D71: Todos os serviços e estabelecimentos de educação e ensino da Secretaria Regional de Educação devem preencher os mapas do balanço social? Sim. Apesar da legislação apenas obrigar o preenchimento aos serviços e organismos com 50 ou mais trabalhadores, todos os serviços e estabelecimento de educação e ensino da rede pública deverão proceder ao preenchimento dos mapas do balanço social. Note-se que esta será a única forma de obter uma visão global dos recursos humanos da SRE, dada a existência de mapas de pessoal não docente por área escolar e quadros de zona pedagógica de pessoal docente.
C72: ? | D72: Para onde devem ser enviados os ficheiros preenchidos? Os ficheiros, devidamente preenchidos, deverão ser enviados para o endereço de correio eletrónico da DRIG: drig.sre@madeira.gov.pt.

Sheet Validação (hidden)
M1: =IF(Identificação!C17="","",Identificação!C17) -> ESCOLA BÁSICA E SECUNDÁRIA COM PRÉ-ESCOLAR E CRECHE DO PORTO MONIZ
B3: MAPAS | E3: MENSAGENS
E4: =IF(OR(Identificação!C17="",Identificação!H24="",Identificação!F26="",Identificação!M26=""),"Por favor preencha todos os campos do separador 'Identificação'","") -> 
B6: Quadro 1. Recursos humanos | E6: =IF(E7="...","Preenchido",IF(E7="Por favor preencha todas as células em aberto. Se não existirem ocorrências a registar deverá introduzir o número zero.","Por preencher","Preenchido com erros!")) -> Preenchido | F6: =IF('Recursos Humanos'!P7<>0,"Por favor preencha todas as células em aberto. Se não existirem ocorrências a registar deverá introduzir o número zero.",IF('Recursos Humanos'!O25="ERRO","Ao fazer referência a 'OUTROS' no ponto 1.1.4., deverá obrigatoriamente discriminá-las no campo destinado às anotações.",IF('Recursos Humanos'!O22="ERRO","Ao incluir trabalhadores na coluna 'OUTROS', deverá obrigatoriamente discriminá-las no campo destinado às anotações.",IF('Recursos Humanos'!P30<>0,"Por favor preencha todas as células em aberto no mapa referente aos recursos humanos registados no balanço social do ano anterior. Se não existirem ocorrências a registar deverá introduzir o número zero.",G6)))) -> ... | G6: =IF('Recursos Humanos'!D48<>'Recursos Humanos'!D7,"O número de DIRIGENTES homens com o vinculo de nomeação, não pode ser diferente do valor registado para este grupo no ano anterior, subtraidas as eventuais saídas e acrescido das eventuais entradas",IF('Recursos Humanos'!D49<>'Recursos Humanos'!D8,"O número de DIRIGENTES mulheres com o vinculo de nomeação, não pode ser diferente do valor registado para este grupo no ano anterior, subtraidas as eventuais saídas e acrescido das eventuais entradas",IF('Recursos Humanos'!D51<>'Recursos Humanos'!D10,"O número de DIRIGENTES homens com o vinculo por tempo indeterminado, não pode ser diferente do valor registado para este grupo no ano anterior, subtraidas as eventuais saídas e acrescido das eventuais entradas",IF('Recursos Humanos'!D52<>'Recursos Humanos'!D11,"O número de DIRIGENTES mulheres com o vinculo por tempo indeterminado não pode ser diferente do valor registado para este grupo no ano anterior, subtraidas as eventuais saídas e acrescido das eventuais entradas",H6)))) -> ... | H6: =IF('Recursos Humanos'!D54<>'Recursos Humanos'!D13,"O número de DIRIGENTES homens com contrato a termo resolutivo não pode ser diferente do valor registado para este grupo no ano anterior, subtraidas as eventuais saídas e acrescido das eventuais entradas",IF('Recursos Humanos'!D55<>'Recursos Humanos'!D14,"O número de DIRIGENTES mulheres com contrato a termo resolutivo não pode ser diferente do valor registado para este grupo no ano anterior, subtraidas as eventuais saídas e acrescido das eventuais entradas",IF('Recursos Humanos'!D57<>'Recursos Humanos'!D16,"O número de DIRIGENTES homens com outros vinculos, não pode ser diferente do valor registado para este grupo no ano anterior, subtraidas as eventuais saídas e acrescido das eventuais entradas",IF('Recursos Humanos'!D58<>'Recursos Humanos'!D17,"O número de DIRIGENTES mulheres com outros vinculos não pode ser diferente do valor registado para este grupo no ano anterior, subtraidas as eventuais saídas e acrescido das eventuais entradas",I6)))) -> ... | I6: =IF('Recursos Humanos'!E48<>'Recursos Humanos'!E7,"O número de TÉCNICOS SUPERIORES homens com o vinculo de nomeação, não pode ser diferente do valor registado para este grupo no ano anterior, subtraidas as eventuais saídas e acrescido das eventuais entradas",IF('Recursos Humanos'!E49<>'Recursos Humanos'!E8,"O número de TÉCNICOS SUPERIORES mulheres com o vinculo de nomeação, não pode ser diferente do valor registado para este grupo no ano anterior, subtraidas as eventuais saídas e acrescido das eventuais entradas",IF('Recursos Humanos'!E51<>'Recursos Humanos'!E10,"O número de TÉCNICOS SUPERIORES homens com o vinculo por tempo indeterminado, não pode ser diferente do valor registado para este grupo no ano anterior, subtraidas as eventuais saídas e acrescido das eventuais entradas",IF('Recursos Humanos'!E52<>'Recursos Humanos'!E11,"O número de TÉCNICOS SUPERIORES mulheres com o vinculo por tempo indeterminado não pode ser diferente do valor registado para este grupo no ano anterior, subtraidas as eventuais saídas e acrescido das eventuais entradas",J6)))) -> ... | J6: =IF('Recursos Humanos'!E54<>'Recursos Humanos'!E13,"O número de TÉCNICOS SUPERIORES homens com contrato a termo resolutivo não pode ser diferente do valor registado para este grupo no ano anterior, subtraidas as eventuais saídas e acrescido das eventuais entradas",IF('Recursos Humanos'!E55<>'Recursos Humanos'!E14,"O número de TÉCNICOS SUPERIORES mulheres com contrato a termo resolutivo não pode ser diferente do valor registado para este grupo no ano anterior, subtraidas as eventuais saídas e acrescido das eventuais entradas",IF('Recursos Humanos'!E57<>'Recursos Humanos'!E16,"O número de TÉCNICOS SUPERIORES homens com outros vinculos, não pode ser diferente do valor registado para este grupo no ano anterior, subtraidas as eventuais saídas e acrescido das eventuais entradas",IF('Recursos Humanos'!E58<>'Recursos Humanos'!E17,"O número de TÉCNICOS SUPERIORES mulheres com outros vinculos não pode ser diferente do valor registado para este grupo no ano anterior, subtraidas as eventuais saídas e acrescido das eventuais entradas",K6)))) -> ... | K6: =IF('Recursos Humanos'!F48<>'Recursos Humanos'!F7,"O número de Assistentes Técnicos homens com o vinculo de nomeação, não pode ser diferente do valor registado para este grupo no ano anterior, subtraidas as eventuais saídas e acrescido das eventuais entradas",IF('Recursos Humanos'!F49<>'Recursos Humanos'!F8,"O número de Assistentes Técnicos mulheres com o vinculo de nomeação, não pode ser diferente do valor registado para este grupo no ano anterior, subtraidas as eventuais saídas e acrescido das eventuais entradas",IF('Recursos Humanos'!F51<>'Recursos Humanos'!F10,"O número de Assistentes Técnicos homens com vinculo por tempo indeterminado, não pode ser diferente do valor registado para este grupo no ano anterior, subtraidas as eventuais saídas e acrescido das eventuais entradas",IF('Recursos Humanos'!F52<>'Recursos Humanos'!F11,"O número de Assistentes Técnicos mulheres com vinculo por tempo indeterminado não pode ser diferente do valor registado para este grupo no ano anterior, subtraidas as eventuais saídas e acrescido das eventuais entradas",L6)))) -> ... | L6: =IF('Recursos Humanos'!F54<>'Recursos Humanos'!F13,"O número de Assistentes Técnicos homens com contrato a termo resolutivo não pode ser diferente do valor registado para este grupo no ano anterior, subtraidas as eventuais saídas e acrescido das eventuais entradas",IF('Recursos Humanos'!F55<>'Recursos Humanos'!F14,"O número de Assistentes Técnicos mulheres com contrato a termo resolutivo não pode ser diferente do valor registado para este grupo no ano anterior, subtraidas as eventuais saídas e acrescido das eventuais entradas",IF('Recursos Humanos'!F57<>'Recursos Humanos'!F16,"O número de Assistentes Técnicos homens com outros vinculos, não pode ser diferente do valor registado para este grupo no ano anterior, subtraidas as eventuais saídas e acrescido das eventuais entradas",IF('Recursos Humanos'!F58<>'Recursos Humanos'!F17,"O número de Assistentes Técnicos mulheres com outros vinculos não pode ser diferente do valor registado para este grupo no ano anterior, subtraidas as eventuais saídas e acrescido das eventuais entradas",N6)))) -> ... | M6: ver | N6: =IF('Recursos Humanos'!G48<>'Recursos Humanos'!G7,"O número de Assistentes Operacionais homens com o vinculo de nomeação, não pode ser diferente do valor registado para este grupo no ano anterior, subtraidas as eventuais saídas e acrescido das eventuais entradas",IF('Recursos Humanos'!G49<>'Recursos Humanos'!G8,"O número de Assistentes Operacionais mulheres com o vinculo de nomeação, não pode ser diferente do valor registado para este grupo no ano anterior, subtraidas as eventuais saídas e acrescido das eventuais entradas",IF('Recursos Humanos'!G51<>'Recursos Humanos'!G10,"O número de Assistentes Operacionais homens com vinculo por tempo indeterminado, não pode ser diferente do valor registado para este grupo no ano anterior, subtraidas as eventuais saídas e acrescido das eventuais entradas",IF('Recursos Humanos'!G52<>'Recursos Humanos'!G11,"O número de Assistentes Operacionais mulheres com vinculo por tempo indeterminado não pode ser diferente do valor registado para este grupo no ano anterior, subtraidas as eventuais saídas e acrescido das eventuais entradas",O6)))) -> ... | O6: =IF('Recursos Humanos'!G54<>'Recursos Humanos'!G13,"O número de Assistentes Operacionais homens com contrato a termo resolutivo não pode ser diferente do valor registado para este grupo no ano anterior, subtraidas as eventuais saídas e acrescido das eventuais entradas",IF('Recursos Humanos'!G55<>'Recursos Humanos'!G14,"O número de Assistentes Operacionais mulheres com contrato a termo resolutivo não pode ser diferente do valor registado para este grupo no ano anterior, subtraidas as eventuais saídas e acrescido das eventuais entradas",IF('Recursos Humanos'!G57<>'Recursos Humanos'!G16,"O número de Assistentes Operacionais homens com outros vinculos, não pode ser diferente do valor registado para este grupo no ano anterior, subtraidas as eventuais saídas e acrescido das eventuais entradas",IF('Recursos Humanos'!G58<>'Recursos Humanos'!G17,"O número de Assistentes Operacionais mulheres com outros vinculos não pode ser diferente do valor registado para este grupo no ano anterior, subtraidas as eventuais saídas e acrescido das eventuais entradas",P6)))) -> ... | P6: =IF('Recursos Humanos'!H48<>'Recursos Humanos'!H7,"O número de trabalhadores de Carreiras e Categorias Subsistentes homens com o vinculo de nomeação, não pode ser diferente do valor registado para este grupo no ano anterior, subtraidas as eventuais saídas e acrescido das eventuais entradas",IF('Recursos Humanos'!H49<>'Recursos Humanos'!H8,"O número de trabalhadores de Carreiras e Categorias Subsistentes mulheres com o vinculo de nomeação, não pode ser diferente do valor registado para este grupo no ano anterior, subtraidas as eventuais saídas e acrescido das eventuais entradas",IF('Recursos Humanos'!H51<>'Recursos Humanos'!H10,"O número de trabalhadores de Carreiras e Categorias Subsistentes homens com vinculo por tempo indeterminado, não pode ser diferente do valor registado para este grupo no ano anterior, subtraidas as eventuais saídas e acrescido das eventuais entradas",IF('Recursos Humanos'!H52<>'Recursos Humanos'!H11,"O número de trabalhadores de Carreiras e Categorias Subsistentes mulheres com vinculo por tempo indeterminado não pode ser diferente do valor registado para este grupo no ano anterior, subtraidas as eventuais saídas e acrescido das eventuais entradas",Q6)))) -> ... | Q6: =IF('Recursos Humanos'!H54<>'Recursos Humanos'!H13,"O número de Carreiras e Categorias Subsistentes homens com contrato a termo resolutivo não pode ser diferente do valor registado para este grupo no ano anterior, subtraidas as eventuais saídas e acrescido das eventuais entradas",IF('Recursos Humanos'!H55<>'Recursos Humanos'!H14,"O número de Carreiras e Categorias Subsistentes mulheres com contrato a termo resolutivo não pode ser diferente do valor registado para este grupo no ano anterior, subtraidas as eventuais saídas e acrescido das eventuais entradas",IF('Recursos Humanos'!H57<>'Recursos Humanos'!H16,"O número de trabalhadores de Carreiras e Categorias Subsistentes homens com outros vinculos, não pode ser diferente do valor registado para este grupo no ano anterior, subtraidas as eventuais saídas e acrescido das eventuais entradas",IF('Recursos Humanos'!H58<>'Recursos Humanos'!H17,"O número de trabalhadores de Carreiras e Categorias Subsistentes mulheres com outros vinculos não pode ser diferente do valor registado para este grupo no ano anterior, subtraidas as eventuais saídas e acrescido das eventuais entradas",R6)))) -> ... | R6: =IF('Recursos Humanos'!I48<>'Recursos Humanos'!I7,"O número de trabalhadores de Carreiras e Corpos Especiais homens com o vinculo de nomeação, não pode ser diferente do valor registado para este grupo no ano anterior, subtraidas as eventuais saídas e acrescido das eventuais entradas",IF('Recursos Humanos'!I49<>'Recursos Humanos'!I8,"O número de trabalhadores de Carreiras e Corpos Especiais mulheres com o vinculo de nomeação, não pode ser diferente do valor registado para este grupo no ano anterior, subtraidas as eventuais saídas e acrescido das eventuais entradas",IF('Recursos Humanos'!I51<>'Recursos Humanos'!I10,"O número de trabalhadores de Carreiras e Corpos Especiais homens com vinculo por tempo indeterminado, não pode ser diferente do valor registado para este grupo no ano anterior, subtraidas as eventuais saídas e acrescido das eventuais entradas",IF('Recursos Humanos'!I52<>'Recursos Humanos'!I11,"O número de trabalhadores de Carreiras e Corpos Especiais mulheres com vinculo por tempo indeterminado não pode ser diferente do valor registado para este grupo no ano anterior, subtraidas as eventuais saídas e acrescido das eventuais entradas",S6)))) -> ... | S6: =IF('Recursos Humanos'!I54<>'Recursos Humanos'!I13,"O número de Carreiras e Corpos Especiais homens com contrato a termo resolutivo não pode ser diferente do valor registado para este grupo no ano anterior, subtraidas as eventuais saídas e acrescido das eventuais entradas",IF('Recursos Humanos'!I55<>'Recursos Humanos'!I14,"O número de Carreiras e Corpos Especiais mulheres com contrato a termo resolutivo não pode ser diferente do valor registado para este grupo no ano anterior, subtraidas as eventuais saídas e acrescido das eventuais entradas",IF('Recursos Humanos'!I57<>'Recursos Humanos'!I16,"O número de trabalhadores de Carreiras e Corpos Especiais homens com outros vinculos, não pode ser diferente do valor registado para este grupo no ano anterior, subtraidas as eventuais saídas e acrescido das eventuais entradas",IF('Recursos Humanos'!I58<>'Recursos Humanos'!I17,"O número de trabalhadores de Carreiras e Corpos Especiais mulheres com outros vinculos não pode ser diferente do valor registado para este grupo no ano anterior, subtraidas as eventuais saídas e acrescido das eventuais entradas",T6)))) -> ... | T6: =IF('Recursos Humanos'!L48<>'Recursos Humanos'!L7,"O número de Docentes homens com nomeação, não pode ser diferente do valor registado para este grupo no ano anterior, subtraidas as eventuais saídas e acrescido das eventuais entradas",IF('Recursos Humanos'!L49<>'Recursos Humanos'!L8,"O número de Docentes mulheres com nomeação, não pode ser diferente do valor registado para este grupo no ano anterior, subtraidas as eventuais saídas e acrescido das eventuais entradas",IF('Recursos Humanos'!L51<>'Recursos Humanos'!L10,"O número de Docentes homens com contrato por tempo indeterminado, não pode ser diferente do valor registado para este grupo no ano anterior, subtraidas as eventuais saídas e acrescido das eventuais entradas",IF('Recursos Humanos'!L52<>'Recursos Humanos'!L11,"O número de Docentes mulheres com contrato por tempo indeterminado não pode ser diferente do valor registado para este grupo no ano anterior, subtraidas as eventuais saídas e acrescido das eventuais entradas",IF('Recursos Humanos'!L54<>'Recursos Humanos'!L13,"O número de Docentes homens com contrato a termo resolutivo não pode ser diferente do valor registado para este grupo no ano anterior, subtraidas as eventuais saídas e acrescido das eventuais entradas",IF('Recursos Humanos'!L55<>'Recursos Humanos'!L14,"O número de Docentes mulheres com contrato a termo resolutivo não pode ser diferente do valor registado para este grupo no ano anterior, subtraidas as eventuais saídas e acrescido das eventuais entradas",U6)))))) -> ... | U6: =IF('Recursos Humanos'!L57<>'Recursos Humanos'!L16,"O número de Docentes homens com outros vinculos, não pode ser diferente do valor registado para este grupo no ano anterior, subtraidas as eventuais saídas e acrescido das eventuais entradas",IF('Recursos Humanos'!L58<>'Recursos Humanos'!L17,"O número de Docentes mulheres com outros vinculos não pode ser diferente do valor registado para este grupo no ano anterior, subtraidas as eventuais saídas e acrescido das eventuais entradas",V6)) -> ... | V6: =IF('Recursos Humanos'!M48<>'Recursos Humanos'!M7,"O número de trabalhadores de Outras carreiras, homens com o vinculo de nomeação, não pode ser diferente do valor registado para este grupo no ano anterior, subtraidas as eventuais saídas e acrescido das eventuais entradas",IF('Recursos Humanos'!M49<>'Recursos Humanos'!M8,"O número de trabalhadores de Outras carreiras, mulheres com o vinculo de nomeação, não pode ser diferente do valor registado para este grupo no ano anterior, subtraidas as eventuais saídas e acrescido das eventuais entradas",IF('Recursos Humanos'!M51<>'Recursos Humanos'!M10,"O número de trabalhadores de Outras carreiras, homens com vinculo por tempo indeterminado, não pode ser diferente do valor registado para este grupo no ano anterior, subtraidas as eventuais saídas e acrescido das eventuais entradas",IF('Recursos Humanos'!M52<>'Recursos Humanos'!M11,"O número de trabalhadores de Outras carreiras, mulheres com vinculo por tempo indeterminado não pode ser diferente do valor registado para este grupo no ano anterior, subtraidas as eventuais saídas e acrescido das eventuais entradas",IF('Recursos Humanos'!M57<>'Recursos Humanos'!M16,"O número de trabalhadores de Outras carreiras, homens com outros vinculos, não pode ser diferente do valor registado para este grupo no ano anterior, subtraidas as eventuais saídas e acrescido das eventuais entradas",IF('Recursos Humanos'!M58<>'Recursos Humanos'!M17,"O número de trabalhadores de Outras carreiras, mulheres com outros vinculos não pode ser diferente do valor registado para este grupo no ano anterior, subtraidas as eventuais saídas e acrescido das eventuais entradas","...")))))) -> ...
E7: =F6 -> ...
B9: Quadro 1.2 Estrutura etária | E9: =IF(E10="...","Preenchido",IF(E10="Por favor preencha todas as células em aberto. Se não existirem ocorrências a registar deverá introduzir o número zero.","Por preencher",IF(AND(OR(E10="Por favor confirme a existência de trabalhadores com menos de 18 anos.",E10="Por favor confirme a existência de trabalhadores com mais de 70 anos."),'Estrut. Etária'!I4="OK"),"Preenchido com reservas","Preenchido com erros!"))) -> Preenchido | G9: =IF('Estrut. Etária'!H4<>0,"Por favor preencha todas as células em aberto. Se não existirem ocorrências a registar deverá introduzir o número zero.",IF('Estrut. Etária'!I4="ERROH","O total de 'HOMENS' deste quadro deverá coincidir com o total apresentado no ponto 1.1.1 do quadro 1.",IF('Estrut. Etária'!I4="ERROM","O total de 'MULHERES' deste quadro deverá coincidir com o total apresentado no ponto 1.1.1 do quadro 1.",IF('Estrut. Etária'!K4="ERRO18","Por favor confirme a existência de trabalhadores com menos de 18 anos.",IF('Estrut. Etária'!K15="ERRO70","Por favor confirme a existência de trabalhadores com mais de 70 anos.","..."))))) -> ... | M9: ver
E10: =G9 -> ...
B12: Quadro 1.4 Estrutura de antiguidades | E12: =IF(E13="...","Preenchido",IF(E13="Por favor preencha todas as células em aberto. Se não existirem ocorrências a registar deverá introduzir o número zero.","Por preencher","Preenchido com erros!")) -> Preenchido | G12: =IF('Estrut. Antiguidades'!R4<>0,"Por favor preencha todas as células em aberto. Se não existirem ocorrências a registar deverá introduzir o número zero.",IF('Estrut. Antiguidades'!S4="ERROH","O total de 'HOMENS' deste quadro deverá coincidir com o total apresentado no ponto 1.1.1 do quadro 1.",IF('Estrut. Antiguidades'!S4="ERROM","O total de 'MULHERES' deste quadro deverá coincidir com o total apresentado no ponto 1.1.1 do quadro 1.",IF('Estrut. Antiguidades'!S11="ERRO","O total de homens e mulheres indicados neste mapa não coincide com o total de trabalhadores apresentado no mesmo",H12)))) -> ... | H12: =IF('Estrut. Antiguidades'!F15="ERRO","O total de pessoal 'DIRIGENTE' deste quadro deverá coincidir com o total apresentado no quadro 1.",IF('Estrut. Antiguidades'!G15="ERRO","O total de trabalhadores da carreira de 'TÉCNICO SUPERIOR' deste quadro deverá coincidir com o total apresentado no quadro 1.",IF('Estrut. Antiguidades'!H15="ERRO","O total de trabalhadores da carreira de 'ASSISTENTE TÉCNICO' deste quadro deverá coincidir com o total apresentado no quadro 1.",IF('Estrut. Antiguidades'!I15="ERRO","O total de trabalhadores da carreira de 'ASSISTENTE OPERACIONAL' deste quadro deverá coincidir com o total apresentado no quadro 1.",IF('Estrut. Antiguidades'!J15="ERRO","O total de trabalhadores das 'CARREIRAS E CATEGORIAS SUBSISTENTES' deste quadro deverá coincidir com o total apresentado no quadro 1.",I12))))) -> ... | I12: =IF('Estrut. Antiguidades'!K15="ERRO","O total de pessoal 'CARREIRAS E CORPOS ESPECIAIS' deste quadro deverá coincidir com o total apresentado no quadro 1.",IF('Estrut. Antiguidades'!N15="ERRO","O total de trabalhadores da carreira 'DOCENTE' deste quadro deverá coincidir com o total apresentado no quadro 1.",IF('Estrut. Antiguidades'!O15="ERRO","O total de 'OUTROS' deste quadro deverá coincidir com o total apresentado no quadro 1.","..."))) -> ... | M12: ver
E13: =G12 -> ...
B15: Quadro 1.6 Trabalhadores estrangeiros | E15: =IF(E16="...","Preenchido",IF(E16="Por favor preencha todas as células em aberto. Se não existirem ocorrências a registar deverá introduzir o número zero.","Por preencher","Preenchido com reservas")) -> Preenchido | G15: =IF('Trab. Estrangeiros'!G4<>0,"Por favor preencha todas as células em aberto. Se não existirem ocorrências a registar deverá introduzir o número zero.",IF('Trab. Estrangeiros'!H4="ERRO","Por favor confirme a existência de trabalhadores com nacionalidade dos PALOP, Brasil ou Outros países.","...")) -> ... | M15: ver
E16: =G15 -> ...
B18: Quadro 1.7 Trabalhadores deficientes | C18: ver | E18: =IF(E19="...","Preenchido",IF(E19="Por favor preencha todas as células em aberto. Se não existirem ocorrências a registar deverá introduzir o número zero.","Por preencher","Preenchido com erros!")) -> Preenchido | G18: =IF('Trab. Estrangeiros'!G8<>0,"Por favor preencha todas as células em aberto. Se não existirem ocorrências a registar deverá introduzir o número zero.","...") -> ... | M18: ver
E19: =G18 -> ...
B21: Quadro 1.8 Estrutura habilitacional | E21: =IF(E22="...","Preenchido",IF(E22="Por favor preencha todas as células em aberto. Se não existirem ocorrências a registar deverá introduzir o número zero.","Por preencher",IF(AND(E22="Por favor confirme a existência de trabalhadores com menos de 4 anos de escolaridade.",'Estrut. Habilitacional'!I4="OK"),"Preenchido com reservas","Preenchido com erros!"))) -> Preenchido | G21: =IF('Estrut. Habilitacional'!H4<>0,"Por favor preencha todas as células em aberto. Se não existirem ocorrências a registar deverá introduzir o número zero.",IF('Estrut. Habilitacional'!I4="ERROH","O total de 'HOMENS' deste quadro deverá coincidir com o total apresentado no ponto 1.1.1 do quadro 1.",IF('Estrut. Habilitacional'!I4="ERROM","O total de 'MULHERES' deste quadro deverá coincidir com o total apresentado no ponto 1.1.1 do quadro 1.",IF('Estrut. Habilitacional'!J4="ERRO4","Por favor confirme a existência de trabalhadores com menos de 4 anos de escolaridade.",IF('Estrut. Habilitacional'!K4="ERROH","O total de 'HOMENS' com habilitação de nível superior deverá ser pelo menos igual ao número de 'HOMENS' pertencentes a carreiras paras as quais seja exigida a posse de habilitação de nível superior",IF('Estrut. Habilitacional'!K4="ERROM","O total de 'MULHERES' com habilitação de nível superior deverá ser pelo menos igual ao número de 'MULHERES' pertencentes a carreiras paras as quais seja exigida a posse de habilitação de nível superior","...")))))) -> ... | M21: ver
E22: =G21 -> ...
B24: Quadro 1.9 Admissões | E24: =IF(E25="...","Preenchido",IF(E25="Por favor preencha todas as células em aberto. Se não existirem ocorrências a registar deverá introduzir o número zero.","Por preencher","Preenchido com erros!")) -> Preenchido | G24: =IF(Admissões!P4<>0,"Por favor preencha todas as células em aberto. Se não existirem ocorrências a registar deverá introduzir o número zero.",IF(Admissões!O19="ERRO","Ao fazer referência a 'OUTROS' no ponto 1.9.4., deverá obrigatoriamente discriminá-las no campo destinado às anotações.",H24)) -> ... | H24: =IF(Admissões!D17="ERROH","O total de 'HOMENS' da carreira 'DIRIGENTE' deste quadro não poderá ser superior ao total apresentado no quadro 1, sem que existam saídas no mesmo ano civil que o justifiquem.",IF(Admissões!D17="ERROM","O total de 'MULHERES' da carreira 'DIRIGENTE' deste quadro não poderá ser superior ao total apresentado no quadro 1, sem que existam saídas no mesmo ano civil que o justifiquem.",IF(Admissões!E17="ERROH","O total de 'HOMENS' da carreira 'TÉCNICO SUPERIOR' deste quadro não poderá ser superior ao total apresentado no quadro 1, sem que existam saídas no mesmo ano civil que o justifiquem.",IF(Admissões!E17="ERROM","O total de 'MULHERES' da carreira 'TÉCNICO SUPERIOR' deste quadro não poderá ser superior ao total apresentado no quadro 1, sem que existam saídas no mesmo ano civil que o justifiquem.",IF(Admissões!F17="ERROH","O total de 'HOMENS' da carreira 'ASSISTENTE TÉCNICO' deste quadro não poderá ser superior ao total apresentado no quadro 1, sem que existam saídas no mesmo ano civil que o justifiquem.",IF(Admissões!F17="ERROM","O total de 'MULHERES' da carreira 'ASSISTENTE TÉCNICO' deste quadro não poderá ser superior ao total apresentado no quadro 1, sem que existam saídas no mesmo ano civil que o justifiquem.",I24)))))) -> ... | I24: =IF(Admissões!G17="ERROH","O total de 'HOMENS' da carreira 'ASSISTENTE OPERACIONAL' deste quadro não poderá ser superior ao total apresentado no quadro 1, sem que existam saídas no mesmo ano civil que o justifiquem.",IF(Admissões!G17="ERROM","O total de 'MULHERES' da carreira 'ASSISTENTE OPERACIONAL' deste quadro não poderá ser superior ao total apresentado no quadro 1, sem que existam saídas no mesmo ano civil que o justifiquem.",IF(Admissões!H17="ERROH","O total de 'HOMENS' das 'CARREIRAS E CATEGORIAS SUBSISTENTES' deste quadro não poderá ser superior ao total apresentado no quadro 1, sem que existam saídas no mesmo ano civil que o justifiquem.",IF(Admissões!H17="ERROM","O total de 'MULHERES' das 'CARREIRAS E CATEGORIAS SUBSISTENTES' deste quadro não poderá ser superior ao total apresentado no quadro 1, sem que existam saídas no mesmo ano civil que o justifiquem.",IF(Admissões!I17="ERROH","O total de 'HOMENS' das 'CARREIRAS E CORPOS ESPECIAIS' deste quadro não poderá ser superior ao total apresentado no quadro 1, sem que existam saídas no mesmo ano civil que o justifiquem.",IF(Admissões!I17="ERROM","O total de 'MULHERES' das 'CARREIRAS E CORPOS ESPECIAIS' deste quadro não poderá ser superior ao total apresentado no quadro 1, sem que existam saídas no mesmo ano civil que o justifiquem.",J24)))))) -> ... | J24: =IF(Admissões!L17="ERROH","O total de 'HOMENS' da 'CARREIRA DOCENTE' deste quadro não poderá ser superior ao total apresentado no quadro 1, sem que existam saídas no mesmo ano civil que o justifiquem.",IF(Admissões!L17="ERROM","O total de 'MULHERES' da 'CARREIRA DOCENTE' deste quadro não poderá ser superior ao total apresentado no quadro 1, sem que existam saídas no mesmo ano civil que o justifiquem.",IF(Admissões!M17="ERROH","O total de 'HOMENS' de 'OUTROS' deste quadro não poderá ser superior ao total apresentado no quadro 1, sem que existam saídas no mesmo ano civil que o justifiquem.",IF(Admissões!M17="ERROM","O total de 'MULHERES' de 'OUTROS' deste quadro não poderá ser superior ao total apresentado no quadro 1, sem que existam saídas no mesmo ano civil que o justifiquem.","...")))) -> ... | M24: ver
E25: =G24 -> ...
B27: Quadro 1.10 Saídas | E27: =IF(E28="...","Preenchido",IF(E28="Por favor preencha todas as células em aberto. Se não existirem ocorrências a registar deverá introduzir o número zero.","Por preencher","Preenchido com erros!")) -> Preenchido | G27: =IF(Saídas!P4<>0,"Por favor preencha todas as células em aberto. Se não existirem ocorrências a registar deverá introduzir o número zero.",IF(Saídas!O19="ERRO","Ao fazer referência a 'OUTROS' no ponto 1.10.4., deverá obrigatoriamente discriminá-las no campo destinado às anotações.","...")) -> ... | M27: ver
E28: =G27 -> ...
B30: Quadro 1.11 Saídas nomeados | E30: =IF(E31="...","Preenchido",IF(E31="Por favor preencha todas as células em aberto. Se não existirem ocorrências a registar deverá introduzir o número zero.","Por preencher","Preenchido com erros!")) -> Preenchido | G30: =IF('Saídas Nomeados'!O4<>0,"Por favor preencha todas as células em aberto. Se não existirem ocorrências a registar deverá introduzir o número zero.",IF('Saídas Nomeados'!C13="ERRO","O total da carreira 'DIRIGENTE' deste quadro deverá ser coincidente com o total do ponto 1.10.1 do quadro 1.10 (Saídas)",IF('Saídas Nomeados'!D13="ERRO","O total da carreira 'TÉCNICO SUPERIOR' deste quadro deverá ser coincidente com o total do ponto 1.10.1 do quadro 1.10 (Saídas)",IF('Saídas Nomeados'!E13="ERRO","O total da carreira 'ASSISTENTE TÉCNICO' deste quadro deverá ser coincidente com o total do ponto 1.10.1 do quadro 1.10 (Saídas)",IF('Saídas Nomeados'!F13="ERRO","O total da carreira 'ASSISTENTE OPERACIONAL' deste quadro deverá ser coincidente com o total do ponto 1.10.1 do quadro 1.10 (Saídas)",H30))))) -> ... | H30: =IF('Saídas Nomeados'!G13="ERRO","O total das 'CARREIRAS E CATEGORIAS SUBSISTENTES ' deste quadro deverá ser coincidente com o total do ponto 1.10.1 do quadro 1.10 (Saídas)",IF('Saídas Nomeados'!H13="ERRO","O total das 'CARREIRAS E CORPOS ESPECIAIS' deste quadro deverá ser coincidente com o total do ponto 1.10.1 do quadro 1.10 (Saídas)",IF('Saídas Nomeados'!K13="ERRO","O total da 'CARREIRA DOCENTE' deste quadro deverá ser coincidente com o total do ponto 1.10.1 do quadro 1.10 (Saídas)",IF('Saídas Nomeados'!L13="ERRO","O total de 'OUTROS' deste quadro deverá ser coincidente com o total do ponto 1.10.1 do quadro 1.10 (Saídas)",IF('Saídas Nomeados'!N15="ERRO","Ao fazer referência a 'OUTROS' no ponto 1.11.8., deverá obrigatoriamente discriminá-las no campo destinado às anotações.","..."))))) -> ... | M30: ver
E31: =G30 -> ...
B33: Quadro 1.12 Saídas contratos | E33: =IF(E34="...","Preenchido",IF(E34="Por favor preencha todas as células em aberto. Se não existirem ocorrências a registar deverá introduzir o número zero.","Por preencher","Preenchido com erros!")) -> Preenchido | G33: =IF('Saídas Contratados'!O4<>0,"Por favor preencha todas as células em aberto. Se não existirem ocorrências a registar deverá introduzir o número zero.",IF('Saídas Contratados'!C13="ERRO","O total da carreira 'DIRIGENTE' deste quadro deverá ser coincidente com o somatório dos pontos 1.10.2 e 1.10.3 do quadro 1.10 (Saídas)",IF('Saídas Contratados'!D13="ERRO","O total da carreira 'TÉCNICO SUPERIOR' deste quadro deverá ser coincidente com o somatório dos pontos 1.10.2 e 1.10.3 do quadro 1.10 (Saídas)",IF('Saídas Contratados'!E13="ERRO","O total da carreira 'ASSISTENTE TÉCNICO' deste quadro deverá ser coincidente com o somatório dos pontos 1.10.2 e 1.10.3 do quadro 1.10 (Saídas)",IF('Saídas Contratados'!F13="ERRO","O total da carreira 'ASSISTENTE OPERACIONAL' deste quadro deverá ser coincidente com o somatório dos pontos 1.10.2 e 1.10.3 do quadro 1.10 (Saídas)",H33))))) -> ... | H33: =IF('Saídas Contratados'!G13="ERRO","O total das 'CARREIRAS E CATEGORIAS SUBSISTENTES ' deste quadro deverá ser coincidente com o somatório dos pontos 1.10.2 e 1.10.3 do quadro 1.10 (Saídas)",IF('Saídas Contratados'!H13="ERRO","O total das 'CARREIRAS E CORPOS ESPECIAIS' deste quadro deverá ser coincidente com o somatório dos pontos 1.10.2 e 1.10.3 do quadro 1.10 (Saídas)",IF('Saídas Contratados'!K13="ERRO","O total da 'CARREIRA DOCENTE' deste quadro deverá ser coincidente com o somatório dos pontos 1.10.2 e 1.10.3 do quadro 1.10 (Saídas)",IF('Saídas Contratados'!L13="ERRO","O total de 'OUTROS' deste quadro deverá ser coincidente com o somatório dos pontos 1.10.2 e 1.10.3 do quadro 1.10 (Saídas)",IF('Saídas Contratados'!N15="ERRO","Ao fazer referência a 'OUTROS' no ponto 1.12.5., deverá obrigatoriamente discriminá-las no campo destinado às anotações.","..."))))) -> ... | M33: ver
E34: =G33 -> ...
B36: Quadro 1.13 Postos de trabalho não ocupados | E36: =IF(E37="...","Preenchido",IF(E37="Por favor preencha todas as células em aberto. Se não existirem ocorrências a registar deverá introduzir o número zero.","Por preencher","Preenchido com erros!")) -> Preenchido | G36: =IF('Postos de Trabalho'!F4<>0,"Por favor preencha todas as células em aberto. Se não existirem ocorrências a registar deverá introduzir o número zero.",IF('Postos de Trabalho'!E10="ERRO","Ao fazer referência a 'OUTRAS' no ponto 1.13.4., deverá obrigatoriamente discriminá-las no campo destinado às anotações.","...")) -> ... | M36: ver
E37: =G36 -> ...
B39: Quadro 1.14 Alterações remuneratórias / promoções | E39: =IF(E40="...","Preenchido",IF(E40="Por favor preencha todas as células em aberto. Se não existirem ocorrências a registar deverá introduzir o número zero.","Por preencher",IF(E40="Por favor confirme a existência de promoções em carreiras não subsistentes.","Preenchido com reservas","Preenchido com erros!"))) -> Preenchido | G39: =IF('Alter. Posic. e Promoções'!P4<>0,"Por favor preencha todas as células em aberto. Se não existirem ocorrências a registar deverá introduzir o número zero.",IF('Alter. Posic. e Promoções'!Q4="ERRO","Por favor confirme a existência de promoções em carreiras não subsistentes.","...")) -> ... | M39: ver
E40: =G39 -> ...
B42: Quadro 1.15 Modalidades de horário | E42: =IF(E43="...","Preenchido",IF(E43="Por favor preencha todas as células em aberto. Se não existirem ocorrências a registar deverá introduzir o número zero.","Por preencher",IF(E43="Por favor confirme a existência de elementos da carreira 'DIRIGENTE' sem isenção de horário.","Preenchido com reservas","Preenchido com erros!"))) -> Preenchido | G42: =IF('Modalidade de Horário'!O4<>0,"Por favor preencha todas as células em aberto. Se não existirem ocorrências a registar deverá introduzir o número zero.",H42) -> ... | H42: =IF('Modalidade de Horário'!C15="ERRO","O total de pessoal 'DIRIGENTE' deste quadro deverá coincidir com o total apresentado no quadro 1.",IF('Modalidade de Horário'!D15="ERRO","O total de trabalhadores da carreira de 'TÉCNICO SUPERIOR' deste quadro deverá coincidir com o total apresentado no quadro 1.",IF('Modalidade de Horário'!E15="ERRO","O total de trabalhadores da carreira de 'ASSISTENTE TÉCNICO' deste quadro deverá coincidir com o total apresentado no quadro 1.",IF('Modalidade de Horário'!F15="ERRO","O total de trabalhadores da carreira de 'ASSISTENTE OPERACIONAL' deste quadro deverá coincidir com o total apresentado no quadro 1.",IF('Modalidade de Horário'!G15="ERRO","O total de trabalhadores das 'CARREIRAS E CATEGORIAS SUBSISTENTES' deste quadro deverá coincidir com o total apresentado no quadro 1.",I42))))) -> ... | I42: =IF('Modalidade de Horário'!H15="ERRO","O total de pessoal 'CARREIRAS E CORPOS ESPECIAIS' deste quadro deverá coincidir com o total apresentado no quadro 1.",IF('Modalidade de Horário'!K15="ERRO","O total de trabalhadores da carreira 'DOCENTE' deste quadro deverá coincidir com o total apresentado no quadro 1.",IF('Modalidade de Horário'!L15="ERRO","O total de 'OUTROS' deste quadro deverá coincidir com o total apresentado no quadro 1.",IF('Modalidade de Horário'!P4="ERROISE","Por favor confirme a existência de elementos da carreira 'DIRIGENTE' sem isenção de horário.",IF('Modalidade de Horário'!Q4="ERRODOC","O pessoal 'DOCENTE' deverá ser incluído no ponto 1.15.1 (Horário rígido).","..."))))) -> ... | M42: ver
E43: =G42 -> ...
B45: Quadro 1.16 Trabalho extraordinário | E45: =IF(E46="...","Preenchido",IF(E46="Por favor preencha todas as células em aberto. Se não existirem ocorrências a registar deverá introduzir o número zero.","Por preencher","Preenchido com erros!")) -> Preenchido | G45: =IF('Trabalho Extraord.'!F4<>0,"Por favor preencha todas as células em aberto. Se não existirem ocorrências a registar deverá introduzir o número zero.","...") -> ... | M45: ver
E46: =G45 -> ...
B48: Quadro 1.17 Ausências ao trabalho | E48: =IF(E49="...","Preenchido",IF(E49="Por favor preencha todas as células em aberto. Se não existirem ocorrências a registar deverá introduzir o número zero.","Por preencher","Preenchido com erros!")) -> Preenchido | G48: =IF('Ausências Trabalho'!P4<>0,"Por favor preencha todas as células em aberto. Se não existirem ocorrências a registar deverá introduzir o número zero.",IF('Ausências Trabalho'!P25="ERRO","Por favor confirme se os trabalhadores indicados no ponto 1.15.6 (Modalidades de horário) nunca tiveram ausências ao abrigo deste regime",IF('Ausências Trabalho'!O48="ERRO","Ao fazer referência a 'OUTRAS' no ponto 1.17.13., deverá obrigatoriamente discriminá-las no campo destinado às anotações.",H48))) -> ... | H48: =IF('Ausências Trabalho'!D46="ERROH","Não poderá indicar ausências de 'HOMENS' da carreira 'DIRIGENTE' neste quadro quando o total do quadro 1. é '0'.",IF('Ausências Trabalho'!D46="ERROM","Não poderá indicar ausências de 'MULHERES' da carreira 'DIRIGENTE' neste quadro quando o total do quadro 1. é '0'.",IF('Ausências Trabalho'!E46="ERROH","Não poderá indicar ausências de 'HOMENS' da carreira 'TÉCNICO SUPERIOR' neste quadro quando o total do quadro 1. é '0'.",IF('Ausências Trabalho'!E46="ERROM","Não poderá indicar ausências de 'MULHERES' da carreira 'TÉCNICO SUPERIOR' neste quadro quando o total do quadro 1. é '0'.",IF('Ausências Trabalho'!F46="ERROH","Não poderá indicar ausências de 'HOMENS' da carreira 'ASSISTENTE TÉCNICO' neste quadro quando o total do quadro 1. é '0'.",IF('Ausências Trabalho'!F46="ERROM","Não poderá indicar ausências de 'MULHERES' da carreira 'ASSISTENTE TÉCNICO' neste quadro quando o total do quadro 1. é '0'.",I48)))))) -> ... | I48: =IF('Ausências Trabalho'!G46="ERROH","Não poderá indicar ausências de 'HOMENS' da carreira 'ASSISTENTE OPERACIONAL'neste quadro quando o total do quadro 1. é '0'.",IF('Ausências Trabalho'!G46="ERROM","Não poderá indicar ausências de 'MULHERES' da carreira 'ASSISTENTE OPERACIONAL'neste quadro quando o total do quadro 1. é '0'.",IF('Ausências Trabalho'!H46="ERROH","Não poderá indicar ausências de 'HOMENS' das 'CARREIRAS E CATEGORIAS SUBSISTENTES' neste quadro quando o total do quadro 1. é '0'.",IF('Ausências Trabalho'!H46="ERROM","Não poderá indicar ausências de 'MULHERES' das 'CARREIRAS E CATEGORIAS SUBSISTENTES' neste quadro quando o total do quadro 1. é '0'.",J48)))) -> ... | J48: =IF('Ausências Trabalho'!I46="ERROH","Não poderá indicar ausências de 'HOMENS' das 'CARREIRAS E CORPOS ESPECIAIS' neste quadro quando o total do quadro 1. é '0'.",IF('Ausências Trabalho'!I46="ERROM","Não poderá indicar ausências de 'MULHERES' das 'CARREIRAS E CORPOS ESPECIAIS' neste quadro quando o total do quadro 1. é '0'.",IF('Ausências Trabalho'!L46="ERROH","Não poderá indicar ausências de 'HOMENS' da 'CARREIRA DOCENTE' neste quadro quando o total do quadro 1. é '0'.",IF('Ausências Trabalho'!L46="ERROM","Não poderá indicar ausências de 'MULHERES' da 'CARREIRA DOCENTE' neste quadro quando o total do quadro 1. é '0'.",IF('Ausências Trabalho'!M46="ERROH","Não poderá indicar ausências de 'HOMENS' de 'OUTROS'neste quadro quando o total do quadro 1. é '0'.",IF('Ausências Trabalho'!M46="ERROM","Não poderá indicar ausências de 'MULHERES' de 'OUTROS'neste quadro quando o total do quadro 1. é '0'.","...")))))) -> ... | M48: ver
E49: =G48 -> ...
B51: Quadro 1.18 Horas não trabalhadas | E51: =IF(E52="...","Preenchido",IF(E52="Por favor preencha todas as células em aberto. Se não existirem ocorrências a registar deverá introduzir o número zero.","Por preencher","Preenchido com erros!")) -> Preenchido | G51: =IF('Horas Não Trabalhadas'!P4<>0,"Por favor preencha todas as células em aberto. Se não existirem ocorrências a registar deverá introduzir o número zero.","...") -> ... | M51: ver
E52: =G51 -> ...
B54: Quadro 2. Encargos com pessoal | E54: =IF(E55="...","Preenchido",IF(E55="Por favor preencha todas as células em aberto. Se não existirem ocorrências a registar deverá introduzir o número zero.","Por preencher","Preenchido com erros!")) -> Preenchido | G54: =IF('Encargos com Pessoal'!F4<>0,"Por favor preencha todas as células em aberto. Se não existirem ocorrências a registar deverá introduzir o número zero.",IF('Encargos com Pessoal'!F5="ERRO","Ao indicar horas de trabalho extraodinário no ponto 1.16.1 deverá registar os correspondentes encargos.",IF('Encargos com Pessoal'!F6="ERRO","Ao indicar horas de trabalho nocturno no ponto 1.16.4 deverá registar os correspondentes encargos.",IF('Encargos com Pessoal'!F7="ERRO","Ao indicar horas de trabalho em dia de descanso semanal, complementar e feriados no ponto 1.16.5, 1.16.6 ou 1.16.7, deverá registar os correspondentes encargos.",IF('Encargos com Pessoal'!E26="ERRO","Ao fazer referência a 'OUTROS' no ponto 2.16., deverá obrigatoriamente discriminá-los no campo destinado às anotações.","..."))))) -> ... | M54: ver
E55: =G54 -> ...
B57: Quadro 2.17.1 Leque salarial líquido | E57: =IF(E58="...","Preenchido",IF(E58="Por favor preencha todas as células em aberto. Se não existirem ocorrências a registar deverá introduzir o número zero.","Por preencher","Preenchido com erros!")) -> Preenchido | G57: =IF('Encargos com Pessoal'!F22<>0,"Por favor preencha todas as células em aberto. Se não existirem ocorrências a registar deverá introduzir o número zero.",IF('Encargos com Pessoal'!F21="ERRO","Por favor verifique os valores introduzidos nos pontos 2.17.1.1 e 2.17.1.2, uma vez que o leque salarial não deverá ser igual ou inferior a '1';","...")) -> ... | M57: ver
E58: =G57 -> ...
B60: Quadro 3.1 Acidentes em serviço | E60: =IF(E61="...","Preenchido",IF(E61="Por favor preencha todas as células em aberto. Se não existirem ocorrências a registar deverá introduzir o número zero.","Por preencher","Preenchido com erros!")) -> Preenchido | G60: =IF('Acidentes em Serviço'!L6<>0,"Por favor preencha todas as células em aberto. Se não existirem ocorrências a registar deverá introduzir o número zero.",IF('Acidentes em Serviço'!M6="ERROLOCAL1","Ao regista 'Número de acidentes com baixa' no local de trabalho deverá registar o 'Número de dias perdidos com baixa' na coluna 'Menos de 60 dias' e vice-versa.",IF('Acidentes em Serviço'!M6="ERROTRAJ1","Ao regista 'Número de acidentes com baixa' In Itinere deverá registar o 'Número de dias perdidos com baixa' na coluna 'Menos de 60 dias' e vice-versa.",IF('Acidentes em Serviço'!M6="ERROLOCAL2","Ao regista 'Número de acidentes com baixa' no local de trabalho deverá registar o 'Número de dias perdidos com baixa' na coluna 'Mais de 60 dias' e vice-versa.",IF('Acidentes em Serviço'!M6="ERROTRAJ2","Ao regista 'Número de acidentes com baixa' In Itinere deverá registar o 'Número de dias perdidos com baixa' na coluna 'Mais de 60 dias' e vice-versa.",H60))))) -> ... | H60: =IF('Acidentes em Serviço'!N6="ERROMENOS","O número de dias indicados na coluna 'Menos de 60 dias de baixa' não deve ser superior ao número de casos multiplicado por 60.",IF('Acidentes em Serviço'!N6="ERROMAIS","O número de dias indicados na coluna '60 dias ou mais de baixa' não deve ser inferior ao número de casos multiplicado por 60.","...")) -> ... | M60: ver
E61: =G60 -> ...
B63: Quadro 3.2 Doenças profissionais | E63: =IF(E64="...","Preenchido",IF(E64="Por favor preencha todas as células em aberto. Se não existirem ocorrências a registar deverá introduzir o número zero.","Por preencher","Preenchido com erros!")) -> Preenchido | G63: =IF('Doenças Profissionais'!F4<>0,"Por favor preencha todas as células em aberto. Se não existirem ocorrências a registar deverá introduzir o número zero.","...") -> ... | M63: ver
E64: =G63 -> ...
B66: Quadro 3.3 Actividades de medicina do trabalho | E66: =IF(E67="...","Preenchido",IF(E67="Por favor preencha todas as células em aberto. Se não existirem ocorrências a registar deverá introduzir o número zero.","Por preencher","Preenchido com erros!")) -> Preenchido | G66: =IF('Higiene Segurança Trab.'!E5<>0,"Por favor preencha todas as células em aberto. Se não existirem ocorrências a registar deverá introduzir o número zero.","...") -> ... | M66: ver
E67: =G66 -> ...
B69: Quadro 3.4 Comissões de higiene e segurança | E69: =IF(E70="...","Preenchido",IF(E70="Por favor preencha todas as células em aberto. Se não existirem ocorrências a registar deverá introduzir o número zero.","Por preencher","Preenchido com erros!")) -> Preenchido | G69: =IF('Higiene Segurança Trab.'!E13<>0,"Por favor preencha todas as células em aberto. Se não existirem ocorrências a registar deverá introduzir o número zero.","...") -> ... | M69: ver
E70: =G69 -> ...
B72: Quadro 3.5 Número de pessoas recolocadas | E72: =IF(E73="...","Preenchido",IF(E73="Por favor preencha todas as células em aberto. Se não existirem ocorrências a registar deverá introduzir o número zero.","Por preencher","Preenchido com erros!")) -> Preenchido | G72: =IF('Higiene Segurança Trab.'!E16<>0,"Por favor preencha todas as células em aberto. Se não existirem ocorrências a registar deverá introduzir o número zero.","...") -> ... | M72: ver
E73: =G72 -> ...
B75: Quadro 3.6 Acções em matéria de segurança | E75: =IF(E76="...","Preenchido",IF(E76="Por favor preencha todas as células em aberto. Se não existirem ocorrências a registar deverá introduzir o número zero.","Por preencher","Preenchido com erros!")) -> Preenchido | G75: =IF('Higiene Segurança Trab.'!E19<>0,"Por favor preencha todas as células em aberto. Se não existirem ocorrências a registar deverá introduzir o número zero.","...") -> ... | M75: ver
E76: =G75 -> ...
B78: Quadro 3.7 Custos com prevenção de acidentes | E78: =IF(E79="...","Preenchido",IF(E79="Por favor preencha todas as células em aberto. Se não existirem ocorrências a registar deverá introduzir o número zero.","Por preencher",IF(E79="Por favor verifique se as acções de formação e sensibilização em matéria de segurança indicadas no ponto 3.6.1 não tiveram custos.","Preenchido com reservas",IF(E79="Ao fazer referência a 'OUTROS CUSTOS' no ponto 3.7.4, deverá obrigatoriamente discriminá-los no campo destinado às anotações.","Preenchido com erros!")))) -> Preenchido | G78: =IF('Custos Prevenção Acidentes'!E4<>0,"Por favor preencha todas as células em aberto. Se não existirem ocorrências a registar deverá introduzir o número zero.",IF('Custos Prevenção Acidentes'!D10="ERRO","Ao fazer referência a 'OUTROS CUSTOS' no ponto 3.7.4, deverá obrigatoriamente discriminá-los no campo destinado às anotações.",IF('Custos Prevenção Acidentes'!F4="ALERTA","Por favor verifique se as acções de formação e sensibilização em matéria de segurança indicadas no ponto 3.6.1 não tiveram custos.","..."))) -> ... | M78: ver
E79: =G78 -> ...
B81: Quadro 4. Duração das acções de formação | E81: =IF(E82="...","Preenchido",IF(E82="Por favor preencha todas as células em aberto. Se não existirem ocorrências a registar deverá introduzir o número zero.","Por preencher","Preenchido com erros!")) -> Preenchido | G81: =IF('Formação Prof Niveis Custos'!O6<>0,"Por favor preencha todas as células em aberto. Se não existirem ocorrências a registar deverá introduzir o número zero.",IF('Formação Prof Niveis Custos'!P6="ERROINT2","Ao indicar acções de formação interna no ponto 4.1.1, deverá indicar indicar o número de participantes no quadro 4.2.1.",IF('Formação Prof Niveis Custos'!P6="ERROEXT2","Ao indicar acções de formação externa no ponto 4.1.2, deverá indicar indicar o número de participantes no quadro 4.2.2.",IF('Formação Prof Niveis Custos'!P6="ERRO","O número de acções indicadas no ponto 4.1 não deverá ser superior ao número de participantes indicados no ponto 4.2.","...")))) -> ... | M81: ver
E82: =G81 -> ...
B84: Quadro 4.2 e 4.3 Número total de participantes e horas | E84: =IF(E85="...","Preenchido",IF(E85="Por favor preencha todas as células em aberto. Se não existirem ocorrências a registar deverá introduzir o número zero.","Por preencher","Preenchido com erros!")) -> Preenchido | G84: =IF('Formação Prof Niveis Custos'!O11<>0,"Por favor preencha todas as células em aberto. Se não existirem ocorrências a registar deverá introduzir o número zero.",H84) -> ... | H84: =IF('Formação Prof Niveis Custos'!C20="ERROINT","Ao indicar pessoal 'DIRIGENTE' participantes em acções de formação interna, deverá indicar o n.º de horas correspondente no ponto 4.3.1.",IF('Formação Prof Niveis Custos'!D20="ERROINT","Ao indicar trabalhadores da carreira de 'TÉCNICO SUPERIOR' participantes em acções de formação interna, deverá indicar o n.º de horas correspondente no ponto 4.3.1.",IF('Formação Prof Niveis Custos'!E20="ERROINT","Ao indicar trabalhadores da carreira de 'ASSISTENTE TÉCNICO' participantes em acções de formação interna, deverá indicar o n.º de horas correspondente no ponto 4.3.1.",IF('Formação Prof Niveis Custos'!F20="ERROINT","Ao indicar trabalhadores da carreira de 'ASSISTENTE OPERACIONAL' participantes em acções de formação interna, deverá indicar o n.º de horas correspondente no ponto 4.3.1.",I84)))) -> ... | I84: =IF('Formação Prof Niveis Custos'!G20="ERROINT","Ao indicar trabalhadores das 'CARREIRAS E CATEGORIAS SUBSISTENTES' como participantes em acções de formação interna, deverá indicar o n.º de horas correspondente no ponto 4.3.1.",IF('Formação Prof Niveis Custos'!H20="ERROINT","Ao indicar trabalhadores das 'CARREIRAS E CORPOS ESPECIAIS' como participantes em acções de formação interna, deverá indicar o n.º de horas correspondente no ponto 4.3.1.",IF('Formação Prof Niveis Custos'!K20="ERROINT","Ao indicar trabalhadores da 'CARREIRA DOCENTE' como participantes em acções de formação interna, deverá indicar o n.º de horas correspondente no ponto 4.3.1.",IF('Formação Prof Niveis Custos'!L20="ERROINT","Ao indicar trabalhadores de 'OUTROS' como participantes em acções de formação interna, deverá indicar o n.º de horas correspondente no ponto 4.3.1.",J84)))) -> ... | J84: =IF('Formação Prof Niveis Custos'!C20="ERROEXT","Ao indicar pessoal 'DIRIGENTE' participantes em acções de formação externa, deverá indicar o n.º de horas correspondente no ponto 4.3.2.",IF('Formação Prof Niveis Custos'!D20="ERROEXT","Ao indicar trabalhadores da carreira de 'TÉCNICO SUPERIOR' participantes em acções de formação externa deverá indicar o n.º de horas correspondente no ponto 4.3.2.",IF('Formação Prof Niveis Custos'!E20="ERROEXT","Ao indicar trabalhadores da carreira de 'ASSISTENTE TÉCNICO' participantes em acções de formação interna, deverá indicar o n.º de horas correspondente no ponto 4.3.2.",IF('Formação Prof Niveis Custos'!F20="ERROEXT","Ao indicar trabalhadores da carreira de 'ASSISTENTE OPERACIONAL' participantes em acções de formação interna, deverá indicar o n.º de horas correspondente no ponto 4.3.2.",K84)))) -> ... | K84: =IF('Formação Prof Niveis Custos'!G20="ERROEXT","Ao indicar trabalhadores das 'CARREIRAS E CATEGORIAS SUBSISTENTES' como participantes em acções de formação externa, deverá indicar o n.º de horas correspondente no ponto 4.3.2.",IF('Formação Prof Niveis Custos'!H20="ERROEXT","Ao indicar trabalhadores das 'CARREIRAS E CORPOS ESPECIAIS' como participantes em acções de formação externa, deverá indicar o n.º de horas correspondente no ponto 4.3.2.",IF('Formação Prof Niveis Custos'!K20="ERROEXT","Ao indicar trabalhadores da 'CARREIRA DOCENTE' como participantes em acções de formação externa, deverá indicar o n.º de horas correspondente no ponto 4.3.2.",IF('Formação Prof Niveis Custos'!L20="ERROEXT","Ao indicar trabalhadores de 'OUTROS' como participantes em acções de formação externa, deverá indicar o n.º de horas correspondente no ponto 4.3.2.","...")))) -> ... | M84: ver
E85: =G84 -> ...
B87: Quadro 4.4 Custos totais de formação | E87: =IF(E88="...","Preenchido",IF(E88="Por favor preencha todas as células em aberto. Se não existirem ocorrências a registar deverá introduzir o número zero.","Por preencher",IF(E88="Por favor confirme se as acções de formação interna não implicaram custos.","Preenchido com reservas",IF(E88="Por favor confirme se as acções de formação externa não implicaram custos.","Preenchido com reservas","Preenchido com erros!")))) -> Preenchido com reservas | G87: =IF('Formação Prof Niveis Custos'!O18<>0,"Por favor preencha todas as células em aberto. Se não existirem ocorrências a registar deverá introduzir o número zero.",IF('Formação Prof Niveis Custos'!P17="ERROCUSINT","Por favor confirme se as acções de formação interna não implicaram custos.",IF('Formação Prof Niveis Custos'!P17="ERROCUSEXT","Por favor confirme se as acções de formação externa não implicaram custos.","..."))) -> Por favor confirme se as acções de formação externa não implicaram custos. | M87: ver
E88: =G87 -> Por favor confirme se as acções de formação externa não implicaram custos.
B90: Quadro 5. Prestações sociais | E90: =IF(E91="...","Preenchido",IF(E91="Por favor preencha todas as células em aberto. Se não existirem ocorrências a registar deverá introduzir o número zero.","Por preencher","Preenchido com reservas!")) -> Preenchido | G90: =IF('Prestações Sociais Acção Social'!E4<>0,"Por favor preencha todas as células em aberto. Se não existirem ocorrências a registar deverá introduzir o número zero.",IF('Prestações Sociais Acção Social'!F4="ALERTA","Caso tenha assinalado ausências ao trabalho por motivo de maternidade/paternidade de trabalhadores do regime de proteção social convergente, deverá identificar na linha 5.8, o valor total do subsídio pago no ambito da protecção social na parentalidade .","...")) -> ... | M90: ver
E91: =G90 -> ...
B93: Quadro 5.9 Prestações acção social complementar | E93: =IF(E94="...","Preenchido",IF(E94="Por favor preencha todas as células em aberto. Se não existirem ocorrências a registar deverá introduzir o número zero.","Por preencher","Preenchido com erros!")) -> Preenchido | G93: =IF('Prestações Sociais Acção Social'!E14<>0,"Por favor preencha todas as células em aberto. Se não existirem ocorrências a registar deverá introduzir o número zero.",IF('Prestações Sociais Acção Social'!D23="ERRO","Ao fazer referência a 'OUTRAS' nos pontos 5.8 e 5.9.7, deverá obrigatoriamente discriminá-las no campo destinado às anotações.","...")) -> ... | M93: ver
E94: =G93 -> ...
B96: Quadro 6.1 Organização e actividade sindical | E96: =IF(E97="...","Preenchido",IF(E97="Por favor preencha todas as células em aberto. Se não existirem ocorrências a registar deverá introduzir o número zero.","Por preencher","Preenchido com erros!")) -> Preenchido | G96: =IF('Relaç Profis Comissões Discipli'!D5<>0,"Por favor preencha todas as células em aberto. Se não existirem ocorrências a registar deverá introduzir o número zero.",IF('Relaç Profis Comissões Discipli'!E5="ERRO","Por favor verifique a existência de trabalhadores sindicalizados, uma vez que referiu 'Horas de actividade sindical' no ponto 1.18.1.","...")) -> ... | M96: ver
E97: =G96 -> ...
B99: Quadro 6.2 Comissões de trabalhadores | E99: =IF(E100="...","Preenchido",IF(E100="Por favor preencha todas as células em aberto. Se não existirem ocorrências a registar deverá introduzir o número zero.","Por preencher","Preenchido com erros!")) -> Preenchido | G99: =IF('Relaç Profis Comissões Discipli'!E8<>0,"Por favor preencha todas as células em aberto. Se não existirem ocorrências a registar deverá introduzir o número zero.","...") -> ... | M99: ver
E100: =G99 -> ...
B102: Quadro 6.3 Disciplina | E102: =IF(E103="...","Preenchido",IF(E103="Por favor preencha todas as células em aberto. Se não existirem ocorrências a registar deverá introduzir o número zero.","Por preencher","Preenchido com erros!")) -> Preenchido | G102: =IF('Relaç Profis Comissões Discipli'!E12<>0,"Por favor preencha todas as células em aberto. Se não existirem ocorrências a registar deverá introduzir o número zero.",IF('Relaç Profis Comissões Discipli'!F12="ERRO","O n.º de processos a transitar para o ano seguinte não pode ser superior à soma dos transitados do ano anterior e instaurados no próprio ano.","...")) -> ... | M102: ver
E103: =G102 -> ...
B105: Quadro 6.3.4 Processos decididos | E105: =IF(E106="...","Preenchido",IF(E106="Por favor preencha todas as células em aberto. Se não existirem ocorrências a registar deverá introduzir o número zero.","Por preencher","Preenchido com erros!")) -> Preenchido | G105: =IF('Relaç Profis Comissões Discipli'!E17<>0,"Por favor preencha todas as células em aberto. Se não existirem ocorrências a registar deverá introduzir o número zero.",IF('Relaç Profis Comissões Discipli'!F17="ERRO","O número de processos decididos deverá ser igual à soma dos pontos 6.3.1 e 6.3.2, subtraindo o ponto 6.3.3.","...")) -> ... | M105: ver
E106: =G105 -> ...
B108: Quadro 7. Distribuição geográfica por concelhos | E108: =IF(E109="...","Preenchido",IF(E109="Por favor preencha todas as células em aberto. Se não existirem ocorrências a registar deverá introduzir o número zero.","Por preencher","Preenchido com erros!")) -> Preenchido | G108: =IF('Distribuição Geográfica '!P4<>0,"Por favor preencha todas as células em aberto. Se não existirem ocorrências a registar deverá introduzir o número zero.",H108) -> ... | H108: =IF('Distribuição Geográfica '!D39="ERROH","O total de 'HOMENS' da carreira 'DIRIGENTE' deste quadro deverá coincidir com o total apresentado no quadro 1.",IF('Distribuição Geográfica '!D39="ERROM","O total de 'MULHERES' da carreira 'DIRIGENTE' deste quadro deverá coincidir com o total apresentado no quadro 1.",IF('Distribuição Geográfica '!E39="ERROH","O total de 'HOMENS' da carreira 'TÉCNICO SUPERIOR' deste quadro deverá coincidir com o total apresentado no quadro 1.",IF('Distribuição Geográfica '!E39="ERROM","O total de 'MULHERES' da carreira 'TÉCNICO SUPERIOR' deste quadro deverá coincidir com o total apresentado no quadro 1.",IF('Distribuição Geográfica '!F39="ERROH","O total de 'HOMENS' da carreira 'ASSISTENTE TÉCNICO' deste quadro deverá coincidir com o total apresentado no quadro 1.",IF('Distribuição Geográfica '!F39="ERROM","O total de 'MULHERES' da carreira 'ASSISTENTE TÉCNICO' deste quadro deverá coincidir com o total apresentado no quadro 1.",I108)))))) -> ... | I108: =IF('Distribuição Geográfica '!G39="ERROH","O total de 'HOMENS' da carreira 'ASSISTENTE OPERACIONAL' deste quadro deverá coincidir com o total apresentado no quadro 1.",IF('Distribuição Geográfica '!G39="ERROM","O total de 'MULHERES' da carreira 'ASSISTENTE OPERACIONAL' deste quadro deverá coincidir com o total apresentado no quadro 1.",IF('Distribuição Geográfica '!H39="ERROH","O total de 'HOMENS' das 'CARREIRAS E CATEGORIAS SUBSISTENTES' deste quadro deverá coincidir com o total apresentado no quadro 1.",IF('Distribuição Geográfica '!H39="ERROM","O total de 'MULHERES' das 'CARREIRAS E CATEGORIAS SUBSISTENTES' deste quadro deverá coincidir com o total apresentado no quadro 1.",J108)))) -> ... | J108: =IF('Distribuição Geográfica '!I39="ERROH","O total de 'HOMENS' das 'CARREIRAS E CORPOS ESPECIAIS' deste quadro deverá coincidir com o total apresentado no quadro 1.",IF('Distribuição Geográfica '!I39="ERROM","O total de 'MULHERES' das 'CARREIRAS E CORPOS ESPECIAIS' deste quadro deverá coincidir com o total apresentado no quadro 1.",IF('Distribuição Geográfica '!L39="ERROH","O total de 'HOMENS' da 'CARREIRA DOCENTE' deste quadro deverá coincidir com o total apresentado no quadro 1.",IF('Distribuição Geográfica '!L39="ERROM","O total de 'MULHERES' da 'CARREIRA DOCENTE' deste quadro deverá coincidir com o total apresentado no quadro 1.",IF('Distribuição Geográfica '!M39="ERROH","O total de 'HOMENS' de 'OUTROS' deste quadro deverá coincidir com o total apresentado no quadro 1.",IF('Distribuição Geográfica '!M39="ERROM","O total de 'MULHERES' de 'OUTROS' deste quadro deverá coincidir com o total apresentado no quadro 1.","...")))))) -> ... | M108: ver
E109: =G108 -> ...
B111: Quadro 8. Cobertura dos mapas de pessoal | E111: =IF(E112="...","Preenchido",IF(E112="Por favor preencha todas as células em aberto. Se não existirem ocorrências a registar deverá introduzir o número zero.","Por preencher","Preenchido com erros!")) -> Preenchido | G111: =IF('Cobertura de Mapas'!G5<>0,"Por favor preencha todas as células em aberto. Se não existirem ocorrências a registar deverá introduzir o número zero.","...") -> ... | M111: ver
E112: =G111 -> ...

Sheet Recursos Humanos
A1: =IF(Identificação!C17="","",Identificação!C17) -> ESCOLA BÁSICA E SECUNDÁRIA COM PRÉ-ESCOLAR E CRECHE DO PORTO MONIZ
A2: =IF(Validação!E6="Preenchido","","Mensagem: " & Validação!E6 & "! " & Validação!E7) -> 
A3: 1. | B3: Recursos Humanos (1) | D3: Dirigente (5) | E3: Técnico Superior | F3: Assistente Técnico (6) | G3: Assistente Operacional (7) | H3: Carreiras e Categorias subsistentes (8) | I3: Carreiras e Corpos especiais (9) | J3: Carreira Médica | K3: Carreira de Enfermagem | L3: Carreira Docente | M3: Outros | N3: Total
A4: 1.1 | B4: Total efectivos | C4: H | D4: =SUM(D7+D10+D13+D16) -> 1 | E4: 0 | F4: 0 | G4: 5 | H4: 0 | I4: 1 | J4: 0 | K4: 0 | L4: 11 | M4: 0 | N4: =SUM(D4:M4) -> 18
C5: M | D5: =D8+D11+D14+D17 -> 2 | E5: 2 | F5: 10 | G5: 22 | H5: 5 | I5: 0 | J5: 0 | K5: 0 | L5: 38 | M5: 0 | N5: 79
C6: T | D6: =SUM(D4:D5) -> 3 | E6: 2 | F6: 10 | G6: 27 | H6: 5 | I6: 1 | J6: 0 | K6: 0 | L6: 49 | M6: 0 | N6: 97
A7: 1.1.1 | B7: Nomeação (2) | C7: H | D7: 0 | E7: 0 | F7: 0 | G7: 0 | H7: 0 | I7: 0 | J7: 0 | K7: 0 | L7: 0 | M7: 0 | N7: 0 | O7: =IF(OR(D7="",E7="",F7="",G7="",H7="",I7="",J7="",K7="",L7="",M7="",D8="",E8="",F8="",G8="",H8="",I8="",J8="",K8="",L8="",M8=""),1,0) -> 0 | P7: =SUM(O7+O10+O13+O16) -> 0
C8: M | D8: 0 | E8: 0 | F8: 0 | G8: 0 | H8: 0 | I8: 0 | J8: 0 | K8: 0 | L8: 0 | M8: 0 | N8: 0
C9: T | D9: =SUM(D8,D7) -> 0 | E9: 0 | F9: 0 | G9: 0 | H9: 0 | I9: 0 | J9: 0 | K9: 0 | L9: 0 | M9: 0 | N9: 0
A10: 1.1.2 | B10: Contrato por tempo indeterminado | C10: H | D10: 1 | E10: 0 | F10: 0 | G10: 5 | H10: 0 | I10: 1 | J10: 0 | K10: 0 | L10: 8 | M10: 0 | N10: 15 | O10: =IF(OR(D10="",E10="",F10="",G10="",H10="",I10="",J10="",K10="",L10="",M10="",D11="",E11="",F11="",G11="",H11="",I11="",J11="",K11="",L11="",M11=""),1,0) -> 0
C11: M | D11: 2 | E11: 2 | F11: 10 | G11: 22 | H11: 5 | I11: 0 | J11: 0 | K11: 0 | L11: 24 | M11: 0 | N11: 65
C12: T | D12: =SUM(D11,D10) -> 3 | E12: 2 | F12: 10 | G12: 27 | H12: 5 | I12: 1 | J12: 0 | K12: 0 | L12: 32 | M12: 0 | N12: 80
A13: 1.1.3 | B13: Contrato a termo resolutivo, certo ou incerto (3) | C13: H | D13: 0 | E13: 0 | F13: 0 | G13: 0 | H13: 0 | I13: 0 | J13: 0 | K13: 0 | L13: 3 | M13: 0 | N13: 3 | O13: =IF(OR(D13="",E13="",F13="",G13="",H13="",I13="",J13="",K13="",L13="",M13="",D14="",E14="",F14="",G14="",H14="",I14="",J14="",K14="",L14="",M14=""),1,0) -> 0
C14: M | D14: 0 | E14: 0 | F14: 0 | G14: 0 | H14: 0 | I14: 0 | J14: 0 | K14: 0 | L14: 14 | M14: 0 | N14: 14
C15: T | D15: =SUM(D14,D13) -> 0 | E15: 0 | F15: 0 | G15: 0 | H15: 0 | I15: 0 | J15: 0 | K15: 0 | L15: 17 | M15: 0 | N15: 17
A16: 1.1.4 | B16: Outros (4) | C16: H | D16: 0 | E16: 0 | F16: 0 | G16: 0 | H16: 0 | I16: 0 | J16: 0 | K16: 0 | L16: 0 | M16: 0 | N16: 0 | O16: =IF(OR(D16="",E16="",F16="",G16="",H16="",I16="",J16="",K16="",L16="",M16="",D17="",E17="",F17="",G17="",H17="",I17="",J17="",K17="",L17="",M17=""),1,0) -> 0
C17: M | D17: 0 | E17: 0 | F17: 0 | G17: 0 | H17: 0 | I17: 0 | J17: 0 | K17: 0 | L17: 0 | M17: 0 | N17: 0
C18: T | D18: =SUM(D17,D16) -> 0 | E18: 0 | F18: 0 | G18: 0 | H18: 0 | I18: 0 | J18: 0 | K18: 0 | L18: 0 | M18: 0 | N18: 0
A19: 1.1.5 | B19: Total | D19: =SUM(D18,D15,D12,D9) -> 3 | E19: 2 | F19: 10 | G19: 27 | H19: 5 | I19: 1 | J19: 0 | K19: 0 | L19: 49 | M19: 0 | N19: 97
A21: Por favor refira quais as carreiras incluídas na coluna "Outros":
O22: =IF(AND(M19<>0,A22=""),"ERRO","OK") -> OK
A24: Por favor enuncie quais as situações referidas na linha "Outros" (1.1.4):
O25: =IF(AND(N18>0,OR(A25="",A25=0)),"ERRO","OK") -> OK
A27: 1.1.6 | B27: Total de efectivos (balanço do ano anterior): | C27: H | D27: =SUM(D30+D33+D36+D39) -> 1 | E27: 0 | F27: 0 | G27: 5 | H27: 0 | I27: 1 | J27: 0 | K27: 0 | L27: 11 | M27: 0 | N27: =SUM(D27:M27) -> 18
C28: M | D28: =D31+D34+D37+D40 -> 2 | E28: 2 | F28: 10 | G28: 22 | H28: 5 | I28: 0 | J28: 0 | K28: 0 | L28: 41 | M28: 0 | N28: 82
C29: T | D29: =SUM(D27:D28) -> 3 | E29: 2 | F29: 10 | G29: 27 | H29: 5 | I29: 1 | J29: 0 | K29: 0 | L29: 52 | M29: 0 | N29: 100
A30: 1.1.7 | B30: Nomeação (balanço do ano anterior) | C30: H | D30: 0 | E30: 0 | F30: 0 | G30: 0 | H30: 0 | I30: 0 | J30: 0 | K30: 0 | L30: 0 | M30: 0 | N30: 0 | O30: =IF(OR(D30="",E30="",F30="",G30="",H30="",I30="",J30="",K30="",L30="",M30="",D31="",E31="",F31="",G31="",H31="",I31="",J31="",K31="",L31="",M31=""),1,0) -> 0 | P30: =SUM(O30+O33+O36+O39) -> 0
C31: M | D31: 0 | E31: 0 | F31: 0 | G31: 0 | H31: 0 | I31: 0 | J31: 0 | K31: 0 | L31: 0 | M31: 0 | N31: 0
C32: T | D32: =SUM(D31,D30) -> 0 | E32: 0 | F32: 0 | G32: 0 | H32: 0 | I32: 0 | J32: 0 | K32: 0 | L32: 0 | M32: 0 | N32: 0
A33: 1.1.8 | B33: Contrato por tempo indeterminado (balanço do ano anterior) | C33: H | D33: 1 | E33: 0 | F33: 0 | G33: 5 | H33: 0 | I33: 1 | J33: 0 | K33: 0 | L33: 6 | M33: 0 | N33: 13 | O33: =IF(OR(D33="",E33="",F33="",G33="",H33="",I33="",J33="",K33="",L33="",M33="",D34="",E34="",F34="",G34="",H34="",I34="",J34="",K34="",L34="",M34=""),1,0) -> 0
C34: M | D34: 2 | E34: 2 | F34: 10 | G34: 22 | H34: 5 | I34: 0 | J34: 0 | K34: 0 | L34: 26 | M34: 0 | N34: 67
C35: T | D35: =SUM(D34,D33) -> 3 | E35: 2 | F35: 10 | G35: 27 | H35: 5 | I35: 1 | J35: 0 | K35: 0 | L35: 32 | M35: 0 | N35: 80
A36: 1.1.9 | B36: Contrato a termo resolutivo, certo ou incerto (balanço do ano anterior) | C36: H | D36: 0 | E36: 0 | F36: 0 | G36: 0 | H36: 0 | I36: 0 | J36: 0 | K36: 0 | L36: 5 | M36: 0 | N36: 5 | O36: =IF(OR(D36="",E36="",F36="",G36="",H36="",I36="",J36="",K36="",L36="",M36="",D37="",E37="",F37="",G37="",H37="",I37="",J37="",K37="",L37="",M37=""),1,0) -> 0
C37: M | D37: 0 | E37: 0 | F37: 0 | G37: 0 | H37: 0 | I37: 0 | J37: 0 | K37: 0 | L37: 15 | M37: 0 | N37: 15
C38: T | D38: =SUM(D37,D36) -> 0 | E38: 0 | F38: 0 | G38: 0 | H38: 0 | I38: 0 | J38: 0 | K38: 0 | L38: 20 | M38: 0 | N38: 20
A39: 1.1.10 | B39: Outros (balanço do ano anterior) | C39: H | D39: 0 | E39: 0 | F39: 0 | G39: 0 | H39: 0 | I39: 0 | J39: 0 | K39: 0 | L39: 0 | M39: 0 | N39: 0 | O39: =IF(OR(D39="",E39="",F39="",G39="",H39="",I39="",J39="",K39="",L39="",M39="",D40="",E40="",F40="",G40="",H40="",I40="",J40="",K40="",L40="",M40=""),1,0) -> 0
C40: M | D40: 0 | E40: 0 | F40: 0 | G40: 0 | H40: 0 | I40: 0 | J40: 0 | K40: 0 | L40: 0 | M40: 0 | N40: 0
C41: T | D41: =SUM(D40,D39) -> 0 | E41: 0 | F41: 0 | G41: 0 | H41: 0 | I41: 0 | J41: 0 | K41: 0 | L41: 0 | M41: 0 | N41: 0
A43: SIMULADOR - VALORES ESPERADOS PARA O BALANÇO A ENTREGAR TENDO EM CONTA OS TRABALHADORES REGISTADOS NO BALANÇO ANTERIOR, MENOS AS SAIDAS, MAIS AS ENTRADAS REGISTADAS NO ATUAL BALANÇO
A44: 1. | B44: Recursos Humanos (1) | D44: Dirigentes | E44: Técnicos Superiores | F44: Assistentes Técnicos | G44: Assistentes Operacionais | H44: Carreiras e Categorias subsistentes | I44: Carreiras e Corpos especiais | J44: Carreira Médica | K44: Carreira de Enfermagem | L44: Docentes | M44: Outros | N44: Total
A45: 1.1.6 | B45: Total de efectivos (valores esperados) | C45: H | D45: =D48+D51+D54+D57 -> 1 | E45: 0 | F45: 0 | G45: 5 | H45: 0 | I45: 1 | J45: 0 | K45: 0 | L45: 11 | M45: 0 | N45: =SUM(D45:M45) -> 18 | Q45: =IF(D45<>D4,"X","") ->  | R45: =IF(E45<>E4,"X","") ->  | S45: =IF(F45<>F4,"X","") ->  | T45: =IF(G45<>G4,"X","") ->  | U45: =IF(H45<>H4,"X","") ->  | V45: =IF(I45<>I4,"X","") ->  | W45: =IF(J45<>J4,"X","") ->  | X45: =IF(K45<>K4,"X","") ->  | Y45: =IF(L45<>L4,"X","") ->  | Z45: =IF(M45<>M4,"X","") ->  | AA45: =IF(N45<>N4,"X","") -> 
C46: M | D46: =D49+D52+D55+D58 -> 2 | E46: 2 | F46: 10 | G46: 22 | H46: 5 | I46: 0 | J46: 0 | K46: 0 | L46: 38 | M46: 0 | N46: 79
C47: T | D47: =D45+D46 -> 3 | E47: 2 | F47: 10 | G47: 27 | H47: 5 | I47: 1 | J47: 0 | K47: 0 | L47: 49 | M47: 0 | N47: 97
A48: 1.1.7 | B48: Nomeação (valores esperados) | C48: H | D48: =D30+(Admissões!D4-Saídas!D4) -> 0 | E48: =E30+(Admissões!E4-Saídas!E4) -> 0 | F48: =F30+(Admissões!F4-Saídas!F4) -> 0 | G48: =G30+(Admissões!G4-Saídas!G4) -> 0 | H48: =H30+(Admissões!H4-Saídas!H4) -> 0 | I48: =I30+(Admissões!I4-Saídas!I4) -> 0 | J48: =J30+(Admissões!J4-Saídas!J4) -> 0 | K48: =K30+(Admissões!K4-Saídas!K4) -> 0 | L48: =L30+(Admissões!L4-Saídas!L4) -> 0 | M48: =M30+(Admissões!M4-Saídas!M4) -> 0 | N48: 0 | O48: =IF(OR(Q48<>"",R48<>"",S48<>"",T48<>"",U48<>"",V48<>"",W48<>"",X48<>"",Y48<>"",Z48<>"",AA48<>""),"X - Por favor confirme se todas as células desta linha apresentam valores esperados (número de efetivos do ano anterior + entradas - saídas), coincidentes com os introduzidos no mapa 1","") -> 
C49: M | D49: =D31+(Admissões!D5-Saídas!D5) -> 0 | E49: =E31+(Admissões!E5-Saídas!E5) -> 0 | F49: =F31+(Admissões!F5-Saídas!F5) -> 0 | G49: =G31+(Admissões!G5-Saídas!G5) -> 0 | H49: =H31+(Admissões!H5-Saídas!H5) -> 0 | I49: =I31+(Admissões!I5-Saídas!I5) -> 0 | J49: =J31+(Admissões!J5-Saídas!J5) -> 0 | K49: =K31+(Admissões!K5-Saídas!K5) -> 0 | L49: =L31+(Admissões!L5-Saídas!L5) -> 0 | M49: =M31+(Admissões!M5-Saídas!M5) -> 0 | N49: 0 | O49: =IF(OR(Q49<>"",R49<>"",S49<>"",T49<>"",U49<>"",V49<>"",W49<>"",X49<>"",Y49<>"",Z49<>"",AA49<>""),"X - Por favor confirme se todas as células desta linha apresentam valores esperados (número de efetivos do ano anterior + entradas - saídas), coincidentes com os introduzidos no mapa 1","") -> 
C50: T | D50: =D48+D49 -> 0 | E50: 0 | F50: 0 | G50: 0 | H50: 0 | I50: 0 | J50: 0 | K50: 0 | L50: 0 | M50: 0 | N50: 0
A51: 1.1.8 | B51: Contrato por tempo indeterminado (valores esperados) | C51: H | D51: =D33+(Admissões!D7-Saídas!D7) -> 1 | E51: =E33+(Admissões!E7-Saídas!E7) -> 0 | F51: =F33+(Admissões!F7-Saídas!F7) -> 0 | G51: =G33+(Admissões!G7-Saídas!G7) -> 5 | H51: =H33+(Admissões!H7-Saídas!H7) -> 0 | I51: =I33+(Admissões!I7-Saídas!I7) -> 1 | J51: =J33+(Admissões!J7-Saídas!J7) -> 0 | K51: =K33+(Admissões!K7-Saídas!K7) -> 0 | L51: =L33+(Admissões!L7-Saídas!L7) -> 8 | M51: =M33+(Admissões!M7-Saídas!M7) -> 0 | N51: 15 | O51: =IF(OR(Q51<>"",R51<>"",S51<>"",T51<>"",U51<>"",V51<>"",W51<>"",X51<>"",Y51<>"",Z51<>"",AA51<>""),"X - Por favor confirme se todas as células desta linha apresentam valores esperados (número de efetivos do ano anterior + entradas - saídas), coincidentes com os introduzidos no mapa 1","") -> 
C52: M | D52: =D34+(Admissões!D8-Saídas!D8) -> 2 | E52: =E34+(Admissões!E8-Saídas!E8) -> 2 | F52: =F34+(Admissões!F8-Saídas!F8) -> 10 | G52: =G34+(Admissões!G8-Saídas!G8) -> 22 | H52: =H34+(Admissões!H8-Saídas!H8) -> 5 | I52: =I34+(Admissões!I8-Saídas!I8) -> 0 | J52: =J34+(Admissões!J8-Saídas!J8) -> 0 | K52: =K34+(Admissões!K8-Saídas!K8) -> 0 | L52: =L34+(Admissões!L8-Saídas!L8) -> 24 | M52: =M34+(Admissões!M8-Saídas!M8) -> 0 | N52: 65 | O52: =IF(OR(Q52<>"",R52<>"",S52<>"",T52<>"",U52<>"",V52<>"",W52<>"",X52<>"",Y52<>"",Z52<>"",AA52<>""),"X - Por favor confirme se todas as células desta linha apresentam valores esperados (número de efetivos do ano anterior + entradas - saídas), coincidentes com os introduzidos no mapa 1","") -> 
C53: T | D53: =D51+D52 -> 3 | E53: 2 | F53: 10 | G53: 27 | H53: 5 | I53: 1 | J53: 0 | K53: 0 | L53: 32 | M53: 0 | N53: 80
A54: 1.1.9 | B54: Contrato a termo resolutivo, certo ou incerto (valores esperados) | C54: H | D54: =D36+(Admissões!D10-Saídas!D10) -> 0 | E54: =E36+(Admissões!E10-Saídas!E10) -> 0 | F54: =F36+(Admissões!F10-Saídas!F10) -> 0 | G54: =G36+(Admissões!G10-Saídas!G10) -> 0 | H54: =H36+(Admissões!H10-Saídas!H10) -> 0 | I54: =I36+(Admissões!I10-Saídas!I10) -> 0 | J54: =J36+(Admissões!J10-Saídas!J10) -> 0 | K54: =K36+(Admissões!K10-Saídas!K10) -> 0 | L54: =L36+(Admissões!L10-Saídas!L10) -> 3 | M54: =M36+(Admissões!M10-Saídas!M10) -> 0 | N54: 3 | O54: =IF(OR(Q54<>"",R54<>"",S54<>"",T54<>"",U54<>"",V54<>"",W54<>"",X54<>"",Y54<>"",Z54<>"",AA54<>""),"X - Por favor confirme se todas as células desta linha apresentam valores esperados (número de efetivos do ano anterior + entradas - saídas), coincidentes com os introduzidos no mapa 1","") -> 
C55: M | D55: =D37+(Admissões!D11-Saídas!D11) -> 0 | E55: =E37+(Admissões!E11-Saídas!E11) -> 0 | F55: =F37+(Admissões!F11-Saídas!F11) -> 0 | G55: =G37+(Admissões!G11-Saídas!G11) -> 0 | H55: =H37+(Admissões!H11-Saídas!H11) -> 0 | I55: =I37+(Admissões!I11-Saídas!I11) -> 0 | J55: =J37+(Admissões!J11-Saídas!J11) -> 0 | K55: =K37+(Admissões!K11-Saídas!K11) -> 0 | L55: =L37+(Admissões!L11-Saídas!L11) -> 14 | M55: =M37+(Admissões!M11-Saídas!M11) -> 0 | N55: 14 | O55: =IF(OR(Q55<>"",R55<>"",S55<>"",T55<>"",U55<>"",V55<>"",W55<>"",X55<>"",Y55<>"",Z55<>"",AA55<>""),"X - Por favor confirme se todas as células desta linha apresentam valores esperados (número de efetivos do ano anterior + entradas - saídas), coincidentes com os introduzidos no mapa 1","") -> 
C56: T | D56: =D54+D55 -> 0 | E56: 0 | F56: 0 | G56: 0 | H56: 0 | I56: 0 | J56: 0 | K56: 0 | L56: 17 | M56: 0 | N56: 17
A57: 1.1.10 | B57: Outros (valores esperados) | C57: H | D57: =D39+(Admissões!D13-Saídas!D13) -> 0 | E57: =E39+(Admissões!E13-Saídas!E13) -> 0 | F57: =F39+(Admissões!F13-Saídas!F13) -> 0 | G57: =G39+(Admissões!G13-Saídas!G13) -> 0 | H57: =H39+(Admissões!H13-Saídas!H13) -> 0 | I57: =I39+(Admissões!I13-Saídas!I13) -> 0 | J57: =J39+(Admissões!J13-Saídas!J13) -> 0 | K57: =K39+(Admissões!K13-Saídas!K13) -> 0 | L57: =L39+(Admissões!L13-Saídas!L13) -> 0 | M57: =M39+(Admissões!M13-Saídas!M13) -> 0 | N57: 0 | O57: =IF(OR(Q57<>"",R57<>"",S57<>"",T57<>"",U57<>"",V57<>"",W57<>"",X57<>"",Y57<>"",Z57<>"",AA57<>""),"X - Por favor confirme se todas as células desta linha apresentam valores esperados (número de efetivos do ano anterior + entradas - saídas), coincidentes com os introduzidos no mapa 1","") -> 
C58: M | D58: =D40+(Admissões!D14-Saídas!D14) -> 0 | E58: =E40+(Admissões!E14-Saídas!E14) -> 0 | F58: =F40+(Admissões!F14-Saídas!F14) -> 0 | G58: =G40+(Admissões!G14-Saídas!G14) -> 0 | H58: =H40+(Admissões!H14-Saídas!H14) -> 0 | I58: =I40+(Admissões!I14-Saídas!I14) -> 0 | J58: =J40+(Admissões!J14-Saídas!J14) -> 0 | K58: =K40+(Admissões!K14-Saídas!K14) -> 0 | L58: =L40+(Admissões!L14-Saídas!L14) -> 0 | M58: =M40+(Admissões!M14-Saídas!M14) -> 0 | N58: 0 | O58: =IF(OR(Q58<>"",R58<>"",S58<>"",T58<>"",U58<>"",V58<>"",W58<>"",X58<>"",Y58<>"",Z58<>"",AA58<>""),"X - Por favor confirme se todas as células desta linha apresentam valores esperados (número de efetivos do ano anterior + entradas - saídas), coincidentes com os introduzidos no mapa 1","") -> 
C59: T | D59: =D57+D58 -> 0 | E59: 0 | F59: 0 | G59: 0 | H59: 0 | I59: 0 | J59: 0 | K59: 0 | L59: 0 | M59: 0 | N59: 0
A61: Notas:
A62: (1) Deverão ser considerados todos os trabalhadores em exercício de funções que se encontrem ao serviço em 31 de dezembro, independentemente do tipo de vínculo. Não devem ser contabilizados os trabalhadores que, embora pertencendo ao mapa de pessoal do serviço, se encontrem a exercer funções noutros serviços, designadamente ao abrigo de instrumentos de mobilidade. Os trabalhadores em mobilidade interna para outras categorias deverão ser incluídos no serviço e carreira de destino, de acordo com o respectivo vínculo que detenham (nomeação ou contrato).
A63: (2) Considerar todas as formas de nomeação: definitiva, provisória, em comissão de serviço e em regime de substituição.
A64: (3) Os docentes com lugar de quadro (escola ou quadro de zona pedagógica) devem ser contabilizados na linha "Contrato por tempo indeterminado" (ponto 1.1.2.) e os docente com contratos a termo resolutivo na linha "Contrato a termo resolutivo, certo ou incerto" (ponto 1.1.3).
A65: (4) Incluir os trabalhadores ao abrigo de programas do Instituto do Emprego: estágios profissional, programa ocupacional de trabalhadores subsidiados e programa ocupacional de desempregados.
A66: (5) Considerar os titulares de cargos (ou equiparados) abrangido pelo Estatuto do Pessoal Dirigente, bem como os detentores de Cargos Políticos e Pessoal dos Gabinetes. Relativamente aos estabelecimentos de educação e ensino deverão ser incluidos nesta coluna os Directores, Presidentes do Conselho Executivo, Presidentes da Comissão Instaladora e os respectivos Adjuntos ou Vice-Presidentes. Esta indicação é válida para os restantes mapas.
A67: (6) Considerar as categorias da carreira de regime geral de Assistente Técnico, nomeadamente, Assistente Técnico e Coordenador Técnico.
A68: (7) Considerar as categorias da carreira de regime geral de Assistente Operacional, nomeadamente, Assistente Operacional, Encarregado Operacional e Encarregado Geral Operacional.
A69: (8) Considerar as carreiras subsistentes de Ajudante de Acção Sócio-educativa da Educação Pré-escolar, Chefe de Departamento, Coordenador, Coordenador Especialista, Chefe de Serviços de Administração Escolar, Encarregado de Pessoal Auxiliar e Encarregado de Pessoal Auxiliar de Acção Educativa, etc..
A70: (9) Considerar as carreiras especiais de Técnico e Especialista de Informática, Técnicos de Diagnóstico e Terapêutica, Inspecção, etc..
A72: Observações:

Sheet Estrut. Etária
A1: =IF(Identificação!C17="","",Identificação!C17) -> ESCOLA BÁSICA E SECUNDÁRIA COM PRÉ-ESCOLAR E CRECHE DO PORTO MONIZ
A2: =IF(Validação!E9="Preenchido","","Mensagem: " & Validação!E9 & "! " & Validação!E10) -> 
A3: 1.2 | B3: Estrutura Etária (1) | C3: Homens | E3: Mulheres | F3: Total
B4: Até 18 anos | C4: 0 | E4: 0 | F4: =SUM(C4,E4) -> 0 | G4: =IF(OR(C4="",E4=""),1,0) -> 0 | H4: =SUM(G4,G5,G6,G7,G8,G9,G10,G11,G12,G13,G14,G15) -> 0 | I4: =IF(SUM(C4:D15)<>'Recursos Humanos'!N4,"ERROH",IF(SUM(E4:E15)<>'Recursos Humanos'!N5,"ERROM","OK")) -> OK | J4: 18 | K4: =IF(F4>0,"ERRO18","OK") -> OK
B5: 18-24 | C5: 0 | E5: 0 | F5: 0 | G5: 0 | J5: 21
B6: 25-29 | C6: 0 | E6: 2 | F6: 2 | G6: 0 | J6: 27
B7: 30-34 | C7: 1 | E7: 1 | F7: 2 | G7: 0 | J7: 32
B8: 35-39 | C8: 2 | E8: 7 | F8: 9 | G8: 0 | J8: 37
B9: 40-44 | C9: 7 | E9: 20 | F9: 27 | G9: 0 | J9: 42
B10: 45-49 | C10: 3 | E10: 18 | F10: 21 | G10: 0 | J10: 47
B11: 50-54 | C11: 1 | E11: 10 | F11: 11 | G11: 0 | J11: 52
B12: 55-59 | C12: 2 | E12: 10 | F12: 12 | G12: 0 | J12: 57
B13: 60-64 | C13: 1 | E13: 9 | F13: 10 | G13: 0 | J13: 62
B14: 65-69 | C14: 1 | E14: 2 | F14: 3 | G14: 0 | J14: 67
B15: 70 e mais | C15: 0 | E15: 0 | F15: 0 | G15: 0 | J15: 70 | K15: =IF(F15>0,"ERRO70","OK") -> OK
A16: 1.3 (2) | E16: Nível médio etário: | F16: =IF(SUM(F4:F15)=0,0,(F4*J4+F5*J5+F6*J6+F7*J7+F8*J8+F9*J9+F10*J10+F11*J11+F12*J12+F13*J13+F14*J14+F15*J15)/SUM(F4:F15)) -> 47.92783505 | G16: =IF(F16="",1,0) -> 0 | H16: =SUM(G16,G17,G18) -> 0
E17: Nível médio etário masculino: | F17: =IF(SUM(C4:C15)=0,0,(C4*J4+C5*J5+C6*J6+C7*J7+C8*J8+C9*J9+C10*J10+C11*J11+C12*J12+C13*J13+C14*J14+C15*J15)/SUM(C4:C15)) -> 46.44444444 | G17: =IF(F17="",1,0) -> 0
E18: Nível médio etário feminino: | F18: =IF(SUM(E4:E15)=0,0,(E4*J4+E5*J5+E6*J6+E7*J7+E8*J8+E9*J9+E10*J10+E11*J11+E12*J12+E13*J13+E14*J14+E15*J15)/SUM(E4:E15)) -> 48.26582278 | G18: =IF(F18="",1,0) -> 0
A20: Notas:
A21: (1) Considerar a idade de todos os trabalhadores ao serviço, independentemente do vínculo, em 31 de Dezembro.
A22: (2) Campos de preenchimento automático: Soma da média das idades ÷ Total de efectivos
A24: Observações:

Sheet Estrut. Antiguidades
A1: =IF(Identificação!C17="","",Identificação!C17) -> ESCOLA BÁSICA E SECUNDÁRIA COM PRÉ-ESCOLAR E CRECHE DO PORTO MONIZ
A2: =IF(Validação!E12="Preenchido","","Mensagem: " & Validação!E12 & "! " & Validação!E13) -> 
A3: 1.4 | B3: Estrutura Antiguidades (1) | C3: Homens | D3: Mulheres | E3: Total | F3: Dirigente | G3: Técnico Superior | H3: Assistente Técnico | I3: Assistente Operacional | J3: Carreiras e Categorias subsistentes | K3: Carreiras e Corpos especiais | L3: Carreira Médica | M3: Carreira de Enfermagem | N3: Carreira Docente | O3: Outros | P3: Total
B4: Até 5 anos | C4: 1 | D4: 7 | E4: =SUM(C4:D4) -> 8 | F4: 0 | G4: 1 | H4: 0 | I4: 0 | J4: 0 | K4: 0 | L4: 0 | M4: 0 | N4: 7 | O4: 0 | P4: =SUM(F4:O4) -> 8 | Q4: =IF(OR(F4="",G4="",H4="",I4="",J4="",K4="",N4="",O4=""),1,0) -> 0 | R4: =SUM(Q4,Q5,Q6,Q7,Q8,Q9,Q10,Q11) -> 0 | S4: =IF(SUM(C4:C11)<>'Recursos Humanos'!N4,"ERROH",IF(SUM(D4:D11)<>'Recursos Humanos'!N5,"ERROM","OK")) -> OK | T4: 5
B5: 5-9 | C5: 2 | D5: 5 | E5: 7 | F5: 0 | G5: 0 | H5: 0 | I5: 0 | J5: 0 | K5: 0 | L5: 0 | M5: 0 | N5: 7 | O5: 0 | P5: 7 | Q5: 0 | T5: 7
B6: 10-14 | C6: 2 | D6: 6 | E6: 8 | F6: 0 | G6: 0 | H6: 0 | I6: 0 | J6: 0 | K6: 0 | L6: 0 | M6: 0 | N6: 8 | O6: 0 | P6: 8 | Q6: 0 | T6: 12
B7: 15-19 | C7: 7 | D7: 22 | E7: 29 | F7: 0 | G7: 1 | H7: 2 | I7: 13 | J7: 3 | K7: 1 | L7: 0 | M7: 0 | N7: 9 | O7: 0 | P7: 29 | Q7: 0 | T7: 17
B8: 20-24 | C8: 1 | D8: 24 | E8: 25 | F8: 2 | G8: 0 | H8: 6 | I8: 8 | J8: 1 | K8: 0 | L8: 0 | M8: 0 | N8: 8 | O8: 0 | P8: 25 | Q8: 0 | T8: 22
B9: 25-29 | C9: 5 | D9: 7 | E9: 12 | F9: 1 | G9: 0 | H9: 1 | I9: 6 | J9: 0 | K9: 0 | L9: 0 | M9: 0 | N9: 4 | O9: 0 | P9: 12 | Q9: 0 | T9: 27
B10: 30-35 | C10: 0 | D10: 3 | E10: 3 | F10: 0 | G10: 0 | H10: 0 | I10: 0 | J10: 0 | K10: 0 | L10: 0 | M10: 0 | N10: 3 | O10: 0 | P10: 3 | Q10: 0 | T10: 32.5
B11: Mais de 36 | C11: 0 | D11: 5 | E11: 5 | F11: 0 | G11: 0 | H11: 1 | I11: 0 | J11: 1 | K11: 0 | L11: 0 | M11: 0 | N11: 3 | O11: 0 | P11: 5 | Q11: 0 | S11: =IF(E11<>P11,"ERRO","OK") -> OK | T11: 36
A12: 1.5 (2) | O12: Nível médio de antiguidade: | P12: =IF(SUM(E4:E11)=0,0,(P4*T4+P5*T5+P6*T6+P7*T7+P8*T8+P9*T9+P10*T10+P11*T11)/SUM(P4:P11)) -> 18.86082474 | Q12: =IF(P12="",1,0) -> 0 | R12: =SUM(Q12,Q13,Q14) -> 0
O13: Nível médio de antiguidade masculino: | P13: =IF(SUM(C4:C11)=0,0,(C4*T4+C5*T5+C6*T6+C7*T7+C8*T8+C9*T9+C10*T10+C11*T11)/SUM(C4:C11)) -> 17.72222222 | Q13: =IF(P13="",1,0) -> 0
O14: Nível médio de antiguidade feminino: | P14: =IF(SUM(D4:D11)=0,0,(D4*T4+D5*T5+D6*T6+D7*T7+D8*T8+D9*T9+D10*T10+D11*T11)/SUM(D4:D11)) -> 19.12025316 | Q14: =IF(P14="",1,0) -> 0
F15: =IF(SUM(F4:F11)<>'Recursos Humanos'!D6,"ERRO","OK") -> OK | G15: =IF(SUM(G4:G11)<>'Recursos Humanos'!E6,"ERRO","OK") -> OK | H15: =IF(SUM(H4:H11)<>'Recursos Humanos'!F6,"ERRO","OK") -> OK | I15: =IF(SUM(I4:I11)<>'Recursos Humanos'!G6,"ERRO","OK") -> OK | J15: =IF(SUM(J4:J11)<>'Recursos Humanos'!H6,"ERRO","OK") -> OK | K15: =IF(SUM(K4:K11)<>'Recursos Humanos'!I6,"ERRO","OK") -> OK | L15: =IF(SUM(L4:L11)<>'Recursos Humanos'!J6,"ERRO","OK") -> OK | M15: =IF(SUM(M4:M11)<>'Recursos Humanos'!K6,"ERRO","OK") -> OK | N15: =IF(SUM(N4:N11)<>'Recursos Humanos'!L6,"ERRO","OK") -> OK | O15: =IF(SUM(O4:O11)<>'Recursos Humanos'!M6,"ERRO","OK") -> OK
A16: Notas:
A17: (1) Considerar o número de anos (inteiros) de antiguidade na Função Pública, a 31 de dezembro.
A18: (2) Campos de preenchimento automático: Soma da média das antiguidades ÷ Total de efectivos
A20: Observações:

Sheet Trab. Estrangeiros
A1: =IF(Identificação!C17="","",Identificação!C17) -> ESCOLA BÁSICA E SECUNDÁRIA COM PRÉ-ESCOLAR E CRECHE DO PORTO MONIZ
A2: =IF(Validação!E15="Preenchido","","Mensagem: " & Validação!E15 & "! " & Validação!E16) -> 
A3: 1.6 | B3: Trabalhadores Estrangeiros (1) | C3: Homens | D3: Mulheres | E3: Total
A4: 1.6.1 | B4: De países da UE | C4: 0 | D4: 0 | E4: =SUM(C4,D4) -> 0 | F4: =IF(OR(C4="",D4=""),1,0) -> 0 | G4: =SUM(F4,F5,F6,F7) -> 0 | H4: =IF(OR(C5>0,D5>0,C6>0,D6>0,C7>0,D7>0),"ERRO","OK") -> OK
A5: 1.6.2 | B5: Dos PALOP | C5: 0 | D5: 0 | E5: =SUM(C5,D5) -> 0 | F5: =IF(OR(C5="",D5=""),1,0) -> 0
A6: 1.6.3 | B6: Do Brasil | C6: 0 | D6: 0 | E6: =SUM(C6,D6) -> 0 | F6: =IF(OR(C6="",D6=""),1,0) -> 0
A7: 1.6.4 | B7: De outros países | C7: 0 | D7: 0 | E7: =SUM(C7,D7) -> 0 | F7: =IF(OR(C7="",D7=""),1,0) -> 0
A8: 1.7 | B8: Trabalhadores deficientes (2) | C8: 0 | D8: 0 | E8: =SUM(C8,D8) -> 0 | G8: =IF(OR(C8="",D8=""),1,0) -> 0
A10: Notas:
A11: (1) Considerar apenas os trabalhadores com NACIONALIDADE estrangeira. Não considerar os trabalhadores portugueses que tenham NATURALIDADE de outro país.
A12: (2) Considerar os trabalhadores que beneficiem de redução fiscal em virtude da sua deficiência.
A14: Observações:

Sheet Estrut. Habilitacional
A1: =IF(Identificação!C17="","",Identificação!C17) -> ESCOLA BÁSICA E SECUNDÁRIA COM PRÉ-ESCOLAR E CRECHE DO PORTO MONIZ
A2: =IF(Validação!E21="Preenchido","","Mensagem: " & Validação!E21 & "! " & Validação!E22) -> 
A3: 1.8 | B3: Estrutura Habilitacional (1) | C3: Homens | D3: Mulheres | E3: Total | F3: %
B4: Menos de 4 anos de escolaridade | C4: 0 | D4: 0 | E4: =SUM(C4,D4) -> 0 | F4: =IF(OR(C4<>"",D4<>""),E4/$G$14,0) -> 0 | G4: =IF(OR(C4="",D4=""),1,0) -> 0 | H4: =SUM(G4,G5,G6,G7,G8,G9,G10,G11,G12,G13) -> 0 | I4: =IF(SUM(C4:C13)<>'Recursos Humanos'!N4,"ERROH",IF(SUM(D4:D13)<>'Recursos Humanos'!N5,"ERROM","OK")) -> OK | J4: =IF(OR(C4>0,D4>0),"ERRO4","OK") -> OK | K4: =IF(SUM(C10:C13)<SUM('Recursos Humanos'!D4,'Recursos Humanos'!E4,'Recursos Humanos'!J4,'Recursos Humanos'!K4,'Recursos Humanos'!L4),"ERROH",IF(SUM(D10:D13)<SUM('Recursos Humanos'!D5:E5,'Recursos Humanos'!J5,'Recursos Humanos'!K5,'Recursos Humanos'!L5),"ERROM","OK")) -> OK
B5: 4 anos de escolaridade | C5: 2 | D5: 6 | E5: 8 | F5: 0.0824742268 | G5: 0
B6: 6 anos de escolaridade | C6: 1 | D6: 18 | E6: 19 | F6: 0.1958762887 | G6: 0
B7: 9 anos de escolaridade | C7: 1 | D7: 1 | E7: 2 | F7: 0.0206185567 | G7: 0
B8: 11 anos de escolaridade | C8: 0 | D8: 2 | E8: 2 | F8: 0.0206185567 | G8: 0
B9: 12 anos de escolaridade | C9: 1 | D9: 10 | E9: 11 | F9: 0.1134020619 | G9: 0
B10: Bacharelato ou curso médio | C10: 0 | D10: 0 | E10: 0 | F10: 0 | G10: 0
B11: Licenciatura | C11: 12 | D11: 38 | E11: 50 | F11: 0.5154639175 | G11: 0
B12: Mestrado | C12: 1 | D12: 4 | E12: 5 | F12: 0.05154639175 | G12: 0
B13: Doutoramento | C13: 0 | D13: 0 | E13: 0 | F13: 0 | G13: 0
G14: =SUM(E4:E13) -> 97
A15: Notas:
A16: (1) Considerar as habilitações literárias de todos os trabalhadores ao serviço, em 31 de dezembro.
A18: Observações:

Sheet Admissões
A1: =IF(Identificação!C17="","",Identificação!C17) -> ESCOLA BÁSICA E SECUNDÁRIA COM PRÉ-ESCOLAR E CRECHE DO PORTO MONIZ
A2: =IF(Validação!E24="Preenchido","","Mensagem: " & Validação!E24 & "! " & Validação!E25) -> 
A3: 1.9 | B3: Admissões (1) (2) | D3: Dirigente | E3: Técnico Superior | F3: Assistente Técnico | G3: Assistente Operacional | H3: Carreiras e Categorias subsistentes | I3: Carreiras e Corpos especiais | J3: Carreira Médica | K3: Carreira de Enfermagem | L3: Carreira Docente | M3: Outros | N3: Total
A4: 1.9.1 | B4: Nomeação | C4: H | D4: 0 | E4: 0 | F4: 0 | G4: 0 | H4: 0 | I4: 0 | J4: 0 | K4: 0 | L4: 0 | M4: 0 | N4: =SUM(D4:M4) -> 0 | O4: =IF(OR(D4="",E4="",F4="",G4="",H4="",I4="",J4="",K4="",L4="",M4="",D5="",E5="",F5="",G5="",H5="",I5="",J5="",K5="",L5="",M5=""),1,0) -> 0 | P4: =SUM(O4,O7,O10,O13) -> 0
C5: M | D5: 0 | E5: 0 | F5: 0 | G5: 0 | H5: 0 | I5: 0 | J5: 0 | K5: 0 | L5: 0 | M5: 0 | N5: 0
C6: T | D6: =SUM(D4,D5) -> 0 | E6: 0 | F6: 0 | G6: 0 | H6: 0 | I6: 0 | J6: 0 | K6: 0 | L6: 0 | M6: 0 | N6: 0
A7: 1.9.2 | B7: Contrato por tempo indeterminado | C7: H | D7: 0 | E7: 0 | F7: 0 | G7: 0 | H7: 0 | I7: 0 | J7: 0 | K7: 0 | L7: 3 | M7: 0 | N7: 3 | O7: =IF(OR(D7="",E7="",F7="",G7="",H7="",I7="",J7="",K7="",L7="",M7="",D8="",E8="",F8="",G8="",H8="",I8="",J8="",K8="",L8="",M8=""),1,0) -> 0
C8: M | D8: 0 | E8: 0 | F8: 0 | G8: 0 | H8: 0 | I8: 0 | J8: 0 | K8: 0 | L8: 5 | M8: 0 | N8: 5
C9: T | D9: =SUM(D7,D8) -> 0 | E9: 0 | F9: 0 | G9: 0 | H9: 0 | I9: 0 | J9: 0 | K9: 0 | L9: 8 | M9: 0 | N9: 8
A10: 1.9.3 | B10: Contrato a termo resolutivo, certo ou incerto (3) | C10: H | D10: 0 | E10: 0 | F10: 0 | G10: 0 | H10: 0 | I10: 0 | J10: 0 | K10: 0 | L10: 2 | M10: 0 | N10: 2 | O10: =IF(OR(D10="",E10="",F10="",G10="",H10="",I10="",J10="",K10="",L10="",M10="",D11="",E11="",F11="",G11="",H11="",I11="",J11="",K11="",L11="",M11=""),1,0) -> 0
C11: M | D11: 0 | E11: 0 | F11: 0 | G11: 0 | H11: 0 | I11: 0 | J11: 0 | K11: 0 | L11: 14 | M11: 0 | N11: 14
C12: T | D12: =SUM(D10,D11) -> 0 | E12: 0 | F12: 0 | G12: 0 | H12: 0 | I12: 0 | J12: 0 | K12: 0 | L12: 16 | M12: 0 | N12: 16
A13: 1.9.4 | B13: Outros | C13: H | D13: 0 | E13: 0 | F13: 0 | G13: 0 | H13: 0 | I13: 0 | J13: 0 | K13: 0 | L13: 0 | M13: 0 | N13: 0 | O13: =IF(OR(D13="",E13="",F13="",G13="",H13="",I13="",J13="",K13="",L13="",M13="",D14="",E14="",F14="",G14="",H14="",I14="",J14="",K14="",L14="",M14=""),1,0) -> 0
C14: M | D14: 0 | E14: 0 | F14: 0 | G14: 0 | H14: 0 | I14: 0 | J14: 0 | K14: 0 | L14: 0 | M14: 0 | N14: 0
C15: T | D15: =SUM(D13,D14) -> 0 | E15: 0 | F15: 0 | G15: 0 | H15: 0 | I15: 0 | J15: 0 | K15: 0 | L15: 0 | M15: 0 | N15: 0
A16: 1.9.5 | B16: Total | D16: =SUM(D15,D12,D9,D6) -> 0 | E16: 0 | F16: 0 | G16: 0 | H16: 0 | I16: 0 | J16: 0 | K16: 0 | L16: 24 | M16: 0 | N16: 24
D17: =IF(SUM(D4,D7,D10,D13)-SUM(Saídas!D4,Saídas!D7,Saídas!D10,Saídas!D13)>'Recursos Humanos'!D4,"ERROH",IF(SUM(D5,D8,D11,D14)-SUM(Saídas!D5,Saídas!D8,Saídas!D11,Saídas!D14)>'Recursos Humanos'!D5,"ERROM","OK")) -> OK | E17: =IF(SUM(E4,E7,E10,E13)-SUM(Saídas!E4,Saídas!E7,Saídas!E10,Saídas!E13)>'Recursos Humanos'!E4,"ERROH",IF(SUM(E5,E8,E11,E14)-SUM(Saídas!E5,Saídas!E8,Saídas!E11,Saídas!E14)>'Recursos Humanos'!E5,"ERROM","OK")) -> OK | F17: =IF(SUM(F4,F7,F10,F13)-SUM(Saídas!F4,Saídas!F7,Saídas!F10,Saídas!F13)>'Recursos Humanos'!F4,"ERROH",IF(SUM(F5,F8,F11,F14)-SUM(Saídas!F5,Saídas!F8,Saídas!F11,Saídas!F14)>'Recursos Humanos'!F5,"ERROM","OK")) -> OK | G17: =IF(SUM(G4,G7,G10,G13)-SUM(Saídas!G4,Saídas!G7,Saídas!G10,Saídas!G13)>'Recursos Humanos'!G4,"ERROH",IF(SUM(G5,G8,G11,G14)-SUM(Saídas!G5,Saídas!G8,Saídas!G11,Saídas!G14)>'Recursos Humanos'!G5,"ERROM","OK")) -> OK | H17: =IF(SUM(H4,H7,H10,H13)-SUM(Saídas!H4,Saídas!H7,Saídas!H10,Saídas!H13)>'Recursos Humanos'!H4,"ERROH",IF(SUM(H5,H8,H11,H14)-SUM(Saídas!H5,Saídas!H8,Saídas!H11,Saídas!H14)>'Recursos Humanos'!H5,"ERROM","OK")) -> OK | I17: =IF(SUM(I4,I7,I10,I13)-SUM(Saídas!I4,Saídas!I7,Saídas!I10,Saídas!I13)>'Recursos Humanos'!I4,"ERROH",IF(SUM(I5,I8,I11,I14)-SUM(Saídas!I5,Saídas!I8,Saídas!I11,Saídas!I14)>'Recursos Humanos'!I5,"ERROM","OK")) -> OK | J17: =IF(SUM(J4,J7,J10,J13)-SUM(Saídas!J4,Saídas!J7,Saídas!J10,Saídas!J13)>'Recursos Humanos'!J4,"ERROH",IF(SUM(J5,J8,J11,J14)-SUM(Saídas!J5,Saídas!J8,Saídas!J11,Saídas!J14)>'Recursos Humanos'!J5,"ERROM","OK")) -> OK | K17: =IF(SUM(K4,K7,K10,K13)-SUM(Saídas!K4,Saídas!K7,Saídas!K10,Saídas!K13)>'Recursos Humanos'!K4,"ERROH",IF(SUM(K5,K8,K11,K14)-SUM(Saídas!K5,Saídas!K8,Saídas!K11,Saídas!K14)>'Recursos Humanos'!K5,"ERROM","OK")) -> OK | L17: =IF(SUM(L4,L7,L10,L13)-SUM(Saídas!L4,Saídas!L7,Saídas!L10,Saídas!L13)>'Recursos Humanos'!L4,"ERROH",IF(SUM(L5,L8,L11,L14)-SUM(Saídas!L5,Saídas!L8,Saídas!L11,Saídas!L14)>'Recursos Humanos'!L5,"ERROM","OK")) -> OK | M17: =IF(SUM(M4,M7,M10,M13)-SUM(Saídas!M4,Saídas!M7,Saídas!M10,Saídas!M13)>'Recursos Humanos'!M4,"ERROH",IF(SUM(M5,M8,M11,M14)-SUM(Saídas!M5,Saídas!M8,Saídas!M11,Saídas!M14)>'Recursos Humanos'!M5,"ERROM","OK")) -> OK
A18: Por favor enuncie quais as situações referidas em "Outros" (1.9.4):
O19: =IF(AND(N15<>0,A19=""),"ERRO","OK") -> OK
A21: Notas:
A22: (1) Incluir todos os trabalhadores que ingressaram ou regressaram ao serviço, entre 1 de janeiro e 31 de dezembro, conforme o tipo de vínculo que detenham.
A23: (2) Contabilizar os trabalhadores que, embora pertencendo a outros mapas de pessoal, tenham iniciado funções pela primeira vez neste serviço ao abrigo de uma mobilidade entre 1 de janeiro e 31 de dezembro.
A24: (3) Os docentes com contrato a termo resolutivo devem ser considerados na linha "Contrato a termo resolutivo, certo ou incerto" (ponto 1.9.3). Apenas deverão ser contabilizados os contratos a termo resolutivo celebrados pela primeira vez, ou seja, as renovações não deverão ser consideradas como 'Admissões', uma vez que o docente já se encontrava a exercer funções no estabelecimento.
A26: Observações:

Sheet Saídas
A1: =IF(Identificação!C17="","",Identificação!C17) -> ESCOLA BÁSICA E SECUNDÁRIA COM PRÉ-ESCOLAR E CRECHE DO PORTO MONIZ
A2: =IF(Validação!E27="Preenchido","","Mensagem: " & Validação!E27 & "! " & Validação!E28) -> 
A3: 1.10 | B3: Saídas (1) | D3: Dirigente | E3: Técnico Superior | F3: Assistente Técnico | G3: Assistente Operacional | H3: Carreiras e Categorias subsistentes | I3: Carreiras e Corpos especiais | J3: Carreira Médica | K3: Carreira de Enfermagem | L3: Carreira Docente | M3: Outros | N3: Total
A4: 1.10.1 | B4: Com Nomeação | C4: H | D4: 0 | E4: 0 | F4: 0 | G4: 0 | H4: 0 | I4: 0 | J4: 0 | K4: 0 | L4: 0 | M4: 0 | N4: =SUM(D4:M4) -> 0 | O4: =IF(OR(D4="",E4="",F4="",G4="",H4="",I4="",J4="",K4="",L4="",M4="",D5="",E5="",F5="",G5="",H5="",I5="",J5="",K5="",L5="",M5=""),1,0) -> 0 | P4: =SUM(O4,O7,O10,O13) -> 0
C5: M | D5: 0 | E5: 0 | F5: 0 | G5: 0 | H5: 0 | I5: 0 | J5: 0 | K5: 0 | L5: 0 | M5: 0 | N5: 0
C6: T | D6: =SUM(D4,D5) -> 0 | E6: 0 | F6: 0 | G6: 0 | H6: 0 | I6: 0 | J6: 0 | K6: 0 | L6: 0 | M6: 0 | N6: 0
A7: 1.10.2 | B7: Com Contrato por tempo indeterminado | C7: H | D7: 0 | E7: 0 | F7: 0 | G7: 0 | H7: 0 | I7: 0 | J7: 0 | K7: 0 | L7: 1 | M7: 0 | N7: 1 | O7: =IF(OR(D7="",E7="",F7="",G7="",H7="",I7="",J7="",K7="",L7="",M7="",D8="",E8="",F8="",G8="",H8="",I8="",J8="",K8="",L8="",M8=""),1,0) -> 0
C8: M | D8: 0 | E8: 0 | F8: 0 | G8: 0 | H8: 0 | I8: 0 | J8: 0 | K8: 0 | L8: 7 | M8: 0 | N8: 7
C9: T | D9: =SUM(D7,D8) -> 0 | E9: 0 | F9: 0 | G9: 0 | H9: 0 | I9: 0 | J9: 0 | K9: 0 | L9: 8 | M9: 0 | N9: 8
A10: 1.10.3 | B10: Com Contrato a termo resolutivo certo ou incerto | C10: H | D10: 0 | E10: 0 | F10: 0 | G10: 0 | H10: 0 | I10: 0 | J10: 0 | K10: 0 | L10: 4 | M10: 0 | N10: 4 | O10: =IF(OR(D10="",E10="",F10="",G10="",H10="",I10="",J10="",K10="",L10="",M10="",D11="",E11="",F11="",G11="",H11="",I11="",J11="",K11="",L11="",M11=""),1,0) -> 0
C11: M | D11: 0 | E11: 0 | F11: 0 | G11: 0 | H11: 0 | I11: 0 | J11: 0 | K11: 0 | L11: 15 | M11: 0 | N11: 15
C12: T | D12: =SUM(D10,D11) -> 0 | E12: 0 | F12: 0 | G12: 0 | H12: 0 | I12: 0 | J12: 0 | K12: 0 | L12: 19 | M12: 0 | N12: 19
A13: 1.10.4 | B13: Outros | C13: H | D13: 0 | E13: 0 | F13: 0 | G13: 0 | H13: 0 | I13: 0 | J13: 0 | K13: 0 | L13: 0 | M13: 0 | N13: 0 | O13: =IF(OR(D13="",E13="",F13="",G13="",H13="",I13="",J13="",K13="",L13="",M13="",D14="",E14="",F14="",G14="",H14="",I14="",J14="",K14="",L14="",M14=""),1,0) -> 0
C14: M | D14: 0 | E14: 0 | F14: 0 | G14: 0 | H14: 0 | I14: 0 | J14: 0 | K14: 0 | L14: 0 | M14: 0 | N14: 0
C15: T | D15: =SUM(D13,D14) -> 0 | E15: 0 | F15: 0 | G15: 0 | H15: 0 | I15: 0 | J15: 0 | K15: 0 | L15: 0 | M15: 0 | N15: 0
A16: 1.10.5 | B16: Total | D16: =SUM(D15,D9,D12,D6) -> 0 | E16: 0 | F16: 0 | G16: 0 | H16: 0 | I16: 0 | J16: 0 | K16: 0 | L16: 27 | M16: 0 | N16: 27
A18: Por favor enuncie quais as situações referidas em "Outros" (1.10.4):
O19: =IF(AND(N15<>0,A19=""),"ERRO","OK") -> OK
A20: Notas:
A21: (1) Incluir todos os trabalhadores que saíram do serviço, entre 1 de janeiro e 31 de dezembro, conforme o tipo de vínculo que detinham.
A23: Observações:

Sheet Saídas Nomeados
A1: =IF(Identificação!C17="","",Identificação!C17) -> ESCOLA BÁSICA E SECUNDÁRIA COM PRÉ-ESCOLAR E CRECHE DO PORTO MONIZ
A2: =IF(Validação!E30="Preenchido","","Mensagem: " & Validação!E30 & "! " & Validação!E31) -> 
A3: 1.11 | B3: Motivo das saídas dos trabalhadores nomeados (1) | C3: Dirigente | D3: Técnico Superior | E3: Assistente Técnico | F3: Assistente Operacional | G3: Carreiras e Categorias subsistentes | H3: Carreiras e Corpos especiais | I3: Carreira Médica | J3: Carreira de Enfermagem | K3: Carreira Docente | L3: Outros | M3: Total
A4: 1.11.1 | B4: Falecimento | C4: 0 | D4: 0 | E4: 0 | F4: 0 | G4: 0 | H4: 0 | I4: 0 | J4: 0 | K4: 0 | L4: 0 | M4: =SUM(C4:L4) -> 0 | N4: =IF(OR(K4="",L4=""),1,0) -> 0 | O4: =SUM(N4,N5,N6,N7,N8,N9,N10,N11) -> 0
A5: 1.11.2 | B5: Exoneração | C5: 0 | D5: 0 | E5: 0 | F5: 0 | G5: 0 | H5: 0 | I5: 0 | J5: 0 | K5: 0 | L5: 0 | M5: 0 | N5: 0
A6: 1.11.3 | B6: Aposentação | C6: 0 | D6: 0 | E6: 0 | F6: 0 | G6: 0 | H6: 0 | I6: 0 | J6: 0 | K6: 0 | L6: 0 | M6: 0 | N6: 0
A7: 1.11.4 | B7: Limite de idade | C7: 0 | D7: 0 | E7: 0 | F7: 0 | G7: 0 | H7: 0 | I7: 0 | J7: 0 | K7: 0 | L7: 0 | M7: 0 | N7: 0
A8: 1.11.5 | B8: Aposentação compulsiva | C8: 0 | D8: 0 | E8: 0 | F8: 0 | G8: 0 | H8: 0 | I8: 0 | J8: 0 | K8: 0 | L8: 0 | M8: 0 | N8: 0
A9: 1.11.6 | B9: Demissão | C9: 0 | D9: 0 | E9: 0 | F9: 0 | G9: 0 | H9: 0 | I9: 0 | J9: 0 | K9: 0 | L9: 0 | M9: 0 | N9: 0
A10: 1.11.7 | B10: Mútuo acordo | C10: 0 | D10: 0 | E10: 0 | F10: 0 | G10: 0 | H10: 0 | I10: 0 | J10: 0 | K10: 0 | L10: 0 | M10: 0 | N10: 0
A11: 1.11.8 | B11: Outros | C11: 0 | D11: 0 | E11: 0 | F11: 0 | G11: 0 | H11: 0 | I11: 0 | J11: 0 | K11: 0 | L11: 0 | M11: 0 | N11: 0
A12: 1.11.9 | B12: Total | C12: =SUM(C4:C11) -> 0 | D12: 0 | E12: 0 | F12: 0 | G12: 0 | H12: 0 | I12: 0 | J12: 0 | K12: 0 | L12: 0 | M12: 0
C13: =IF(SUM(C4:C11)<>Saídas!D6,"ERRO","OK") -> OK | D13: =IF(SUM(D4:D11)<>Saídas!E6,"ERRO","OK") -> OK | E13: =IF(SUM(E4:E11)<>Saídas!F6,"ERRO","OK") -> OK | F13: =IF(SUM(F4:F11)<>Saídas!G6,"ERRO","OK") -> OK | G13: =IF(SUM(G4:G11)<>Saídas!H6,"ERRO","OK") -> OK | H13: =IF(SUM(H4:H11)<>Saídas!I6,"ERRO","OK") -> OK | I13: =IF(SUM(I4:I11)<>Saídas!J6,"ERRO","OK") -> OK | J13: =IF(SUM(J4:J11)<>Saídas!K6,"ERRO","OK") -> OK | K13: =IF(SUM(K4:K11)<>Saídas!L6,"ERRO","OK") -> OK | L13: =IF(SUM(L4:L11)<>Saídas!M6,"ERRO","OK") -> OK
A14: Por favor enuncie quais as situações referidas em "Outros" (1.11.8):
N15: =IF(AND(M11<>0,A15=""),"ERRO","OK") -> OK
A16: Notas:
A17: (1) Registar o motivo das saídas dos trabalhadores com nomeação indicados no ponto 1.10.1.
A19: Observações:
A20: Afetação noutro estabelecimento de ensino.

Sheet Saídas Contratados
A1: =IF(Identificação!C17="","",Identificação!C17) -> ESCOLA BÁSICA E SECUNDÁRIA COM PRÉ-ESCOLAR E CRECHE DO PORTO MONIZ
A2: =IF(Validação!E33="Preenchido","","Mensagem: " & Validação!E33& "! " & Validação!E34) -> 
A3: 1.12 | B3: Motivo das saídas dos trabalhadores contratados | C3: Dirigente | D3: Técnico Superior | E3: Assistente Técnico | F3: Assistente Operacional | G3: Carreiras e Categorias subsistentes | H3: Carreiras e Corpos especiais | I3: Carreira Médica | J3: Carreira de Enfermagem | K3: Carreira Docente | L3: Outros | M3: Total
A4: 1.12.1 | B4: Caducidade | C4: 0 | D4: 0 | E4: 0 | F4: 0 | G4: 0 | H4: 0 | I4: 0 | J4: 0 | K4: 19 | L4: 0 | M4: =SUM(C4:L4) -> 19 | N4: =IF(OR(K4="",L4=""),1,0) -> 0 | O4: =SUM(N4,N5,N6,N7,N8,N9,N10,N11) -> 0
A5: 1.12.1.1 | B5: Falecimento | C5: 0 | D5: 0 | E5: 0 | F5: 0 | G5: 0 | H5: 0 | I5: 0 | J5: 0 | K5: 0 | L5: 0 | M5: 0 | N5: 0
A6: 1.12.1.2 | B6: Reforma/Aposentação | C6: 0 | D6: 0 | E6: 0 | F6: 0 | G6: 0 | H6: 0 | I6: 0 | J6: 0 | K6: 0 | L6: 0 | M6: 0 | N6: 0
A7: 1.12.1.3 | B7: Outras causas de caducidade | C7: 0 | D7: 0 | E7: 0 | F7: 0 | G7: 0 | H7: 0 | I7: 0 | J7: 0 | K7: 0 | L7: 0 | M7: 0 | N7: 0
A8: 1.12.2 | B8: Revogação | C8: 0 | D8: 0 | E8: 0 | F8: 0 | G8: 0 | H8: 0 | I8: 0 | J8: 0 | K8: 0 | L8: 0 | M8: 0 | N8: 0
A9: 1.12.3 | B9: Resolução | C9: 0 | D9: 0 | E9: 0 | F9: 0 | G9: 0 | H9: 0 | I9: 0 | J9: 0 | K9: 0 | L9: 0 | M9: 0 | N9: 0
A10: 1.12.4 | B10: Denúncia | C10: 0 | D10: 0 | E10: 0 | F10: 0 | G10: 0 | H10: 0 | I10: 0 | J10: 0 | K10: 0 | L10: 0 | M10: 0 | N10: 0
A11: 1.12.5 | B11: Outros | C11: 0 | D11: 0 | E11: 0 | F11: 0 | G11: 0 | H11: 0 | I11: 0 | J11: 0 | K11: 8 | L11: 0 | M11: 8 | N11: 0
A12: 1.12.9 | B12: Total | C12: =SUM(C4:C11) -> 0 | D12: 0 | E12: 0 | F12: 0 | G12: 0 | H12: 0 | I12: 0 | J12: 0 | K12: 27 | L12: 0 | M12: 27
C13: =IF(SUM(C4:C11)<>Saídas!D9+Saídas!D12,"ERRO","OK") -> OK | D13: =IF(SUM(D4:D11)<>Saídas!E9+Saídas!E12,"ERRO","OK") -> OK | E13: =IF(SUM(E4:E11)<>Saídas!F9+Saídas!F12,"ERRO","OK") -> OK | F13: =IF(SUM(F4:F11)<>Saídas!G9+Saídas!G12,"ERRO","OK") -> OK | G13: =IF(SUM(G4:G11)<>Saídas!H9+Saídas!H12,"ERRO","OK") -> OK | H13: =IF(SUM(H4:H11)<>Saídas!I9+Saídas!I12,"ERRO","OK") -> OK | I13: =IF(SUM(I4:I11)<>Saídas!J9+Saídas!J12,"ERRO","OK") -> OK | J13: =IF(SUM(J4:J11)<>Saídas!K9+Saídas!K12,"ERRO","OK") -> OK | K13: =IF(SUM(K4:K11)<>Saídas!L9+Saídas!L12,"ERRO","OK") -> OK | L13: =IF(SUM(L4:L11)<>Saídas!M9+Saídas!M12,"ERRO","OK") -> OK
A14: Por favor enuncie quais as situações referidas em "Outros" (1.12.5):
A15: Carreira Docente: Mobilidade de docentes do Quadro de Zona Pedagópgica 1. | N15: =IF(AND(M11<>0,A15=""),"ERRO","OK") -> OK
A16: Notas:
A17: (1) Registar o motivo das saídas dos trabalhadores com contrato a termo resolutivo ou por tempo indeterminado a indicados nos pontos 1.10.2 e 1.10.3.
A19: Observações:

Sheet Postos de Trabalho
A1: =IF(Identificação!C17="","",Identificação!C17) -> ESCOLA BÁSICA E SECUNDÁRIA COM PRÉ-ESCOLAR E CRECHE DO PORTO MONIZ
A2: =IF(Validação!E36="Preenchido","","Mensagem: " & Validação!E36 & "! " & Validação!E37) -> 
A3: 1.13 | B3: Postos de trabalho não ocupados por dificuldades de provimento | C3: Carreira/profissão | D3: Número de postos de trabalho
A4: 1.13.1 | B4: Ausência de autorização pelas entidades competentes | C4: 0 | D4: 0 | E4: =IF(OR(B4="",C4=""),1,0) -> 0 | F4: =SUM(E4,E5,E6,E7) -> 0
A5: 1.13.2 | B5: Não abertura de procedimento | C5: 0 | D5: 0 | E5: =IF(OR(B5="",C5=""),1,0) -> 0
A6: 1.13.3 | B6: Impugnação do procedimento | C6: 0 | D6: 0 | E6: =IF(OR(B6="",C6=""),1,0) -> 0
A7: 1.13.4 | B7: Outras | C7: 0 | D7: 0 | E7: =IF(OR(B7="",C7=""),1,0) -> 0
A9: Por favor enuncie quais as situações referidas em "Outras" (1.13.4):
E10: =IF(AND(D7<>0,A10=""),"ERRO","OK") -> OK
A12: Observações:

Sheet Alter. Posic. e Promoções
A1: =IF(Identificação!C17="","",Identificação!C17) -> ESCOLA BÁSICA E SECUNDÁRIA COM PRÉ-ESCOLAR E CRECHE DO PORTO MONIZ
A2: =IF(Validação!E39="Preenchido","","Mensagem: " & Validação!E39 & "! " & Validação!E40) -> 
A3: 1.14 | B3: Alterações do Posicionamento Remuneratório / Promoções | D3: Dirigente | E3: Técnico Superior | F3: Assistente Técnico | G3: Assistente Operacional | H3: Carreiras e Categorias subsistentes | I3: Carreiras e Corpos especiais | J3: Carreira Médica | K3: Carreira de Enfermagem | L3: Carreira Docente | M3: Outros | N3: Total
B4: Alterações do posicionamento remuneratório | C4: H | D4: 1 | E4: 0 | F4: 0 | G4: 0 | H4: 0 | I4: 0 | J4: 0 | K4: 0 | L4: 3 | M4: 0 | N4: =SUM(D4:M4) -> 4 | O4: =IF(OR(D4="",E4="",F4="",G4="",H4="",I4="",J4="",K4="",L4="",M4="",D5="",E5="",F5="",G5="",H5="",I5="",J5="",K5="",L5="",M5=""),1,0) -> 0 | P4: =SUM(O4,O7) -> 0 | Q4: =IF(OR(D9<>0,E9<>0,F9<>0,G9<>0),"ERRO","OK") -> OK
A5: 1.14.1 | C5: M | D5: 2 | E5: 0 | F5: 0 | G5: 0 | H5: 0 | I5: 0 | J5: 0 | K5: 0 | L5: 12 | M5: 0 | N5: 14
C6: T | D6: =SUM(D4,D5) -> 3 | E6: 0 | F6: 0 | G6: 0 | H6: 0 | I6: 0 | J6: 0 | K6: 0 | L6: 15 | M6: 0 | N6: 18
B7: Promoções (carreiras e categorias subsistentes, carreiras e corpos especiais) | C7: H | D7: 0 | E7: 0 | F7: 0 | G7: 0 | H7: 0 | I7: 0 | J7: 0 | K7: 0 | L7: 0 | M7: 0 | N7: 0 | O7: =IF(OR(D7="",E7="",F7="",G7="",H7="",I7="",J7="",K7="",L7="",M7="",D8="",E8="",F8="",G8="",H8="",I8="",J8="",K8="",L8="",M8=""),1,0) -> 0
A8: 1.14.2 | C8: M | D8: 0 | E8: 0 | F8: 0 | G8: 0 | H8: 0 | I8: 0 | J8: 0 | K8: 0 | L8: 0 | M8: 0 | N8: 0
C9: T | D9: =SUM(D7,D8) -> 0 | E9: 0 | F9: 0 | G9: 0 | H9: 0 | I9: 0 | J9: 0 | K9: 0 | L9: 0 | M9: 0 | N9: 0
A10: 1.14.3 | B10: Total | D10: =SUM(D9,D6) -> 3 | E10: 0 | F10: 0 | G10: 0 | H10: 0 | I10: 0 | J10: 0 | K10: 0 | L10: 15 | M10: 0 | N10: 18
A15: Observações:

Sheet Modalidade de Horário
A1: =IF(Identificação!C17="","",Identificação!C17) -> ESCOLA BÁSICA E SECUNDÁRIA COM PRÉ-ESCOLAR E CRECHE DO PORTO MONIZ
A2: =IF(Validação!E42="Preenchido","","Mensagem: " & Validação!E42 & "! " & Validação!E43) -> 
A3: 1.15 | B3: Modalidades de Horário | C3: Dirigente (1) | D3: Técnico Superior | E3: Assistente Técnico (2) | F3: Assistente Operacional | G3: Carreiras e Categorias subsistentes | H3: Carreiras e Corpos especiais | I3: Carreira Médica | J3: Carreira de Enfermagem | K3: Carreira Docente (3) | L3: Outros | M3: Total
A4: 1.15.1 | B4: Horário rígido | C4: 0 | D4: 2 | E4: 9 | F4: 27 | G4: 5 | H4: 1 | I4: 0 | J4: 0 | K4: 49 | L4: 0 | M4: =SUM(C4:L4) -> 93 | N4: =IF(OR(K4="",L4=""),1,0) -> 0 | O4: =SUM(N4,N5,N6,N7,N8,N9,N10,N11,N12,N13) -> 0 | P4: =IF(C14<>C12,"ERROISE","OK") -> OK | Q4: =IF(AND(SUM(K4:K13)<>0,K4=0),"ERRODOC","OK") -> OK
A5: 1.15.2 | B5: Horários flexíveis | C5: 0 | D5: 0 | E5: 0 | F5: 0 | G5: 0 | H5: 0 | I5: 0 | J5: 0 | K5: 0 | L5: 0 | M5: 0 | N5: 0
A6: 1.15.3 | B6: Horários desfasados | C6: 0 | D6: 0 | E6: 0 | F6: 0 | G6: 0 | H6: 0 | I6: 0 | J6: 0 | K6: 0 | L6: 0 | M6: 0 | N6: 0
A7: 1.15.4 | B7: Jornada contínua | C7: 0 | D7: 0 | E7: 0 | F7: 0 | G7: 0 | H7: 0 | I7: 0 | J7: 0 | K7: 0 | L7: 0 | M7: 0 | N7: 0
A8: 1.15.5 | B8: Trabalho por turnos | C8: 0 | D8: 0 | E8: 0 | F8: 0 | G8: 0 | H8: 0 | I8: 0 | J8: 0 | K8: 0 | L8: 0 | M8: 0 | N8: 0
A9: 1.15.6 | B9: Trabalhador-estudante | C9: 0 | D9: 0 | E9: 0 | F9: 0 | G9: 0 | H9: 0 | I9: 0 | J9: 0 | K9: 0 | L9: 0 | M9: 0 | N9: 0
A10: 1.15.7 | B10: Assistência a descendentes menores | C10: 0 | D10: 0 | E10: 0 | F10: 0 | G10: 0 | H10: 0 | I10: 0 | J10: 0 | K10: 0 | L10: 0 | M10: 0 | N10: 0
A11: 1.15.8 | B11: Tempo parcial | C11: 0 | D11: 0 | E11: 0 | F11: 0 | G11: 0 | H11: 0 | I11: 0 | J11: 0 | K11: 0 | L11: 0 | M11: 0 | N11: 0
A12: 1.15.9 | B12: Isenção de horário | C12: 3 | D12: 0 | E12: 1 | F12: 0 | G12: 0 | H12: 0 | I12: 0 | J12: 0 | K12: 0 | L12: 0 | M12: 4 | N12: 0
A13: 1.15.10 | B13: Adaptabilidade | C13: 0 | D13: 0 | E13: 0 | F13: 0 | G13: 0 | H13: 0 | I13: 0 | J13: 0 | K13: 0 | L13: 0 | M13: 0 | N13: 0
A14: 1.15.11 | B14: Total | C14: =SUM(C4:C13) -> 3 | D14: 2 | E14: 10 | F14: 27 | G14: 5 | H14: 1 | I14: 0 | J14: 0 | K14: 49 | L14: 0 | M14: 97
C15: =IF(SUM(C4:C13)<>'Recursos Humanos'!D6,"ERRO","OK") -> OK | D15: =IF(SUM(D4:D13)<>'Recursos Humanos'!E6,"ERRO","OK") -> OK | E15: =IF(SUM(E4:E13)<>'Recursos Humanos'!F6,"ERRO","OK") -> OK | F15: =IF(SUM(F4:F13)<>'Recursos Humanos'!G6,"ERRO","OK") -> OK | G15: =IF(SUM(G4:G13)<>'Recursos Humanos'!H6,"ERRO","OK") -> OK | H15: =IF(SUM(H4:H13)<>'Recursos Humanos'!I6,"ERRO","OK") -> OK | I15: =IF(SUM(I4:I13)<>'Recursos Humanos'!J6,"ERRO","OK") -> OK | J15: =IF(SUM(J4:J13)<>'Recursos Humanos'!K6,"ERRO","OK") -> OK | K15: =IF(SUM(K4:K13)<>'Recursos Humanos'!L6,"ERRO","OK") -> OK | L15: =IF(SUM(L4:L13)<>'Recursos Humanos'!M6,"ERRO","OK") -> OK
A16: Notas:
A17: (1) Os membros dos órgãos de gestão com dispensa da componente lectiva (Directores, Presidentes do Conselho Executivo e Comissões Instaladoras, Adjuntos e Vice-Presidentes) deverão ser incluídos no ponto 1.15.9 (isenção de horário).
A18: (2) Os Chefes de Departamento, de Serviços de Administração Escolar ou Coordenadores Técnicos deverão ser incluídos no ponto 1.15.9 (isenção de horário).
A19: (3) O pessoal docente (que possui horário específico) deverá ser incluído no ponto 1.15.1 (horário rígido). Os docentes com dispensa total da componente lectiva também deverão ser incluídos neste ponto.
A21: Observações:

Sheet Trabalho Extraord.
A1: =IF(Identificação!C17="","",Identificação!C17) -> ESCOLA BÁSICA E SECUNDÁRIA COM PRÉ-ESCOLAR E CRECHE DO PORTO MONIZ
A2: =IF(Validação!E45="Preenchido","","Mensagem: " & Validação!E45 & " " & Validação!E46) -> 
A3: 1.16 | B3: Trabalho extraordinário, nocturno e em dias de descanso semanal, complementar e feriados | D3: Número de horas
A4: 1.16.1 | B4: Trabalho extraordinário (1) | C4: H | D4: 0 | E4: =IF(D5="",1,0) -> 0 | F4: =SUM(E4,E5,E7,E8,E10,E11,E13,E14,E16,E17,E19,E20,E22,E23) -> 0
C5: M | D5: 0 | E5: =IF(D5="",1,0) -> 0
C6: T | D6: =SUM(D4,D5) -> 0
A7: 1.16.2 | B7: Trabalho extraordinário compensado por duração do período normal de trabalho | C7: H | D7: 0 | E7: =IF(D8="",1,0) -> 0
C8: M | D8: 0 | E8: =IF(D8="",1,0) -> 0
C9: T | D9: =SUM(D7,D8) -> 0
A10: 1.16.3 | B10: Trabalho extraordinário compensado por acréscimo do período de férias | C10: H | D10: 0 | E10: =IF(D11="",1,0) -> 0
C11: M | D11: 0 | E11: =IF(D11="",1,0) -> 0
C12: T | D12: =SUM(D10,D11) -> 0
A13: 1.16.4 | B13: Trabalho nocturno | C13: H | D13: 0 | E13: =IF(D14="",1,0) -> 0
C14: M | D14: 0 | E14: =IF(D14="",1,0) -> 0
C15: T | D15: =SUM(D13,D14) -> 0
A16: 1.16.5 | B16: Em dias de descanso complementar (Sábado) | C16: H | D16: 0 | E16: =IF(D17="",1,0) -> 0
C17: M | D17: 0 | E17: =IF(D17="",1,0) -> 0
C18: T | D18: =SUM(D16,D17) -> 0
A19: 1.16.6 | B19: Em dias de descanso semanal obrigatório (Domingo) | C19: H | D19: 0 | E19: =IF(D20="",1,0) -> 0
C20: M | D20: 0 | E20: =IF(D20="",1,0) -> 0
C21: T | D21: =SUM(D19,D20) -> 0
A22: 1.16.7 | B22: Em dias feriados | C22: H | D22: 0 | E22: =IF(D23="",1,0) -> 0
C23: M | D23: 0 | E23: =IF(D23="",1,0) -> 0
C24: T | D24: =SUM(D22,D23) -> 0
A26: Notas:
A27: (1) Considerar todo o trabalho extraordinário, diurno ou nocturno, que tenha sido abonado
A29: Observações:

Sheet Ausências Trabalho
A1: =IF(Identificação!C17="","",Identificação!C17) -> ESCOLA BÁSICA E SECUNDÁRIA COM PRÉ-ESCOLAR E CRECHE DO PORTO MONIZ
A2: =IF(Validação!E48="Preenchido","","Mensagem: " & Validação!E48 & "! " & Validação!E49) -> 
A3: 1.17 | B3: Ausências ao trabalho (1) | D3: Dirigente | E3: Técnico Superior | F3: Assistente Técnico | G3: Assistente Operacional | H3: Carreiras e Categorias subsistentes | I3: Carreiras e Corpos especiais | J3: Carreira Médica | K3: Carreira de Enfermagem | L3: Carreira Docente | M3: Outros | N3: Total
A4: 1.17.1 | B4: Casamento | C4: H | D4: 0 | E4: 0 | F4: 0 | G4: 0 | H4: 0 | I4: 0 | J4: 0 | K4: 0 | L4: 0 | M4: 0 | N4: =SUM(D4:M4) -> 0 | O4: =IF(OR(D4="",E4="",F4="",G4="",H4="",I4="",J4="",K4="",L4="",M4="",D5="",E5="",F5="",G5="",H5="",I5="",J5="",K5="",L5="",M5=""),1,0) -> 0 | P4: =SUM(O4,O7,O10,O13,O16,O19,O22,O25,O28,O31,O34,O37,O40) -> 0
C5: M | D5: 0 | E5: 0 | F5: 0 | G5: 0 | H5: 0 | I5: 0 | J5: 0 | K5: 0 | L5: 0 | M5: 0 | N5: 0
C6: T | D6: =SUM(D4,D5) -> 0 | E6: 0 | F6: 0 | G6: 0 | H6: 0 | I6: 0 | J6: 0 | K6: 0 | L6: 0 | M6: 0 | N6: 0
A7: 1.17.2 | B7: Maternidade / paternidade | C7: H | D7: 0 | E7: 0 | F7: 0 | G7: 0 | H7: 0 | I7: 0 | J7: 0 | K7: 0 | L7: 0 | M7: 0 | N7: 0 | O7: =IF(OR(D7="",E7="",F7="",G7="",H7="",I7="",J7="",K7="",L7="",M7="",D8="",E8="",F8="",G8="",H8="",I8="",J8="",K8="",L8="",M8=""),1,0) -> 0
C8: M | D8: 0 | E8: 0 | F8: 0 | G8: 0 | H8: 0 | I8: 0 | J8: 0 | K8: 0 | L8: 202 | M8: 0 | N8: 202
C9: T | D9: =SUM(D7,D8) -> 0 | E9: 0 | F9: 0 | G9: 0 | H9: 0 | I9: 0 | J9: 0 | K9: 0 | L9: 202 | M9: 0 | N9: 202
A10: 1.17.3 | B10: Nascimento | C10: H | D10: 0 | E10: 0 | F10: 0 | G10: 0 | H10: 0 | I10: 0 | J10: 0 | K10: 0 | L10: 0 | M10: 0 | N10: 0 | O10: =IF(OR(D10="",E10="",F10="",G10="",H10="",I10="",J10="",K10="",L10="",M10="",D11="",E11="",F11="",G11="",H11="",I11="",J11="",K11="",L11="",M11=""),1,0) -> 0
C11: M | D11: 0 | E11: 0 | F11: 0 | G11: 0 | H11: 0 | I11: 0 | J11: 0 | K11: 0 | L11: 0 | M11: 0 | N11: 0
C12: T | D12: =SUM(D10,D11) -> 0 | E12: 0 | F12: 0 | G12: 0 | H12: 0 | I12: 0 | J12: 0 | K12: 0 | L12: 0 | M12: 0 | N12: 0
A13: 1.17.4 | B13: Falecimento de familiar | C13: H | D13: 0 | E13: 0 | F13: 0 | G13: 2 | H13: 0 | I13: 7 | J13: 0 | K13: 0 | L13: 0 | M13: 0 | N13: 9 | O13: =IF(OR(D13="",E13="",F13="",G13="",H13="",I13="",J13="",K13="",L13="",M13="",D14="",E14="",F14="",G14="",H14="",I14="",J14="",K14="",L14="",M14=""),1,0) -> 0
C14: M | D14: 4 | E14: 0 | F14: 0 | G14: 5 | H14: 0 | I14: 0 | J14: 0 | K14: 0 | L14: 8 | M14: 0 | N14: 17
C15: T | D15: =SUM(D13,D14) -> 4 | E15: 0 | F15: 0 | G15: 7 | H15: 0 | I15: 7 | J15: 0 | K15: 0 | L15: 8 | M15: 0 | N15: 26
A16: 1.17.5 | B16: Doença | C16: H | D16: 0 | E16: 0 | F16: 0 | G16: 41 | H16: 0 | I16: 0 | J16: 0 | K16: 0 | L16: 0 | M16: 0 | N16: 41 | O16: =IF(OR(D16="",E16="",F16="",G16="",H16="",I16="",J16="",K16="",L16="",M16="",D17="",E17="",F17="",G17="",H17="",I17="",J17="",K17="",L17="",M17=""),1,0) -> 0
D17: 0 | E17: 0 | F17: 34 | G17: 116 | H17: 32 | I17: 0 | J17: 0 | K17: 0 | L17: 724 | M17: 0 | N17: 906
C18: T | D18: =SUM(D16,D17) -> 0 | E18: 0 | F18: 34 | G18: 157 | H18: 32 | I18: 0 | J18: 0 | K18: 0 | L18: 724 | M18: 0 | N18: 947
A19: 1.17.6 | B19: Doença prolongada | C19: H | D19: 0 | E19: 0 | F19: 0 | G19: 0 | H19: 0 | I19: 0 | J19: 0 | K19: 0 | L19: 0 | M19: 0 | N19: 0 | O19: =IF(OR(D19="",E19="",F19="",G19="",H19="",I19="",J19="",K19="",L19="",M19="",D20="",E20="",F20="",G20="",H20="",I20="",J20="",K20="",L20="",M20=""),1,0) -> 0
B20: prolongada | C20: M | D20: 0 | E20: 0 | F20: 0 | G20: 0 | H20: 0 | I20: 0 | J20: 0 | K20: 0 | L20: 197 | M20: 0 | N20: 197
C21: T | D21: =SUM(D19,D20) -> 0 | E21: 0 | F21: 0 | G21: 0 | H21: 0 | I21: 0 | J21: 0 | K21: 0 | L21: 197 | M21: 0 | N21: 197
A22: 1.17.7 | B22: Assistência a familiares | C22: H | D22: 0 | E22: 0 | F22: 0 | G22: 8 | H22: 0 | I22: 0 | J22: 0 | K22: 0 | L22: 3 | M22: 0 | N22: 11 | O22: =IF(OR(D22="",E22="",F22="",G22="",H22="",I22="",J22="",K22="",L22="",M22="",D23="",E23="",F23="",G23="",H23="",I23="",J23="",K23="",L23="",M23=""),1,0) -> 0
B23: a familiares | C23: M | D23: 0 | E23: 0 | F23: 8 | G23: 14 | H23: 1 | I23: 0 | J23: 0 | K23: 0 | L23: 78 | M23: 0 | N23: 101
C24: T | D24: =SUM(D22,D23) -> 0 | E24: 0 | F24: 8 | G24: 22 | H24: 1 | I24: 0 | J24: 0 | K24: 0 | L24: 81 | M24: 0 | N24: 112
A25: 1.17.8 | B25: Trabalhador-estudante | C25: H | D25: 0 | E25: 0 | F25: 0 | G25: 0 | H25: 0 | I25: 0 | J25: 0 | K25: 0 | L25: 0 | M25: 0 | N25: 0 | O25: =IF(OR(D25="",E25="",F25="",G25="",H25="",I25="",J25="",K25="",L25="",M25="",D26="",E26="",F26="",G26="",H26="",I26="",J26="",K26="",L26="",M26=""),1,0) -> 0 | P25: =IF(AND('Modalidade de Horário'!M9>0,N27=0),"ERRO","OK") -> OK
B26: estudante | C26: M | D26: 0 | E26: 0 | F26: 0 | G26: 0 | H26: 0 | I26: 0 | J26: 0 | K26: 0 | L26: 0 | M26: 0 | N26: 0
C27: T | D27: =SUM(D25,D26) -> 0 | E27: 0 | F27: 0 | G27: 0 | H27: 0 | I27: 0 | J27: 0 | K27: 0 | L27: 0 | M27: 0 | N27: 0
A28: 1.17.9 | B28: Por conta do período de férias | C28: H | D28: 0 | E28: 0 | F28: 0 | G28: 8 | H28: 0 | I28: 0 | J28: 0 | K28: 0 | L28: 6 | M28: 0 | N28: 14 | O28: =IF(OR(D28="",E28="",F28="",G28="",H28="",I28="",J28="",K28="",L28="",M28="",D29="",E29="",F29="",G29="",H29="",I29="",J29="",K29="",L29="",M29=""),1,0) -> 0
B29: período de férias | C29: M | D29: 2 | E29: 1 | F29: 9 | G29: 17 | H29: 1 | I29: 0 | J29: 0 | K29: 0 | L29: 21 | M29: 0 | N29: 51
C30: T | D30: =SUM(D28,D29) -> 2 | E30: 1 | F30: 9 | G30: 25 | H30: 1 | I30: 0 | J30: 0 | K30: 0 | L30: 27 | M30: 0 | N30: 65
A31: 1.17.10 | B31: Por perda de vencimento | C31: H | D31: 0 | E31: 0 | F31: 0 | G31: 0 | H31: 0 | I31: 0 | J31: 0 | K31: 0 | L31: 0 | M31: 0 | N31: 0 | O31: =IF(OR(D31="",E31="",F31="",G31="",H31="",I31="",J31="",K31="",L31="",M31="",D32="",E32="",F32="",G32="",H32="",I32="",J32="",K32="",L32="",M32=""),1,0) -> 0
B32: de vencimento | C32: M | D32: 0 | E32: 0 | F32: 0 | G32: 0 | H32: 0 | I32: 0 | J32: 0 | K32: 0 | L32: 0 | M32: 0 | N32: 0
C33: T | D33: =SUM(D31,D32) -> 0 | E33: 0 | F33: 0 | G33: 0 | H33: 0 | I33: 0 | J33: 0 | K33: 0 | L33: 0 | M33: 0 | N33: 0
A34: 1.17.11 | B34: Cumprimento de pena disciplinar | C34: H | D34: 0 | E34: 0 | F34: 0 | G34: 0 | H34: 0 | I34: 0 | J34: 0 | K34: 0 | L34: 0 | M34: 0 | N34: 0 | O34: =IF(OR(D34="",E34="",F34="",G34="",H34="",I34="",J34="",K34="",L34="",M34="",D35="",E35="",F35="",G35="",H35="",I35="",J35="",K35="",L35="",M35=""),1,0) -> 0
B35: pena disciplinar | C35: M | D35: 0 | E35: 0 | F35: 0 | G35: 0 | H35: 0 | I35: 0 | J35: 0 | K35: 0 | L35: 0 | M35: 0 | N35: 0
C36: T | D36: =SUM(D34,D35) -> 0 | E36: 0 | F36: 0 | G36: 0 | H36: 0 | I36: 0 | J36: 0 | K36: 0 | L36: 0 | M36: 0 | N36: 0
A37: 1.17.12 | B37: Injustificadas | C37: H | D37: 0 | E37: 0 | F37: 0 | G37: 0 | H37: 0 | I37: 0 | J37: 0 | K37: 0 | L37: 0 | M37: 0 | N37: 0 | O37: =IF(OR(D37="",E37="",F37="",G37="",H37="",I37="",J37="",K37="",L37="",M37="",D38="",E38="",F38="",G38="",H38="",I38="",J38="",K38="",L38="",M38=""),1,0) -> 0
C38: M | D38: 0 | E38: 0 | F38: 0 | G38: 0 | H38: 0 | I38: 0 | J38: 0 | K38: 0 | L38: 0 | M38: 0 | N38: 0
C39: T | D39: =SUM(D37,D38) -> 0 | E39: 0 | F39: 0 | G39: 0 | H39: 0 | I39: 0 | J39: 0 | K39: 0 | L39: 0 | M39: 0 | N39: 0
A40: 1.17.13 | B40: Outras | C40: H | D40: 0 | E40: 0 | F40: 0 | G40: 0 | H40: 0 | I40: 0 | J40: 0 | K40: 0 | L40: 4 | M40: 0 | N40: 4 | O40: =IF(OR(D40="",E40="",F40="",G40="",H40="",I40="",J40="",K40="",L40="",M40="",D41="",E41="",F41="",G41="",H41="",I41="",J41="",K41="",L41="",M41=""),1,0) -> 0
C41: M | D41: 0 | E41: 1 | F41: 14 | G41: 0 | H41: 0 | I41: 0 | J41: 0 | K41: 0 | L41: 19 | M41: 0 | N41: 34
C42: T | D42: =SUM(D40,D41) -> 0 | E42: 1 | F42: 14 | G42: 0 | H42: 0 | I42: 0 | J42: 0 | K42: 0 | L42: 23 | M42: 0 | N42: 38
A43: 1.17.14 | B43: Total | C43: H | D43: =SUM(D4+D7+D10+D13+D16+D19+D22+D25+D28+D31+D34+D37+D40) -> 0 | E43: 0 | F43: 0 | G43: 59 | H43: 0 | I43: 7 | J43: 0 | K43: 0 | L43: =SUM(L4+L7+L10+L13+L16+L19+L22+L25+L28+L31+L34+L37+L40) -> 13 | M43: =SUM(M4+M7+M10+M13+M16+M19+M22+M25+M28+M31+M34+M37+M40) -> 0 | N43: 79
C44: M | D44: 6 | E44: 2 | F44: 65 | G44: 152 | H44: 34 | I44: 0 | J44: 0 | K44: 0 | L44: =SUM(L5+L8+L11+L14+L17+L20+L23+L26+L29+L32+L35+L38+L41) -> 1249 | M44: =SUM(M5+M8+M11+M14+M17+M20+M23+M26+M29+M32+M35+M38+M41) -> 0 | N44: 1508
C45: T | D45: =SUM(D43,D44) -> 6 | E45: 2 | F45: 65 | G45: 211 | H45: 34 | I45: 7 | J45: 0 | K45: 0 | L45: 1262 | M45: 0 | N45: 1587
D46: =IF(AND('Recursos Humanos'!D4=0,D43<>0),"ERROH",IF(AND('Recursos Humanos'!D5=0,D44<>0),"ERROM","OK")) -> OK | E46: =IF(AND('Recursos Humanos'!E4=0,E43<>0),"ERROH",IF(AND('Recursos Humanos'!E5=0,E44<>0),"ERROM","OK")) -> OK | F46: =IF(AND('Recursos Humanos'!F4=0,F43<>0),"ERROH",IF(AND('Recursos Humanos'!F5=0,F44<>0),"ERROM","OK")) -> OK | G46: =IF(AND('Recursos Humanos'!G4=0,G43<>0),"ERROH",IF(AND('Recursos Humanos'!G5=0,G44<>0),"ERROM","OK")) -> OK | H46: =IF(AND('Recursos Humanos'!H4=0,H43<>0),"ERROH",IF(AND('Recursos Humanos'!H5=0,H44<>0),"ERROM","OK")) -> OK | I46: =IF(AND('Recursos Humanos'!I4=0,I43<>0),"ERROH",IF(AND('Recursos Humanos'!I5=0,I44<>0),"ERROM","OK")) -> OK | J46: =IF(AND('Recursos Humanos'!J4=0,J43<>0),"ERROH",IF(AND('Recursos Humanos'!J5=0,J44<>0),"ERROM","OK")) -> OK | K46: =IF(AND('Recursos Humanos'!K4=0,K43<>0),"ERROH",IF(AND('Recursos Humanos'!K5=0,K44<>0),"ERROM","OK")) -> OK | L46: =IF(AND('Recursos Humanos'!L4=0,L43<>0),"ERROH",IF(AND('Recursos Humanos'!L5=0,L44<>0),"ERROM","OK")) -> OK | M46: =IF(AND('Recursos Humanos'!M4=0,M43<>0),"ERROH",IF(AND('Recursos Humanos'!M5=0,M44<>0),"ERROM","OK")) -> OK | N46: =IF(AND('Recursos Humanos'!N4=0,N43<>0),"ERROH",IF(AND('Recursos Humanos'!N5=0,N44<>0),"ERROM","OK")) -> OK
A47: Por favor enuncie quais as situações referidas em "Outras" (1.17.13):
A48: CARREIRA DOCENTE:Autoformação-6(M);Deslocação a estabelecimento de ensino-1(M);Doação de Sangue-2(M);Formação-4(H)+6(M);Isolamento Profiláctico-2(M);Não imputáveis ao Trab.-1(M);TECNICO SUPERIOR:Não imputáveis ao trab.-1(M);ASSISTENTE TÉCNICO: Formação-14(M); | O48: =IF(AND(N42<>0,A48=""),"ERRO","OK") -> OK
A49: Notas:
A50: (1) Considerar todas as ausências ao serviço entre 1 de janeiro e 31 de dezembro, EM DIAS.
A52: Observações:

Sheet Horas Não Trabalhadas
A1: =IF(Identificação!C17="","",Identificação!C17) -> ESCOLA BÁSICA E SECUNDÁRIA COM PRÉ-ESCOLAR E CRECHE DO PORTO MONIZ
A2: =IF(Validação!E51="Preenchido","","Mensagem: " & Validação!E51 & "! " & Validação!E52) -> 
A3: 1.18 | B3: Horas não trabalhadas (1) | D3: Dirigente | E3: Técnico Superior | F3: Assistente Técnico | G3: Assistente Operacional | H3: Carreiras e Categorias subsistentes | I3: Carreiras e Corpos especiais | J3: Carreira Médica | K3: Carreira de Enfermagem | L3: Carreira Docente | M3: Outros | N3: Total
A4: 1.18.1 | B4: Actividade sindical (2) | C4: H | D4: 0 | E4: 0 | F4: 0 | G4: 56 | H4: 0 | I4: 0 | J4: 0 | K4: 0 | L4: 0 | M4: 0 | N4: =SUM(D4:M4) -> 56 | O4: =IF(OR(D4="",E4="",F4="",G4="",H4="",I4="",J4="",K4="",L4="",M4="",D5="",E5="",F5="",G5="",H5="",I5="",J5="",K5="",L5="",M5=""),1,0) -> 0 | P4: =SUM(O4,O7) -> 0
C5: M | D5: 0 | E5: 0 | F5: 0 | G5: 0 | H5: 0 | I5: 0 | J5: 0 | K5: 0 | L5: 0 | M5: 0 | N5: 0
C6: T | D6: =SUM(D4,D5) -> 0 | E6: 0 | F6: 0 | G6: 56 | H6: 0 | I6: 0 | J6: 0 | K6: 0 | L6: 0 | M6: 0 | N6: 56
A7: 1.18.2 | B7: Greve | C7: H | D7: 0 | E7: 0 | F7: 0 | G7: 21 | H7: 0 | I7: 0 | J7: 0 | K7: 0 | L7: 10 | M7: 0 | N7: 31 | O7: =IF(OR(D7="",E7="",F7="",G7="",H7="",I7="",J7="",K7="",L7="",M7="",D8="",E8="",F8="",G8="",H8="",I8="",J8="",K8="",L8="",M8=""),1,0) -> 0
C8: M | D8: 0 | E8: 7 | F8: 0 | G8: 49 | H8: 28 | I8: 0 | J8: 0 | K8: 0 | L8: 40 | M8: 0 | N8: 124
C9: T | D9: =SUM(D7,D8) -> 0 | E9: 7 | F9: 0 | G9: 70 | H9: 28 | I9: 0 | J9: 0 | K9: 0 | L9: 50 | M9: 0 | N9: 155
A11: Notas:
A12: (1) Considerar as ausências ao serviço entre 1 de janeiro e 31 de dezembro, por motivo de 'Actividade Sindical' e 'Greve' EM HORAS.
A13: (2) Ao registar ausências por 'Actividade Sindical' deverá indicar trabalhadores sindicalizados no ponto 6.1.1 ('Relações Profissionais').
A15: Observações:

Sheet Encargos com Pessoal
A1: =IF(Identificação!C17="","",Identificação!C17) -> ESCOLA BÁSICA E SECUNDÁRIA COM PRÉ-ESCOLAR E CRECHE DO PORTO MONIZ
A2: =IF(Validação!E54="Preenchido","","Mensagem: " & Validação!E54 & "! " & Validação!E55) -> 
A3: 2. | B3: Encargos com pessoal | D3: Valor em euros
A4: 2.1 | B4: Remuneração base (1) | D4: 2007583.5 | E4: =IF(D4="",1,0) -> 0 | F4: =SUM(E4,E5,E6,E7,E8,E9,E10,E11,E12,E13,E14,E15,E16,E17,E18,E19) -> 0
A5: 2.2 | B5: Trabalho extraordinário | D5: 0 | E5: 0 | F5: =IF(AND('Trabalho Extraord.'!D6<>0,D5=0),"ERRO","OK") -> OK
A6: 2.3 | B6: Trabalho nocturno | D6: 0 | E6: 0 | F6: =IF(AND('Trabalho Extraord.'!D15<>0,D6=0),"ERRO","OK") -> OK
A7: 2.4 | B7: Trabalho em descanso semanal, complementar e feriados | D7: 0 | E7: 0 | F7: =IF(AND(OR('Trabalho Extraord.'!D18<>0,'Trabalho Extraord.'!D21<>0,'Trabalho Extraord.'!D24<>0),D7=0),"ERRO","OK") -> OK
A8: 2.5 | B8: Disponibilidade permanente | D8: 0 | E8: 0
A9: 2.6 | B9: Outros regimes especiais de prestação de trabalho | D9: 0 | E9: 0
A10: 2.7 | B10: Risco, penosidade ou insalubridade | D10: 0 | E10: 0
A11: 2.8 | B11: Fixação na periferia | D11: 0 | E11: 0
A12: 2.9 | B12: Trabalho por turnos | D12: 0 | E12: 0
A13: 2.10 | B13: Abono para falhas | D13: 926.58 | E13: 0
A14: 2.11 | B14: Participação em reuniões | D14: 0 | E14: 0
A15: 2.12 | B15: Ajudas de custo | D15: 139.44 | E15: 0
A16: 2.13 | B16: Transferências de localidade | D16: 0 | E16: 0
A17: 2.14 | B17: Representação | D17: 0 | E17: 0
A18: 2.15 | B18: Secretariado | D18: 0 | E18: 0
A19: 2.16 | B19: Outros (2) | D19: 527559.07 | E19: 0
A20: 2.17 | B20: Total | D20: =SUM(D4:D19) -> 2536208.59
A21: 2.17.1 | B21: Leque salarial líquido | D21: =IF(OR(D22="",D23=""),"0",D22/D23) -> 5.212261042 | F21: =IF(D21<=1,"ERRO","OK") -> OK
A22: 2.17.1.1 | B22: Maior remuneração líquida (3) | D22: 2293.03 | E22: =IF(D22="",1,0) -> 0 | F22: =SUM(E22:E23) -> 0
A23: 2.17.1.2 | B23: Menor remuneração líquida (4) | D23: 439.93 | E23: =IF(D23="",1,0) -> 0
A25: Por favor enuncie quais as situações referidas em "Outros" (2.16), discriminando o total de cada rubrica incluída em outros:
A26: Gratificações certas e permanentes: 25399,88€ + Subsídio de insularidade: 16437,16€ + Quotas da entidade patronal para a CGA: 353500,68€ + Contribuição da entidade para a Segurança Social: 132221,35€ | E26: =IF(AND(D19<>0,A26=""),"ERRO","OK") -> OK | N26: =IF(A26="",1,0) -> 0
A28: Notas:
A29: (1) Incluir igualmente o valor do subsídio de férias e de natal.
A30: (2) Por exemplo: subsídio de insularidade.
A31: (3) Introduzir a maior remuneração líquida verificada num determinado mês em que não tenham sido efectuados descontos ou abonados subsídios.
A32: (4) Introduzir a menor remuneração líquida verificada num determinado mês em que não tenham sido efectuados descontos ou abonados subsídios.
A34: Observações:

Sheet Acidentes em Serviço
A1: =IF(Identificação!C17="","",Identificação!C17) -> ESCOLA BÁSICA E SECUNDÁRIA COM PRÉ-ESCOLAR E CRECHE DO PORTO MONIZ
A2: =IF(Validação!E60="Preenchido","","Mensagem: " & Validação!E60 & "! " & Validação!E61) -> 
A3: 3. | B3: Higiene e Segurança
A4: 3.1 | B4: Acidentes em Serviço | C4: No local de Trabalho | G4: In itinere
C5: Total | D5: Menos de 60 dias de baixa | E5: 60 dias ou mais de baixa | F5: Mortais | G5: Total | H5: Menos de 60 dias de baixa | I5: 60 dias ou mais de baixa | J5: Mortais
A6: 3.1.1 | B6: Número total de acidentes | C6: =SUM(D6:F6) -> 0 | D6: =D13+D14+D12+D11+D10 -> 0 | E6: =E13+E14+E12+E11+E10 -> 0 | F6: 0 | G6: =SUM(H6:J6) -> 0 | H6: =H13+H14+H12+H11+H10 -> 0 | I6: =I13+I14+I12+I11+I10 -> 0 | J6: 0 | K6: =IF(OR(F6="",J6=""),1,0) -> 0 | L6: =SUM(K6,K8,K10,K11,K12,K13,K14) -> 0 | M6: =IF(OR(AND(D7<>0,D8=0),AND(D7=0,D8<>0)),"ERROLOCAL1",IF(OR(AND(H7<>0,H8=0),AND(H7=0,H8<>0)),"ERROTRAJ1",IF(OR(AND(E7<>0,E8=0),AND(E7=0,E8<>0)),"ERROLOCAL2",IF(OR(AND(I7<>0,I8=0),AND(I7=0,I8<>0)),"ERROTRAJ2","OK")))) -> OK | N6: =IF(OR(D8>(D10+D12+D13)*60,(H8>(H10+H12+H13)*60)),"ERROMENOS",IF(OR(E8<(E10+E12+E13)*60,(I8<(I10+I12+I13)*60)),"ERROMAIS","OK")) -> OK
A7: 3.1.2 | B7: Número de acidentes com baixa | C7: 0 | D7: =D12+D10+D13 -> 0 | E7: =E12+E10+E13 -> 0 | F7: - | G7: 0 | H7: =H12+H10+H13 -> 0 | I7: =I12+I10+I13 -> 0 | J7: -
A8: 3.1.3 | B8: Número de dias perdidos com baixa (1) | C8: 0 | D8: 0 | E8: 0 | F8: - | G8: 0 | H8: 0 | I8: 0 | J8: - | K8: =IF(OR(D8="",E8="",H8="",I8=""),1,0) -> 0
A9: 3.1.4 | B9: Número de casos de incapacidade permanente declarados no ano | C9: 0 | D9: =D10+D11+D12 -> 0 | E9: =E10+E11+E12 -> 0 | F9: - | G9: 0 | H9: =H10+H11+H12 -> 0 | I9: =I10+I11+I12 -> 0 | J9: -
A10: 3.1.5 | B10: Número de casos de incapacidade permanente absoluta | C10: 0 | D10: 0 | E10: 0 | F10: - | G10: 0 | H10: 0 | I10: 0 | J10: - | K10: =IF(OR(D10="",E10="",F10="",H10="",I10="",J10=""),1,0) -> 0
A11: 3.1.6 | B11: Número de casos de incapacidade permanente parcial | C11: 0 | D11: 0 | E11: 0 | F11: - | G11: 0 | H11: 0 | I11: 0 | J11: - | K11: =IF(OR(D11="",E11="",F11="",H11="",I11="",J11=""),1,0) -> 0
A12: 3.1.7 | B12: Número de casos de incapacidade permanente absoluta para o trabalho habitual | C12: 0 | D12: 0 | E12: 0 | F12: - | G12: 0 | H12: 0 | I12: 0 | J12: - | K12: =IF(OR(D12="",E12="",F12="",H12="",I12="",J12=""),1,0) -> 0
A13: 3.1.8 | B13: Número de casos de incapacidade temporária e absoluta | C13: 0 | D13: 0 | E13: 0 | F13: - | G13: 0 | H13: 0 | I13: 0 | J13: - | K13: =IF(OR(D13="",E13="",F13="",H13="",I13="",J13=""),1,0) -> 0
A14: 3.1.9 | B14: Número de casos de incapacidade temporária e parcial | C14: 0 | D14: 0 | E14: 0 | F14: - | G14: 0 | H14: 0 | I14: 0 | J14: - | K14: =IF(OR(D14="",E14="",F14="",H14="",I14="",J14=""),1,0) -> 0
A16: Notas:
A17: (1) Considerar o total de n.º de dias perdidos com incapacidade (temporária ou permanente) absoluta. Por exemplo: 3 acidentes com ITA de 12, 5 e 74 dias, respectivamente, deverão ser registados 12+5=17 dias na coluna "Menos de 60 dias de baixa" e 74 dias na coluna "Mais de 60 dias".
A19: Observações:

Sheet Doenças Profissionais
A1: =IF(Identificação!C17="","",Identificação!C17) -> ESCOLA BÁSICA E SECUNDÁRIA COM PRÉ-ESCOLAR E CRECHE DO PORTO MONIZ
A2: =IF(Validação!E63="Preenchido","","Mensagem: " & Validação!E63 & "! " & Validação!E64) -> 
A3: 3.2 | B3: Doenças Profissionais | C3: Número de casos | D3: Número de dias perdidos
A4: 3.2.1 | B4: 0 | C4: 0 | D4: 0 | E4: =IF(OR(B4="",C4="",D4=""),1,0) -> 0 | F4: =SUM(E4,E5,E6,E7,E8) -> 0
A5: 3.2.2 | B5: 0 | C5: 0 | D5: 0 | E5: =IF(OR(B5="",C5="",D5=""),1,0) -> 0
A6: 3.2.3 | B6: 0 | C6: 0 | D6: 0 | E6: =IF(OR(B6="",C6="",D6=""),1,0) -> 0
A7: 3.2.4 | B7: 0 | C7: 0 | D7: 0 | E7: =IF(OR(B7="",C7="",D7=""),1,0) -> 0
A8: 3.2.5 | B8: 0 | C8: 0 | D8: 0 | E8: =IF(OR(B8="",C8="",D8=""),1,0) -> 0
A10: Notas:
A11: (1) Caso não existam ocorrências, introduzir zeros '0' em todos os campos.
A13: Observações:

Sheet Higiene Segurança Trab.
A1: =IF(Identificação!C17="","",Identificação!C17) -> ESCOLA BÁSICA E SECUNDÁRIA COM PRÉ-ESCOLAR E CRECHE DO PORTO MONIZ
A2: =IF(Validação!E66="Preenchido","","Mensagem: " & Validação!E66 & "! " & Validação!E67) -> 
A3: 3.3 | B3: Actividades de medicina do trabalho
A4: 3.3.1 | B4: Número de exames médicos efectuados | C4: =SUM(C5,C6,C7,C8) -> 0
A5: 3.3.1.1 | B5: Exames de admissão | C5: 0 | D5: =IF(C5="",1,0) -> 0 | E5: =SUM(D5,D6,D7,D8,D9) -> 0
A6: 3.3.1.2 | B6: Exames periódicos | C6: 0 | D6: 0
A7: 3.3.1.3 | B7: Exames ocasionais e complementares | C7: 0 | D7: 0
A8: 3.3.1.4 | B8: Exames de cessação de funções | C8: 0 | D8: 0
A9: 3.3.2 | B9: Despesa com a medicina do trabalho (em euros) | C9: 0 | D9: 0
A10: 3.3.3 | B10: Número de visitas aos postos de trabalho | C10: 0 | D10: 0
A11: =IF(Validação!E69="Preenchido","","Mensagem: " & Validação!E69 & "! " & Validação!E70) -> 
A12: 3.4 | B12: Comissões de higiene e segurança
A13: 3.4.1 | B13: Reuniões anuais de higiene e segurança | C13: 0 | D13: =IF(C13="",1,0) -> 0 | E13: =SUM(D13,D14) -> 0
A14: 3.4.2 | B14: Visitas aos locais de trabalho | C14: 0 | D14: =IF(C14="",1,0) -> 0
A15: =IF(Validação!E72="Preenchido","","Mensagem: " & Validação!E72 & "! " & Validação!E73) -> 
A16: 3.5 | B16: Número de pessoas recolocadas em resultado de acidentes de trabalho | C16: 0 | E16: =IF(C16="",1,0) -> 0
A17: =IF(Validação!E75="Preenchido","","Mensagem: " & Validação!E75 & "! " & Validação!E76) -> 
A18: 3.6 | B18: Acções de formação e sensibilização em matéria de segurança
A19: 3.6.1 | B19: Número de acções desenvolvidas | C19: 0 | D19: =IF(C19="",1,0) -> 0 | E19: =SUM(D19,D20) -> 0
A20: 3.6.2 | B20: Número de pessoas abrangidas pelas acções | C20: 0 | D20: =IF(C20="",1,0) -> 0
A22: Observações:

Sheet Custos Prevenção Acidentes
A1: =IF(Identificação!C17="","",Identificação!C17) -> ESCOLA BÁSICA E SECUNDÁRIA COM PRÉ-ESCOLAR E CRECHE DO PORTO MONIZ
A2: =IF(Validação!E78="Preenchido","","Mensagem: " & Validação!E78 & "! " & Validação!E79) -> 
A3: 3.7 | B3: Custos com a prevenção de acidentes e doenças profissionais | C3: Valor em euros
A4: 3.7.1 | B4: Encargos de estrutura de medicina do trabalho e segurança no trabalho | C4: 0 | D4: =IF(C4="",1,0) -> 0 | E4: =SUM(D4,D5,D6,D7,D8) -> 0 | F4: =IF(AND('Higiene Segurança Trab.'!C19<>0,C6=0),"ALERTA","OK") -> OK
A5: 3.7.2 | B5: Custos com equipamentos de protecção | C5: 0 | D5: =IF(C5="",1,0) -> 0
A6: 3.7.3 | B6: Custos com formação em prevenção de riscos | C6: 0 | D6: =IF(C6="",1,0) -> 0
A7: 3.7.4 | B7: Outros custos | C7: 0 | D7: =IF(C7="",1,0) -> 0
A9: Por favor enuncie quais as situações referidas em "Outros custos" (3.7.4):
D10: =IF(AND(C7<>0,A10=""),"ERRO","OK") -> OK
A12: Observações:

Sheet Formação Prof Niveis Custos
A1: =IF(Identificação!C17="","",Identificação!C17) -> ESCOLA BÁSICA E SECUNDÁRIA COM PRÉ-ESCOLAR E CRECHE DO PORTO MONIZ
A2: =IF(Validação!E81="Preenchido","","Mensagem: " & Validação!E81 & "! " & Validação!E82) -> 
A3: Formação Profissional
A4: 4. | B4: Duração das acções | C4: Menos de 30 horas | F4: De 30 a 59 horas | H4: De 60 a 119 horas | K4: 120 horas ou mais
A5: 4.1 | B5: Número total de acções | C5: =SUM(C6,C7) -> 18 | F5: =SUM(F6,F7) -> 0 | H5: =SUM(H6,H7) -> 0 | K5: =SUM(M6,M7) -> 0
A6: 4.1.1 | B6: Número de acções internas (1) | C6: 0 | F6: 0 | H6: 0 | K6: 0 | N6: =IF(OR(C6="",F6="",H6="",K6=""),1,0) -> 0 | O6: =SUM(N6,N7) -> 0 | P6: =IF(AND(SUM(C6:M6)>0,M11=0),"ERROINT2",IF(AND(SUM(C7:M7)>0,M12=0),"ERROEXT2",IF(AND(SUM(C5:M5)>0,M10=0),"ERRO","OK"))) -> OK
A7: 4.1.2 | B7: Número de acções externas (2) | C7: 18 | F7: 0 | H7: 0 | K7: 0 | N7: =IF(OR(C7="",F7="",H7="",K7=""),1,0) -> 0
A8: =IF(Validação!E84="Preenchido","","Mensagem: " & Validação!E84 & "! " & Validação!E85) -> 
A9: Níveis de qualificação | C9: Dirigente | D9: Técnico Superior | E9: Assistente Técnico | F9: Assistente Operacional | G9: Carreiras e Categorias subsistentes | H9: Carreiras e Corpos especiais | I9: Carreira Médica | J9: Carreira de Enfermagem | K9: Carreira Docente | L9: Outros | M9: Total
A10: 4.2 | B10: Número total de participantes (3) | C10: =SUM(C11,C12) -> 0 | D10: 0 | E10: 7 | F10: 0 | G10: 0 | H10: 0 | I10: 0 | J10: 0 | K10: 10 | L10: 0 | M10: =SUM(C10:L10) -> 17
A11: 4.2.1 | B11: Número de participações em acções internas | C11: 0 | D11: 0 | E11: 0 | F11: 0 | G11: 0 | H11: 0 | I11: 0 | J11: 0 | K11: 0 | L11: 0 | M11: 0 | N11: =IF(OR(C11="",D11="",E11="",F11="",G11="",H11="",I11="",J11="",L11="",K11=""),1,0) -> 0 | O11: =SUM(N11,N12) -> 0
A12: 4.2.2 | B12: Número de participações em acções externas | C12: 0 | D12: 0 | E12: 7 | F12: 0 | G12: 0 | H12: 0 | I12: 0 | J12: 0 | K12: 10 | L12: 0 | M12: 17 | N12: =IF(OR(C12="",D12="",E12="",F12="",G12="",H12="",I12="",J12="",L12="",K12=""),1,0) -> 0
A13: 4.3 | B13: Número total de horas (4) | C13: =SUM(C14,C15) -> 0 | D13: 0 | E13: 171 | F13: 0 | G13: 0 | H13: 0 | I13: 0 | J13: 0 | K13: 287 | L13: 0 | M13: 458
A14: 4.3.1 | B14: Número de horas em acções internas | C14: 0 | D14: 0 | E14: 0 | F14: 0 | G14: 0 | H14: 0 | I14: 0 | J14: 0 | K14: 0 | L14: 0 | M14: 0 | N14: =IF(OR(C14="",D14="",E14="",F14="",G14="",H14="",I14="",J14="",L14="",K14=""),1,0) -> 0 | O14: =SUM(N14,N15) -> 0
A15: 4.3.2 | B15: Número de horas em acções externas | C15: 0 | D15: 0 | E15: 171 | F15: 0 | G15: 0 | H15: 0 | I15: 0 | J15: 0 | K15: 287 | L15: 0 | M15: 458 | N15: =IF(OR(C15="",D15="",E15="",F15="",G15="",H15="",I15="",J15="",L15="",K15=""),1,0) -> 0
A16: =IF(Validação!E87="Preenchido","","Mensagem: " & Validação!E87 & "! " & Validação!E88) -> Mensagem: Preenchido com reservas! Por favor confirme se as acções de formação externa não implicaram custos.
A17: 4.4 | B17: Custos totais de formação | H17: Valor em euros | P17: =IF(AND(SUM(C6:M6)<>0,H18=0),"ERROCUSINT",IF(AND(SUM(C7:M7)<>0,H19=0),"ERROCUSEXT","OK")) -> ERROCUSEXT
A18: 4.4.1 | B18: Custos em acções internas | H18: 0 | N18: =IF(H18="",1,0) -> 0 | O18: =SUM(N18,N19) -> 0
A19: 4.4.2 | B19: Custos em acções externas | H19: 0 | N19: =IF(H19="",1,0) -> 0
C20: =IF(OR(C14<C11,AND(C11=0,C14<>0)),"ERROINT",IF(OR(C15<C12,AND(C12=0,C15<>0)),"ERROEXT","OK")) -> OK | D20: OK | E20: OK | F20: OK | G20: OK | H20: OK | I20: OK | J20: OK | K20: OK | L20: OK
A21: Notas:
A22: (1) Considerar toda a formação providenciada aos trabalhadores pelo serviço recorrendo a meios próprios e/ou em que apenas participam elementos desse mesmo serviço.
A23: (2) As acções de formação providenciadas aos trabalhadores pelo serviço recorrendo a entidades externas e em que participam também trabalhadores de outros serviços (ex.: formações promovidas pela Direcção Regional de Educação, Direcção Regional dos Recursos Humanos e da Administração Educativa, Direcção Regional de Administração Pública e Local, etc.) e as da iniciativa do próprio trabalhador, ao abrigo do regime de auto-formação (ex: formações dinamizadas por sindicatos, empresas de formação, etc.), deverão ser registadas como acções externas.
A24: (3) Atendendo à possibilidade de um mesmo trabalhador frequentar diversas acções formação por ano e que todas elas deverão ser quantificadas, devem ser consideradas todas as participações, independentemente de se tratar do mesmo trabalhador.
A25: (4) Deverá ser indicada a soma de todas as horas de formação acumualdas de todos os participantes e não a mera soma da duração das diferentes ações de formação.
A27: Observações:

Sheet Prestações Sociais Acção Social
A1: =IF(Identificação!C17="","",Identificação!C17) -> ESCOLA BÁSICA E SECUNDÁRIA COM PRÉ-ESCOLAR E CRECHE DO PORTO MONIZ
A2: =IF(Validação!E90="Preenchido","","Mensagem: " & Validação!E90 & "! " & Validação!E91) -> 
A3: 5. | B3: Prestações Sociais | C3: Valor em euros
A4: 5.1 | B4: Abono de Família para crianças e jovens | C4: 6755.49 | D4: =IF(C4="",1,0) -> 0 | E4: =SUM(D4,D5,D6,D7,D8,D9,D10,D11) -> 0 | F4: =IF(AND(C11="",'Ausências Trabalho'!N9<>0),"ALERTA","OK") -> OK
A5: 5.2 | B5: Bonificação do Abono de Família para crianças e jovens portadores de deficiência | C5: 0 | D5: 0
A6: 5.3 | B6: Subsídio de educação especial | C6: 0 | D6: 0
A7: 5.4 | B7: Subsídio mensal vitalício | C7: 0 | D7: 0
A8: 5.5 | B8: Subsídio de funeral | C8: 0 | D8: 0
A9: 5.6 | B9: Subsídio de refeição | C9: 105407.46 | D9: 0
A10: 5.7 | B10: Subsídio por morte | C10: 0 | D10: 0
A11: 5.8 | B11: Outras | C11: 0 | D11: 0
A12: =IF(Validação!E93="Preenchido","","Mensagem: " & Validação!E93 & "! " & Validação!E94) -> 
A13: 5.9 | B13: Prestações de acção social complementar | C13: Valor em euros
A14: 5.9.1 | B14: Grupos desportivos/casa de pessoal (ou equivalente) | C14: 0 | D14: =IF(C14="",1,0) -> 0 | E14: =SUM(D14,D15,D16,D17,D18,D19,D20) -> 0
A15: 5.9.2 | B15: Refeitórios | C15: 0 | D15: 0
A16: 5.9.3 | B16: Infantários | C16: 0 | D16: 0
A17: 5.9.4 | B17: Colónias de férias | C17: 0 | D17: 0
A18: 5.9.5 | B18: Apoio a estudos | C18: 0 | D18: 0
A19: 5.9.6 | B19: Adiantamentos e empréstimos | C19: 0 | D19: 0
A20: 5.9.7 | B20: Outras | C20: 0 | D20: 0
A22: Por favor enuncie quais as situações referidas em "Outras" (5.8 e 5.9.7):
D23: =IF(OR(AND(C11<>0,A23=""),AND(C20<>0,A23="")),"ERRO","OK") -> OK
A25: Observações:

Sheet Relaç Profis Comissões Discipli
A1: =IF(Identificação!C17="","",Identificação!C17) -> ESCOLA BÁSICA E SECUNDÁRIA COM PRÉ-ESCOLAR E CRECHE DO PORTO MONIZ
A2: =IF(Validação!E96="Preenchido","","Mensagem: " & Validação!E96 & "! " & Validação!E97) -> 
A3: 6. | B3: Relações Profissionais
A4: 6.1 | B4: Organização e actividade sindical no serviço
A5: 6.1.1 | B5: Número de trabalhadores sindicalizados | C5: 42 | D5: =IF(C5="",1,0) -> 0 | E5: =IF(AND('Horas Não Trabalhadas'!N6<>0,C5=0),"ERRO","OK") -> OK
A6: =IF(Validação!E99="Preenchido","","Mensagem: " & Validação!E99 & "! " & Validação!E100) -> 
A7: 6.2 | B7: Comissões de trabalhadores
A8: 6.2.1 | B8: Número de elementos pertencentes a comissões de trabalhadores | C8: 0 | D8: =IF(C8="",1,0) -> 0 | E8: =SUM(D8,D9) -> 0
A9: 6.2.2 | B9: Número total de votantes | C9: 0 | D9: =IF(C9="",1,0) -> 0
A10: =IF(Validação!E102="Preenchido","","Mensagem: " & Validação!E102 & "! " & Validação!E103) -> 
A11: 6.3 | B11: Disciplina
A12: 6.3.1 | B12: Número de processos transitados do ano anterior | C12: 0 | D12: =IF(C12="",1,0) -> 0 | E12: =SUM(D12,D13,D14) -> 0 | F12: =IF(C14>(C12+C13),"ERRO","OK") -> OK
A13: 6.3.2 | B13: Número de processos instaurados durante o ano | C13: 0 | D13: =IF(C13="",1,0) -> 0
A14: 6.3.3 | B14: Número de processos transitados para o ano seguinte | C14: 0 | D14: =IF(C14="",1,0) -> 0
A15: =IF(Validação!E105="Preenchido","","Mensagem: " & Validação!E105 & "! " & Validação!E106) -> 
A16: 6.3.4 | B16: Número de processos decididos | C16: =SUM(C17:C22) -> 0
A17: 6.3.4.1 | B17: Arquivado | C17: 0 | D17: =IF(C17="",1,0) -> 0 | E17: =SUM(D17,D18,D19,D20,D21,D22) -> 0 | F17: =IF((C12+C13-C14)<>C16,"ERRO","OK") -> OK
A18: 6.3.4.2 | B18: Repreensão escrita | C18: 0 | D18: 0
A19: 6.3.4.3 | B19: Multa | C19: 0 | D19: 0
A20: 6.3.4.4 | B20: Suspensão | C20: 0 | D20: 0
A21: 6.3.4.5 | B21: Demissão ou despedimento por facto imputável ao trabalhador | C21: 0 | D21: 0
A22: 6.3.4.6 | B22: Cessação da comissão de serviço | C22: 0 | D22: 0
A24: Observações:

Sheet Distribuição Geográfica
A1: =IF(Identificação!C17="","",Identificação!C17) -> ESCOLA BÁSICA E SECUNDÁRIA COM PRÉ-ESCOLAR E CRECHE DO PORTO MONIZ
A2: =IF(Validação!E108="Preenchido","","Mensagem: " & Validação!E108 & "! " & Validação!E109) -> 
A3: 7. | B3: Distribuição geográfica por concelhos (1) | D3: Dirigente | E3: Técnico Superior | F3: Assistente Técnico | G3: Assistente Operacional | H3: Carreiras e Categorias subsistentes | I3: Carreiras e Corpos especiais | J3: Carreira Médica | K3: Carreira de Enfermagem | L3: Carreira Docente | M3: Outros | N3: Total
A4: 7.1 | B4: Calheta | C4: H | D4: 0 | E4: 0 | F4: 0 | G4: 0 | H4: 0 | I4: 0 | J4: 0 | K4: 0 | L4: 0 | M4: 0 | N4: =SUM(D4:M4) -> 0 | O4: =IF(OR(D4="",E4="",F4="",G4="",H4="",I4="",J4="",K4="",L4="",M4="",D5="",E5="",F5="",G5="",H5="",I5="",J5="",K5="",L5="",M5=""),1,0) -> 0 | P4: =SUM(O4,O7,O10,O13,O16,O19,O22,O25,O28,O31,O34) -> 0
C5: M | D5: 0 | E5: 0 | F5: 0 | G5: 0 | H5: 0 | I5: 0 | J5: 0 | K5: 0 | L5: 0 | M5: 0 | N5: 0
C6: T | D6: =SUM(D4:D5) -> 0 | E6: 0 | F6: 0 | G6: 0 | H6: 0 | I6: 0 | J6: 0 | K6: 0 | L6: 0 | M6: 0 | N6: 0
A7: 7.2 | B7: Câmara de Lobos | C7: H | D7: 0 | E7: 0 | F7: 0 | G7: 0 | H7: 0 | I7: 0 | J7: 0 | K7: 0 | L7: 0 | M7: 0 | N7: 0 | O7: =IF(OR(D7="",E7="",F7="",G7="",H7="",I7="",J7="",K7="",L7="",M7="",D8="",E8="",F8="",G8="",H8="",I8="",J8="",K8="",L8="",M8=""),1,0) -> 0
C8: M | D8: 0 | E8: 0 | F8: 0 | G8: 0 | H8: 0 | I8: 0 | J8: 0 | K8: 0 | L8: 0 | M8: 0 | N8: 0
C9: T | D9: =SUM(D8,D7) -> 0 | E9: 0 | F9: 0 | G9: 0 | H9: 0 | I9: 0 | J9: 0 | K9: 0 | L9: 0 | M9: 0 | N9: 0
A10: 7.3 | B10: Funchal | C10: H | D10: 0 | E10: 0 | F10: 0 | G10: 0 | H10: 0 | I10: 0 | J10: 0 | K10: 0 | L10: 0 | M10: 0 | N10: 0 | O10: =IF(OR(D10="",E10="",F10="",G10="",H10="",I10="",J10="",K10="",L10="",M10="",D11="",E11="",F11="",G11="",H11="",I11="",J11="",K11="",L11="",M11=""),1,0) -> 0
C11: M | D11: 0 | E11: 0 | F11: 0 | G11: 0 | H11: 0 | I11: 0 | J11: 0 | K11: 0 | L11: 0 | M11: 0 | N11: 0
C12: T | D12: =SUM(D11,D10) -> 0 | E12: 0 | F12: 0 | G12: 0 | H12: 0 | I12: 0 | J12: 0 | K12: 0 | L12: 0 | M12: 0 | N12: 0
A13: 7.4 | B13: Machico | C13: H | D13: 0 | E13: 0 | F13: 0 | G13: 0 | H13: 0 | I13: 0 | J13: 0 | K13: 0 | L13: 0 | M13: 0 | N13: 0 | O13: =IF(OR(D13="",E13="",F13="",G13="",H13="",I13="",J13="",K13="",L13="",M13="",D14="",E14="",F14="",G14="",H14="",I14="",J14="",K14="",L14="",M14=""),1,0) -> 0
C14: M | D14: 0 | E14: 0 | F14: 0 | G14: 0 | H14: 0 | I14: 0 | J14: 0 | K14: 0 | L14: 0 | M14: 0 | N14: 0
C15: T | D15: =SUM(D14,D13) -> 0 | E15: 0 | F15: 0 | G15: 0 | H15: 0 | I15: 0 | J15: 0 | K15: 0 | L15: 0 | M15: 0 | N15: 0
A16: 7.5 | B16: Ponta do Sol | C16: H | D16: 0 | E16: 0 | F16: 0 | G16: 0 | H16: 0 | I16: 0 | J16: 0 | K16: 0 | L16: 0 | M16: 0 | N16: 0 | O16: =IF(OR(D16="",E16="",F16="",G16="",H16="",I16="",J16="",K16="",L16="",M16="",D17="",E17="",F17="",G17="",H17="",I17="",J17="",K17="",L17="",M17=""),1,0) -> 0
D17: 0 | E17: 0 | F17: 0 | G17: 0 | H17: 0 | I17: 0 | J17: 0 | K17: 0 | L17: 0 | M17: 0 | N17: 0
C18: T | D18: =SUM(D17,D16) -> 0 | E18: 0 | F18: 0 | G18: 0 | H18: 0 | I18: 0 | J18: 0 | K18: 0 | L18: 0 | M18: 0 | N18: 0
A19: 7.6 | B19: Porto Moniz | C19: H | D19: 1 | E19: 0 | F19: 0 | G19: 5 | H19: 0 | I19: 1 | J19: 0 | K19: 0 | L19: 11 | M19: 0 | N19: 18 | O19: =IF(OR(D19="",E19="",F19="",G19="",H19="",I19="",J19="",K19="",L19="",M19="",D20="",E20="",F20="",G20="",H20="",I20="",J20="",K20="",L20="",M20=""),1,0) -> 0
C20: M | D20: 2 | E20: 2 | F20: 10 | G20: 22 | H20: 5 | I20: 0 | J20: 0 | K20: 0 | L20: 38 | M20: 0 | N20: 79
C21: T | D21: =SUM(D19:D20) -> 3 | E21: 2 | F21: 10 | G21: 27 | H21: 5 | I21: 1 | J21: 0 | K21: 0 | L21: 49 | M21: 0 | N21: 97
A22: 7.7 | B22: Porto Santo | C22: H | D22: 0 | E22: 0 | F22: 0 | G22: 0 | H22: 0 | I22: 0 | J22: 0 | K22: 0 | L22: 0 | M22: 0 | N22: 0 | O22: =IF(OR(D22="",E22="",F22="",G22="",H22="",I22="",J22="",K22="",L22="",M22="",D23="",E23="",F23="",G23="",H23="",I23="",J23="",K23="",L23="",M23=""),1,0) -> 0
C23: M | D23: 0 | E23: 0 | F23: 0 | G23: 0 | H23: 0 | I23: 0 | J23: 0 | K23: 0 | L23: 0 | M23: 0 | N23: 0
C24: T | D24: =SUM(D23,D22) -> 0 | E24: 0 | F24: 0 | G24: 0 | H24: 0 | I24: 0 | J24: 0 | K24: 0 | L24: 0 | M24: 0 | N24: 0
A25: 7.8 | B25: Ribeira Brava | C25: H | D25: 0 | E25: 0 | F25: 0 | G25: 0 | H25: 0 | I25: 0 | J25: 0 | K25: 0 | L25: 0 | M25: 0 | N25: 0 | O25: =IF(OR(D25="",E25="",F25="",G25="",H25="",I25="",J25="",K25="",L25="",M25="",D26="",E26="",F26="",G26="",H26="",I26="",J26="",K26="",L26="",M26=""),1,0) -> 0
C26: M | D26: 0 | E26: 0 | F26: 0 | G26: 0 | H26: 0 | I26: 0 | J26: 0 | K26: 0 | L26: 0 | M26: 0 | N26: 0
C27: T | D27: =SUM(D26,D25) -> 0 | E27: 0 | F27: 0 | G27: 0 | H27: 0 | I27: 0 | J27: 0 | K27: 0 | L27: 0 | M27: 0 | N27: 0
A28: 7.9 | B28: Santa Cruz | C28: H | D28: 0 | E28: 0 | F28: 0 | G28: 0 | H28: 0 | I28: 0 | J28: 0 | K28: 0 | L28: 0 | M28: 0 | N28: 0 | O28: =IF(OR(D28="",E28="",F28="",G28="",H28="",I28="",J28="",K28="",L28="",M28="",D29="",E29="",F29="",G29="",H29="",I29="",J29="",K29="",L29="",M29=""),1,0) -> 0
C29: M | D29: 0 | E29: 0 | F29: 0 | G29: 0 | H29: 0 | I29: 0 | J29: 0 | K29: 0 | L29: 0 | M29: 0 | N29: 0
C30: T | D30: =SUM(D29,D28) -> 0 | E30: 0 | F30: 0 | G30: 0 | H30: 0 | I30: 0 | J30: 0 | K30: 0 | L30: 0 | M30: 0 | N30: 0
A31: 7.10 | B31: Santana | C31: H | D31: 0 | E31: 0 | F31: 0 | G31: 0 | H31: 0 | I31: 0 | J31: 0 | K31: 0 | L31: 0 | M31: 0 | N31: 0 | O31: =IF(OR(D31="",E31="",F31="",G31="",H31="",I31="",J31="",K31="",L31="",M31="",D32="",E32="",F32="",G32="",H32="",I32="",J32="",K32="",L32="",M32=""),1,0) -> 0
C32: M | D32: 0 | E32: 0 | F32: 0 | G32: 0 | H32: 0 | I32: 0 | J32: 0 | K32: 0 | L32: 0 | M32: 0 | N32: 0
C33: T | D33: =SUM(D32,D31) -> 0 | E33: 0 | F33: 0 | G33: 0 | H33: 0 | I33: 0 | J33: 0 | K33: 0 | L33: 0 | M33: 0 | N33: 0
A34: 7.11 | B34: São Vicente | C34: H | D34: 0 | E34: 0 | F34: 0 | G34: 0 | H34: 0 | I34: 0 | J34: 0 | K34: 0 | L34: 0 | M34: 0 | N34: 0 | O34: =IF(OR(D34="",E34="",F34="",G34="",H34="",I34="",J34="",K34="",L34="",M34="",D35="",E35="",F35="",G35="",H35="",I35="",J35="",K35="",L35="",M35=""),1,0) -> 0
C35: M | D35: 0 | E35: 0 | F35: 0 | G35: 0 | H35: 0 | I35: 0 | J35: 0 | K35: 0 | L35: 0 | M35: 0 | N35: 0
C36: T | D36: =SUM(D35,D34) -> 0 | E36: 0 | F36: 0 | G36: 0 | H36: 0 | I36: 0 | J36: 0 | K36: 0 | L36: 0 | M36: 0 | N36: 0
D37: =SUM(D4,D7,D10,D13,D16,D19,D22,D25,D28,D31,D34) -> 1 | E37: 0 | F37: 0 | G37: 5 | H37: 0 | I37: 1 | J37: 0 | K37: 0 | L37: 11 | M37: 0
D38: =SUM(D5,D8,D11,D14,D17,D20,D23,D26,D29,D32,D35) -> 2 | E38: 2 | F38: 10 | G38: 22 | H38: 5 | I38: 0 | J38: 0 | K38: 0 | L38: 38 | M38: 0
D39: =IF(D37<>'Recursos Humanos'!D4,"ERROH",IF(D38<>'Recursos Humanos'!D5,"ERROM","OK")) -> OK | E39: =IF(E37<>'Recursos Humanos'!E4,"ERROH",IF(E38<>'Recursos Humanos'!E5,"ERROM","OK")) -> OK | F39: =IF(F37<>'Recursos Humanos'!F4,"ERROH",IF(F38<>'Recursos Humanos'!F5,"ERROM","OK")) -> OK | G39: =IF(G37<>'Recursos Humanos'!G4,"ERROH",IF(G38<>'Recursos Humanos'!G5,"ERROM","OK")) -> OK | H39: =IF(H37<>'Recursos Humanos'!H4,"ERROH",IF(H38<>'Recursos Humanos'!H5,"ERROM","OK")) -> OK | I39: =IF(I37<>'Recursos Humanos'!I4,"ERROH",IF(I38<>'Recursos Humanos'!I5,"ERROM","OK")) -> OK | J39: =IF(J37<>'Recursos Humanos'!J4,"ERROH",IF(J38<>'Recursos Humanos'!J5,"ERROM","OK")) -> OK | K39: =IF(K37<>'Recursos Humanos'!K4,"ERROH",IF(K38<>'Recursos Humanos'!K5,"ERROM","OK")) -> OK | L39: =IF(L37<>'Recursos Humanos'!L4,"ERROH",IF(L38<>'Recursos Humanos'!L5,"ERROM","OK")) -> OK | M39: =IF(M37<>'Recursos Humanos'!M4,"ERROH",IF(M38<>'Recursos Humanos'!M5,"ERROM","OK")) -> OK
A40: Notas:
A41: (1) Considerar o concelho onde se encontra o serviço ou, no caso de serviços com departamentos descentralizados, considerado o concelho onde o trabalhador exerce a maior parte do seu horário de trabalho.
A43: Observações:

Sheet Cobertura de Mapas
A1: =IF(Identificação!C17="","",Identificação!C17) -> ESCOLA BÁSICA E SECUNDÁRIA COM PRÉ-ESCOLAR E CRECHE DO PORTO MONIZ
A2: =IF(Validação!E111="Preenchido","","Mensagem: " & Validação!E111 & "! " & Validação!E112) -> 
A3: 8. | B3: Cobertura dos mapas de pessoal | C3: Número de lugares
C4: Previstos (1) | D4: Preenchidos | E4: %
A5: 8.1 | B5: Dirigente | C5: 3 | D5: ='Recursos Humanos'!D6-'Recursos Humanos'!D18 -> 3 | E5: =IF(AND(C5=0,D5=0),0,IF(AND(C5<>"",D5<>""),D5/C5,0)) -> 1 | F5: =IF(OR(C5="",D5=""),1,0) -> 0 | G5: =SUM(F5,F6,F7,F8,F9,F10,F11,F12,F13,F14) -> 0 | H5: =IF(D5<'Recursos Humanos'!D9+'Recursos Humanos'!D12,"ERRO",IF(D6<'Recursos Humanos'!E9+'Recursos Humanos'!E12,"ERRO",IF(D7<'Recursos Humanos'!F9+'Recursos Humanos'!F12,"ERRO",IF(D8<'Recursos Humanos'!G9+'Recursos Humanos'!G12,"ERRO",IF(D9<'Recursos Humanos'!H9+'Recursos Humanos'!H12,"ERRO",IF(D10<'Recursos Humanos'!I9+'Recursos Humanos'!I12,"ERRO",I5)))))) -> OK | I5: =IF(D13<'Recursos Humanos'!L9+'Recursos Humanos'!L12,"ERRO",IF(D14<'Recursos Humanos'!M9+'Recursos Humanos'!M12,"ERRO","OK")) -> OK
A6: 8.2 | B6: Técnico Superior | C6: 3 | D6: ='Recursos Humanos'!E6-'Recursos Humanos'!E18 -> 2 | E6: 0.6666666667 | F6: 0 | H6: =IF(OR(C5<D5,C6<D6,C7<D7,C8<D8,C9<D9,C10<D10,C13<D13,C14<D14),"ERRO","OK") -> OK
A7: 8.3 | B7: Assistente Técnico | C7: 11 | D7: ='Recursos Humanos'!F6-'Recursos Humanos'!F18 -> 10 | E7: 0.9090909091 | F7: 0
A8: 8.4 | B8: Assistente Operacional | C8: 32 | D8: ='Recursos Humanos'!G6-'Recursos Humanos'!G18 -> 27 | E8: 0.84375 | F8: 0
A9: 8.5 | B9: Carreiras e Categorias subsistentes | C9: 5 | D9: ='Recursos Humanos'!H6-'Recursos Humanos'!H18 -> 5 | E9: 1 | F9: 0
A10: 8.6 | B10: Carreiras e Corpos especiais | C10: 1 | D10: ='Recursos Humanos'!I6-'Recursos Humanos'!I18 -> 1 | E10: 1 | F10: 0
A11: 8.7 | B11: Carreira Médica | C11: 0 | D11: ='Recursos Humanos'!J6-'Recursos Humanos'!J18 -> 0 | E11: 0 | F11: 0
A12: 8.8 | B12: Carreira de Enfermagem | C12: 0 | D12: ='Recursos Humanos'!K6-'Recursos Humanos'!K18 -> 0 | E12: 0 | F12: 0
A13: 8.9 | B13: Carreira Docente | C13: 66 | D13: ='Recursos Humanos'!L6-'Recursos Humanos'!L18 -> 49 | E13: 0.7424242424 | F13: 0
A14: 8.10 | B14: Outras | C14: 0 | D14: ='Recursos Humanos'!M6-'Recursos Humanos'!M18 -> 0 | E14: 0 | F14: 0
A15: 8.10 | B15: Total | C15: =SUM(C5:C14) -> 121 | D15: =SUM(D5:D14) -> 97 | E15: 0.8016528926
A17: Notas:
A18: (1) Os valores introduzidos devem respeitar os mapas de pessoal, quadros de vinculação de escola e afetação em vigor para o ano em questão.
A20: Observações:
